Workbook

Sheet INGRESO DE DATOS
O2: 24 years | P2: FALSE
O3: Coaseguro (Panamá) | P3: FALSE
O11: Descuento 24 años (por edad) | S11: Type | T11: Nuevo Negocio
O12: age | P12: Discount (%) | Q12: Parameter | T12: Renovación
O13: 24 | P13: 35 | Q13: =1-P13/100 -> 0.65
O14: 25 | P14: 30 | Q14: =1-P14/100 -> 0.7
O15: 26 | P15: 25 | Q15: 0.75
O16: 27 | P16: 20 | Q16: 0.8
O17: 28 | P17: 15 | Q17: 0.85
O18: 29 | P18: 6 | Q18: 0.94
O19: All ages | P19: 0 | Q19: 1 | S19: Type selected | T19: 1
H21: FALSE
O22: NEW BUSINESS DISCOUNT (ENTRADA MANUAL) | U22: PÓLIZAS 2020 (ENTRADA MANUAL)
O23: Ultimate | P23: Elite | Q23: Premier | R23: Select | S23: Major Medical | U23: Ultimate | V23: Elite | W23: Premier | X23: Select | Y23: Major Medical
O24: 0 | P24: 15 | Q24: 15 | R24: 15 | S24: 15 | U24: 15 | V24: 15 | W24: 15 | X24: 15 | Y24: 15
O30: Descuento de 24 años: | P30: =IF(P2,_xlfn.SWITCH(C43,O13,Q13,O14,Q14,O15,Q15,O16,Q16,O17,Q17,O18,Q18,Q19),Q19) -> 1
O32: Descuento por variante de coaseguro | P32: =IF(P3=TRUE,0.25,1) -> 1
O35: Descuento si es nuevo negocio:
A37: Nombre del Asegurado Titular: | C37: John Doe | O37: NEW BUSINESS DISCOUNT (MULTIPLICATION FACTOR)
O38: Ultimate | P38: Elite | Q38: Premier | R38: Select | S38: Major Medical
A39: Número de adultos en la póliza: | C39: 2 | E39: Número de dependientes menores de 16 años: | H39: Número de dependientes menores de 10 años: | O39: =IF($T$19=1,(O24/100),IF($T$19=3,(U24/100),0)) -> 0 | P39: =IF($T$19=1,(P24/100),IF($T$19=3,(V24/100),0)) -> 0.15 | Q39: 0.15 | R39: 0.15 | S39: 0.15
A41: Número total de dependientes en la póliza: | C41: 2
E42: 1 | H42: 1 | O42: Descuento combinado 24 años y Nuevo Negocio
A43: Edad del Asegurado Titular: | C43: 32
L44: =IF($T$19=1,"Para nuevos negocios emitidos a partir del 1 de enero de 2024, y renovaciones de pólizas emitidas después del 15 de Abril de 2018",IF($T$19=2,"Para renovaciones de pólizas emitidas antes del 15 de Abril de 2018","Para renovaciones de pólizas emitidas en el 2020")) -> Para nuevos negocios emitidos a partir del 1 de enero de 2024, y renovaciones de pólizas emitidas después del 15 de Abril de 2018
A45: Edad del/la cónyuge: | O45: NEW BUSINESS DISCOUNT
O46: Ultimate | P46: Elite | Q46: Premier | R46: Select | S46: Major Medical
O47: =(1-O39)*$P$30 -> 1 | P47: =(1-P39)*$P$30 -> 0.85 | Q47: =(1-Q39)*$P$30 -> 0.85 | R47: 0.85 | S47: 0.85
A49: Tarifas en US$ | Validas: 1 de enero de 2024

Sheet Global Ultimate
C1: FALSE | H1: RESUMEN DE BENEFICIOS | W1: RESUMEN DE BENEFICIOS | AL1: RESUMEN DE BENEFICIOS
A5: Cotización de Seguro Médico Internacional Global Ultimate Health Plan Tarifas en US$ | Validas: 1 de enero de 2024
A13: Nombre del Asegurado Titular | B13: =+'INGRESO DE DATOS'!$C$37 -> John Doe
A15: Número de adultos en la póliza | B15: =+'INGRESO DE DATOS'!$C$41 -> 2
A17: Número de Dependientes en la póliza | B17: =+'INGRESO DE DATOS'!$C$39 -> 2 | C17: =IF('INGRESO DE DATOS'!$P$2=TRUE, "Cotización para dependiente de 24 años","") -> 
A19: Número de Dependientes menores de 16 años | B19: =+'INGRESO DE DATOS'!$E$42 -> 1
A21: Edad del Asegurado Titular | B21: =+'INGRESO DE DATOS'!$C$43 -> 32 | C21: Edad del/la conyuge | D21: =+'INGRESO DE DATOS'!$C$45 ->  | I21: FALSE
A23: Fecha de la cotización | B23: =NOW() -> 2024-01-09T15:08:58.210
A26: DEDUCIBLES | C26: PLAN 1 | D26: PLAN 2 | E26: PLAN 3
A27: En el país de residencia | C27: $0 | D27: 1000 | E27: 2000
A28: Fuera del país de residencia | C28: $0 | D28: 1000 | E28: 2000
A30: TARIFAS ANUALES
A31: Prima para Asegurado Titular | C31: =VLOOKUP($B$21,Tablas!$A$912:$G$978,3,TRUE) -> 35387.7272 | D31: =VLOOKUP($B$21,Tablas!$A$912:$G$978,4,TRUE) -> 22836.2792 | E31: =VLOOKUP($B$21,Tablas!$A$912:$G$978,5,TRUE) -> 0
A32: Prima para conyuge | C32: =IF($B$17=1,0,(VLOOKUP($D$21,Tablas!$A$912:$G$978,3,TRUE))) ->  | D32: =IF($B$17=1,0,(VLOOKUP($D$21,Tablas!$A$912:$G$978,4,TRUE))) ->  | E32: =IF($B$17=1,0,(VLOOKUP($D$21,Tablas!$A$912:$G$978,5,TRUE))) -> 
A33: Prima para hijo (s) | C33: =IF($B$17=1, (IF($B$15=0, 0, (IF($B$19>$B$15, (VLOOKUP($B$15,Tablas!$A$979:$G$981,3,TRUE)), (IF($B$15>4,(IF($B$19=0, (VLOOKUP(3,Tablas!$A$979:$G$981,3,TRUE)), (IF($B$19=1, (VLOOKUP(3,Tablas!$A$979:$G$981,3,TRUE)), (IF($B$19=2, (VLOOKUP(3,Tablas!$A$979:$G$981,3,TRUE)), (VLOOKUP(3,Tablas!$A$979:$G$981,3,TRUE)))))))), (IF($B$15=4,(IF(4-$B$19=0,(VLOOKUP(2,Tablas!$A$979:$G$981,3,TRUE)), (IF(4-$B$19=1,(VLOOKUP(2,Tablas!$A$979:$G$981,3,TRUE)), (IF(4-$B$19=2, (VLOOKUP(2,Tablas!$A$979:$G$981,3,TRUE)), (VLOOKUP(3,Tablas!$A$979:$G$981,3,TRUE)))))))), (IF($B$15=3,(IF(3-$B$19=0,(VLOOKUP(1,Tablas!$A$979:$G$981,3,TRUE)), (IF(3-$B$19=1,(VLOOKUP(1,Tablas!$A$979:$G$981,3,TRUE)), (IF(3-$B$19=2, (VLOOKUP(2,Tablas!$A$979:$G$981,3,TRUE)), (VLOOKUP(3,Tablas!$A$979:$G$981,3,TRUE)))))))), (IF($B$15=2,(IF(2-$B$19=0, 0, (IF(2-$B$19=1,(VLOOKUP(1,Tablas!$A$979:$G$981,3,TRUE)), (IF(2-$B$19=2, (VLOOKUP(2,Tablas!$A$979:$G$981,3,TRUE)), 0)))))), (IF($B$15=1,(IF(1-$B$19=0, 0, (IF(1-$B$19=1,(VLOOKUP(1,Tablas!$A$979:$G$981,3,TRUE)),0)))),0)))))))))))))), (IF($B$15=0, 0, (IF($B$19>$B$15, (VLOOKUP($B$15,Tablas!$A$979:$G$981,3,TRUE)), (IF($B$15=4,(IF(4-$B$19=0, 0, (IF(4-$B$19=1, (VLOOKUP(1,Tablas!$A$979:$G$981,3,TRUE)), (IF(4-$B$19=2, (VLOOKUP(2,Tablas!$A$979:$G$981,3,TRUE)), (IF(4-$B$19=3, (VLOOKUP(3,Tablas!$A$979:$G$981,3,TRUE)), (IF(4-$B$19=4, (VLOOKUP(3,Tablas!$A$979:$G$981,3,TRUE)), 0)))))))))), (IF($B$15=5,(IF(5-$B$19=0, (VLOOKUP(1,Tablas!$A$979:$G$981,3,TRUE)), (IF(5-$B$19=1, (VLOOKUP(1,Tablas!$A$979:$G$981,3,TRUE)), (IF(5-$B$19=2, (VLOOKUP(2,Tablas!$A$979:$G$981,3,TRUE)), (IF(5-$B$19=3, (VLOOKUP(3,Tablas!$A$979:$G$981,3,TRUE)), (IF(5-$B$19=4, (VLOOKUP(3,Tablas!$A$979:$G$981,3,TRUE)), (VLOOKUP(3,Tablas!$A$979:$G$981,3,TRUE)))))))))))), (IF($B$15=6,(IF(6-$B$19=0, (VLOOKUP(2,Tablas!$A$979:$G$981,3,TRUE)), (IF(6-$B$19=1, (VLOOKUP(2,Tablas!$A$979:$G$981,3,TRUE)), (IF(6-$B$19=2, (VLOOKUP(2,Tablas!$A$979:$G$981,3,TRUE)), (IF(6-$B$19=3, (VLOOKUP(3,Tablas!$A$979:$G$981,3,TRUE)), (IF(6-$B$19=4, (VLOOKUP(3,Tablas!$A$979:$G$981,3,TRUE)), (VLOOKUP(3,Tablas!$A$979:$G$981,3,TRUE)))))))))))), (IF($B$15>6,(IF(7-$B$19=0, (VLOOKUP(3,Tablas!$A$979:$G$981,3,TRUE)), (IF(7-$B$19=1, (VLOOKUP(3,Tablas!$A$979:$G$981,3,TRUE)), (IF(7-$B$19=2, (VLOOKUP(3,Tablas!$A$979:$G$981,3,TRUE)), (IF(7-$B$19=3, (VLOOKUP(3,Tablas!$A$979:$G$981,3,TRUE)), (IF(7-$B$19=4, (VLOOKUP(3,Tablas!$A$979:$G$981,3,TRUE)), (VLOOKUP(3,Tablas!$A$979:$G$981,3,TRUE)))))))))))), (IF($B$15=3,(IF(3-$B$19=0,0, (IF(3-$B$19=1,(VLOOKUP(1,Tablas!$A$979:$G$981,3,TRUE)), (IF(3-$B$19=2, (VLOOKUP(2,Tablas!$A$979:$G$981,3,TRUE)), (VLOOKUP(3,Tablas!$A$979:$G$981,3,TRUE)))))))), (IF($B$15=2,(IF(2-$B$19=0, 0, (IF(2-$B$19=1,(VLOOKUP(1,Tablas!$A$979:$G$981,3,TRUE)), (IF(2-$B$19=2, (VLOOKUP(2,Tablas!$A$979:$G$981,3,TRUE)), 0)))))), (IF($B$15=1,(IF(1-$B$19=0, 0, (IF(1-$B$19=1,(VLOOKUP(1,Tablas!$A$979:$G$981,3,TRUE)),0)))),0))))))))))))))))))) -> 12442.255 | D33: =IF($B$17=1, (IF($B$15=0, 0, (IF($B$19>$B$15, (VLOOKUP($B$15,Tablas!$A$979:$G$981,4,TRUE)), (IF($B$15>4,(IF($B$19=0, (VLOOKUP(3,Tablas!$A$979:$G$981,4,TRUE)), (IF($B$19=1, (VLOOKUP(3,Tablas!$A$979:$G$981,4,TRUE)), (IF($B$19=2, (VLOOKUP(3,Tablas!$A$979:$G$981,4,TRUE)), (VLOOKUP(3,Tablas!$A$979:$G$981,4,TRUE)))))))), (IF($B$15=4,(IF(4-$B$19=0,(VLOOKUP(2,Tablas!$A$979:$G$981,4,TRUE)), (IF(4-$B$19=1,(VLOOKUP(2,Tablas!$A$979:$G$981,4,TRUE)), (IF(4-$B$19=2, (VLOOKUP(2,Tablas!$A$979:$G$981,4,TRUE)), (VLOOKUP(3,Tablas!$A$979:$G$981,4,TRUE)))))))), (IF($B$15=3,(IF(3-$B$19=0,(VLOOKUP(1,Tablas!$A$979:$G$981,4,TRUE)), (IF(3-$B$19=1,(VLOOKUP(1,Tablas!$A$979:$G$981,4,TRUE)), (IF(3-$B$19=2, (VLOOKUP(2,Tablas!$A$979:$G$981,4,TRUE)), (VLOOKUP(3,Tablas!$A$979:$G$981,4,TRUE)))))))), (IF($B$15=2,(IF(2-$B$19=0, 0, (IF(2-$B$19=1,(VLOOKUP(1,Tablas!$A$979:$G$981,4,TRUE)), (IF(2-$B$19=2, (VLOOKUP(2,Tablas!$A$979:$G$981,4,TRUE)), 0)))))), (IF($B$15=1,(IF(1-$B$19=0, 0, (IF(1-$B$19=1,(VLOOKUP(1,Tablas!$A$979:$G$981,4,TRUE)),0)))),0)))))))))))))), (IF($B$15=0, 0, (IF($B$19>$B$15, (VLOOKUP($B$15,Tablas!$A$979:$G$981,4,TRUE)), (IF($B$15=4,(IF(4-$B$19=0, 0, (IF(4-$B$19=1, (VLOOKUP(1,Tablas!$A$979:$G$981,4,TRUE)), (IF(4-$B$19=2, (VLOOKUP(2,Tablas!$A$979:$G$981,4,TRUE)), (IF(4-$B$19=3, (VLOOKUP(3,Tablas!$A$979:$G$981,4,TRUE)), (IF(4-$B$19=4, (VLOOKUP(3,Tablas!$A$979:$G$981,4,TRUE)), 0)))))))))), (IF($B$15=5,(IF(5-$B$19=0, (VLOOKUP(1,Tablas!$A$979:$G$981,4,TRUE)), (IF(5-$B$19=1, (VLOOKUP(1,Tablas!$A$979:$G$981,4,TRUE)), (IF(5-$B$19=2, (VLOOKUP(2,Tablas!$A$979:$G$981,4,TRUE)), (IF(5-$B$19=3, (VLOOKUP(3,Tablas!$A$979:$G$981,4,TRUE)), (IF(5-$B$19=4, (VLOOKUP(3,Tablas!$A$979:$G$981,4,TRUE)), (VLOOKUP(3,Tablas!$A$979:$G$981,4,TRUE)))))))))))), (IF($B$15=6,(IF(6-$B$19=0, (VLOOKUP(2,Tablas!$A$979:$G$981,4,TRUE)), (IF(6-$B$19=1, (VLOOKUP(2,Tablas!$A$979:$G$981,4,TRUE)), (IF(6-$B$19=2, (VLOOKUP(2,Tablas!$A$979:$G$981,4,TRUE)), (IF(6-$B$19=3, (VLOOKUP(3,Tablas!$A$979:$G$981,4,TRUE)), (IF(6-$B$19=4, (VLOOKUP(3,Tablas!$A$979:$G$981,4,TRUE)), (VLOOKUP(3,Tablas!$A$979:$G$981,4,TRUE)))))))))))), (IF($B$15>6,(IF(7-$B$19=0, (VLOOKUP(3,Tablas!$A$979:$G$981,4,TRUE)), (IF(7-$B$19=1, (VLOOKUP(3,Tablas!$A$979:$G$981,4,TRUE)), (IF(7-$B$19=2, (VLOOKUP(3,Tablas!$A$979:$G$981,4,TRUE)), (IF(7-$B$19=3, (VLOOKUP(3,Tablas!$A$979:$G$981,4,TRUE)), (IF(7-$B$19=4, (VLOOKUP(3,Tablas!$A$979:$G$981,4,TRUE)), (VLOOKUP(3,Tablas!$A$979:$G$981,4,TRUE)))))))))))), (IF($B$15=3,(IF(3-$B$19=0,0, (IF(3-$B$19=1,(VLOOKUP(1,Tablas!$A$979:$G$981,4,TRUE)), (IF(3-$B$19=2, (VLOOKUP(2,Tablas!$A$979:$G$981,4,TRUE)), (VLOOKUP(3,Tablas!$A$979:$G$981,4,TRUE)))))))), (IF($B$15=2,(IF(2-$B$19=0, 0, (IF(2-$B$19=1,(VLOOKUP(1,Tablas!$A$979:$G$981,4,TRUE)), (IF(2-$B$19=2, (VLOOKUP(2,Tablas!$A$979:$G$981,4,TRUE)), 0)))))), (IF($B$15=1,(IF(1-$B$19=0, 0, (IF(1-$B$19=1,(VLOOKUP(1,Tablas!$A$979:$G$981,4,TRUE)),0)))),0))))))))))))))))))) -> 8030.8578 | E33: =IF($B$17=1, (IF($B$15=0, 0, (IF($B$19>$B$15, (VLOOKUP($B$15,Tablas!$A$979:$G$981,5,TRUE)), (IF($B$15>4,(IF($B$19=0, (VLOOKUP(3,Tablas!$A$979:$G$981,5,TRUE)), (IF($B$19=1, (VLOOKUP(3,Tablas!$A$979:$G$981,5,TRUE)), (IF($B$19=2, (VLOOKUP(3,Tablas!$A$979:$G$981,5,TRUE)), (VLOOKUP(3,Tablas!$A$979:$G$981,5,TRUE)))))))), (IF($B$15=4,(IF(4-$B$19=0,(VLOOKUP(2,Tablas!$A$979:$G$981,5,TRUE)), (IF(4-$B$19=1,(VLOOKUP(2,Tablas!$A$979:$G$981,5,TRUE)), (IF(4-$B$19=2, (VLOOKUP(2,Tablas!$A$979:$G$981,5,TRUE)), (VLOOKUP(3,Tablas!$A$979:$G$981,5,TRUE)))))))), (IF($B$15=3,(IF(3-$B$19=0,(VLOOKUP(1,Tablas!$A$979:$G$981,5,TRUE)), (IF(3-$B$19=1,(VLOOKUP(1,Tablas!$A$979:$G$981,5,TRUE)), (IF(3-$B$19=2, (VLOOKUP(2,Tablas!$A$979:$G$981,5,TRUE)), (VLOOKUP(3,Tablas!$A$979:$G$981,5,TRUE)))))))), (IF($B$15=2,(IF(2-$B$19=0, 0, (IF(2-$B$19=1,(VLOOKUP(1,Tablas!$A$979:$G$981,5,TRUE)), (IF(2-$B$19=2, (VLOOKUP(2,Tablas!$A$979:$G$981,5,TRUE)), 0)))))), (IF($B$15=1,(IF(1-$B$19=0, 0, (IF(1-$B$19=1,(VLOOKUP(1,Tablas!$A$979:$G$981,5,TRUE)),0)))),0)))))))))))))), (IF($B$15=0, 0, (IF($B$19>$B$15, (VLOOKUP($B$15,Tablas!$A$979:$G$981,5,TRUE)), (IF($B$15=4,(IF(4-$B$19=0, 0, (IF(4-$B$19=1, (VLOOKUP(1,Tablas!$A$979:$G$981,5,TRUE)), (IF(4-$B$19=2, (VLOOKUP(2,Tablas!$A$979:$G$981,5,TRUE)), (IF(4-$B$19=3, (VLOOKUP(3,Tablas!$A$979:$G$981,5,TRUE)), (IF(4-$B$19=4, (VLOOKUP(3,Tablas!$A$979:$G$981,5,TRUE)), 0)))))))))), (IF($B$15=5,(IF(5-$B$19=0, (VLOOKUP(1,Tablas!$A$979:$G$981,5,TRUE)), (IF(5-$B$19=1, (VLOOKUP(1,Tablas!$A$979:$G$981,5,TRUE)), (IF(5-$B$19=2, (VLOOKUP(2,Tablas!$A$979:$G$981,5,TRUE)), (IF(5-$B$19=3, (VLOOKUP(3,Tablas!$A$979:$G$981,5,TRUE)), (IF(5-$B$19=4, (VLOOKUP(3,Tablas!$A$979:$G$981,5,TRUE)), (VLOOKUP(3,Tablas!$A$979:$G$981,5,TRUE)))))))))))), (IF($B$15=6,(IF(6-$B$19=0, (VLOOKUP(2,Tablas!$A$979:$G$981,5,TRUE)), (IF(6-$B$19=1, (VLOOKUP(2,Tablas!$A$979:$G$981,5,TRUE)), (IF(6-$B$19=2, (VLOOKUP(2,Tablas!$A$979:$G$981,5,TRUE)), (IF(6-$B$19=3, (VLOOKUP(3,Tablas!$A$979:$G$981,5,TRUE)), (IF(6-$B$19=4, (VLOOKUP(3,Tablas!$A$979:$G$981,5,TRUE)), (VLOOKUP(3,Tablas!$A$979:$G$981,5,TRUE)))))))))))), (IF($B$15>6,(IF(7-$B$19=0, (VLOOKUP(3,Tablas!$A$979:$G$981,5,TRUE)), (IF(7-$B$19=1, (VLOOKUP(3,Tablas!$A$979:$G$981,5,TRUE)), (IF(7-$B$19=2, (VLOOKUP(3,Tablas!$A$979:$G$981,5,TRUE)), (IF(7-$B$19=3, (VLOOKUP(3,Tablas!$A$979:$G$981,5,TRUE)), (IF(7-$B$19=4, (VLOOKUP(3,Tablas!$A$979:$G$981,5,TRUE)), (VLOOKUP(3,Tablas!$A$979:$G$981,5,TRUE)))))))))))), (IF($B$15=3,(IF(3-$B$19=0,0, (IF(3-$B$19=1,(VLOOKUP(1,Tablas!$A$979:$G$981,5,TRUE)), (IF(3-$B$19=2, (VLOOKUP(2,Tablas!$A$979:$G$981,5,TRUE)), (VLOOKUP(3,Tablas!$A$979:$G$981,5,TRUE)))))))), (IF($B$15=2,(IF(2-$B$19=0, 0, (IF(2-$B$19=1,(VLOOKUP(1,Tablas!$A$979:$G$981,5,TRUE)), (IF(2-$B$19=2, (VLOOKUP(2,Tablas!$A$979:$G$981,5,TRUE)), 0)))))), (IF($B$15=1,(IF(1-$B$19=0, 0, (IF(1-$B$19=1,(VLOOKUP(1,Tablas!$A$979:$G$981,5,TRUE)),0)))),0))))))))))))))))))) -> 0
A34: Total de Prima neta | C34: =SUM(C31:C33) ->  | D34: =SUM(D31:D33) -> 
A35: Tarifa administrativa anual | C35: =Tablas!$Y$2 -> 86 | D35: =Tablas!$Y$2 -> 86 | E35: =75*Tablas!$X$2 -> 86.205
A36: VAT (5%)
A37: ITBMS (7%)
A38: TOTAL ANUAL | C38: =SUM(C34:C37) ->  | D38: =SUM(D34:D37) -> 
A39: Ahorros en tarifas de prima para Dependientes | C39: =IF($B$17=1,IF($B$15=0,0,IF($B$19=0,0,IF($B$19=1,(VLOOKUP(1,Tablas!$A$979:$G$981,3,TRUE)),(VLOOKUP(2,Tablas!$A$979:$G$981,3,TRUE))))), IF($B$15=0,0,IF($B$19=0,0,IF($B$19=1,(VLOOKUP(1,Tablas!$A$979:$G$981,3,TRUE)),IF($B$19=2,(VLOOKUP(2,Tablas!$A$979:$G$981,3,TRUE)), (VLOOKUP(3,Tablas!$A$979:$G$981,3,TRUE))))))) -> 12442.255 | D39: =IF($B$17=1,IF($B$15=0,0,IF($B$19=0,0,IF($B$19=1,(VLOOKUP(1,Tablas!$A$979:$G$981,4,TRUE)),(VLOOKUP(2,Tablas!$A$979:$G$981,4,TRUE))))), IF($B$15=0,0,IF($B$19=0,0,IF($B$19=1,(VLOOKUP(1,Tablas!$A$979:$G$981,4,TRUE)),IF($B$19=2,(VLOOKUP(2,Tablas!$A$979:$G$981,4,TRUE)), (VLOOKUP(3,Tablas!$A$979:$G$981,4,TRUE))))))) -> 8030.8578 | E39: =IF($B$17=1,IF($B$15=0,0,IF($B$19=0,0,IF($B$19=1,(VLOOKUP(1,Tablas!$A$979:$G$981,5,TRUE)),(VLOOKUP(2,Tablas!$A$979:$G$981,5,TRUE))))), IF($B$15=0,0,IF($B$19=0,0,IF($B$19=1,(VLOOKUP(1,Tablas!$A$979:$G$981,5,TRUE)),IF($B$19=2,(VLOOKUP(2,Tablas!$A$979:$G$981,5,TRUE)), (VLOOKUP(3,Tablas!$A$979:$G$981,5,TRUE))))))) -> 0
A41: TARIFAS SEMIANUALES
A42: Prima para Asegurado Titular | C42: =VLOOKUP($B$21,Tablas!$A$1439:$G$1505,3,TRUE) -> 18755.49542 | D42: =VLOOKUP($B$21,Tablas!$A$1439:$G$1505,4,TRUE) -> 12103.22798 | E42: =VLOOKUP($B$21,Tablas!$A$1439:$G$1505,5,TRUE) -> 0
A43: Prima para conyuge | C43: =IF($B$17=1,0,(VLOOKUP($D$21,Tablas!$A$1439:$G$1505,3,TRUE))) ->  | D43: =IF($B$17=1,0,(VLOOKUP($D$21,Tablas!$A$1439:$G$1505,4,TRUE))) ->  | E43: =IF($B$17=1,0,(VLOOKUP($D$21,Tablas!$A$1439:$G$1505,5,TRUE))) -> 
A44: Prima para hijo (s) | C44: =IF($B$17=1, (IF($B$15=0, 0, (IF($B$19>$B$15, (VLOOKUP($B$15,Tablas!$A$1506:$G$1508,3,TRUE)), (IF($B$15>4,(IF($B$19=0, (VLOOKUP(3,Tablas!$A$1506:$G$1508,3,TRUE)), (IF($B$19=1, (VLOOKUP(3,Tablas!$A$1506:$G$1508,3,TRUE)), (IF($B$19=2, (VLOOKUP(3,Tablas!$A$1506:$G$1508,3,TRUE)), (VLOOKUP(3,Tablas!$A$1506:$G$1508,3,TRUE)))))))), (IF($B$15=4,(IF(4-$B$19=0,(VLOOKUP(2,Tablas!$A$1506:$G$1508,3,TRUE)), (IF(4-$B$19=1,(VLOOKUP(2,Tablas!$A$1506:$G$1508,3,TRUE)), (IF(4-$B$19=2, (VLOOKUP(2,Tablas!$A$1506:$G$1508,3,TRUE)), (VLOOKUP(3,Tablas!$A$1506:$G$1508,3,TRUE)))))))), (IF($B$15=3,(IF(3-$B$19=0,(VLOOKUP(1,Tablas!$A$1506:$G$1508,3,TRUE)), (IF(3-$B$19=1,(VLOOKUP(1,Tablas!$A$1506:$G$1508,3,TRUE)), (IF(3-$B$19=2, (VLOOKUP(2,Tablas!$A$1506:$G$1508,3,TRUE)), (VLOOKUP(3,Tablas!$A$1506:$G$1508,3,TRUE)))))))), (IF($B$15=2,(IF(2-$B$19=0, 0, (IF(2-$B$19=1,(VLOOKUP(1,Tablas!$A$1506:$G$1508,3,TRUE)), (IF(2-$B$19=2, (VLOOKUP(2,Tablas!$A$1506:$G$1508,3,TRUE)), 0)))))), (IF($B$15=1,(IF(1-$B$19=0, 0, (IF(1-$B$19=1,(VLOOKUP(1,Tablas!$A$1506:$G$1508,3,TRUE)),0)))),0)))))))))))))), (IF($B$15=0, 0, (IF($B$19>$B$15, (VLOOKUP($B$15,Tablas!$A$1506:$G$1508,3,TRUE)), (IF($B$15=4,(IF(4-$B$19=0, 0, (IF(4-$B$19=1, (VLOOKUP(1,Tablas!$A$1506:$G$1508,3,TRUE)), (IF(4-$B$19=2, (VLOOKUP(2,Tablas!$A$1506:$G$1508,3,TRUE)), (IF(4-$B$19=3, (VLOOKUP(3,Tablas!$A$1506:$G$1508,3,TRUE)), (IF(4-$B$19=4, (VLOOKUP(3,Tablas!$A$1506:$G$1508,3,TRUE)), 0)))))))))), (IF($B$15=5,(IF(5-$B$19=0, (VLOOKUP(1,Tablas!$A$1506:$G$1508,3,TRUE)), (IF(5-$B$19=1, (VLOOKUP(1,Tablas!$A$1506:$G$1508,3,TRUE)), (IF(5-$B$19=2, (VLOOKUP(2,Tablas!$A$1506:$G$1508,3,TRUE)), (IF(5-$B$19=3, (VLOOKUP(3,Tablas!$A$1506:$G$1508,3,TRUE)), (IF(5-$B$19=4, (VLOOKUP(3,Tablas!$A$1506:$G$1508,3,TRUE)), (VLOOKUP(3,Tablas!$A$1506:$G$1508,3,TRUE)))))))))))), (IF($B$15=6,(IF(6-$B$19=0, (VLOOKUP(2,Tablas!$A$1506:$G$1508,3,TRUE)), (IF(6-$B$19=1, (VLOOKUP(2,Tablas!$A$1506:$G$1508,3,TRUE)), (IF(6-$B$19=2, (VLOOKUP(2,Tablas!$A$1506:$G$1508,3,TRUE)), (IF(6-$B$19=3, (VLOOKUP(3,Tablas!$A$1506:$G$1508,3,TRUE)), (IF(6-$B$19=4, (VLOOKUP(3,Tablas!$A$1506:$G$1508,3,TRUE)), (VLOOKUP(3,Tablas!$A$1506:$G$1508,3,TRUE)))))))))))), (IF($B$15>6,(IF(7-$B$19=0, (VLOOKUP(3,Tablas!$A$1506:$G$1508,3,TRUE)), (IF(7-$B$19=1, (VLOOKUP(3,Tablas!$A$1506:$G$1508,3,TRUE)), (IF(7-$B$19=2, (VLOOKUP(3,Tablas!$A$1506:$G$1508,3,TRUE)), (IF(7-$B$19=3, (VLOOKUP(3,Tablas!$A$1506:$G$1508,3,TRUE)), (IF(7-$B$19=4, (VLOOKUP(3,Tablas!$A$1506:$G$1508,3,TRUE)), (VLOOKUP(3,Tablas!$A$1506:$G$1508,3,TRUE)))))))))))), (IF($B$15=3,(IF(3-$B$19=0,0, (IF(3-$B$19=1,(VLOOKUP(1,Tablas!$A$1506:$G$1508,3,TRUE)), (IF(3-$B$19=2, (VLOOKUP(2,Tablas!$A$1506:$G$1508,3,TRUE)), (VLOOKUP(3,Tablas!$A$1506:$G$1508,3,TRUE)))))))), (IF($B$15=2,(IF(2-$B$19=0, 0, (IF(2-$B$19=1,(VLOOKUP(1,Tablas!$A$1506:$G$1508,3,TRUE)), (IF(2-$B$19=2, (VLOOKUP(2,Tablas!$A$1506:$G$1508,3,TRUE)), 0)))))), (IF($B$15=1,(IF(1-$B$19=0, 0, (IF(1-$B$19=1,(VLOOKUP(1,Tablas!$A$1506:$G$1508,3,TRUE)),0)))),0))))))))))))))))))) -> 6594.39515 | D44: =IF($B$17=1, (IF($B$15=0, 0, (IF($B$19>$B$15, (VLOOKUP($B$15,Tablas!$A$1506:$G$1508,4,TRUE)), (IF($B$15>4,(IF($B$19=0, (VLOOKUP(3,Tablas!$A$1506:$G$1508,4,TRUE)), (IF($B$19=1, (VLOOKUP(3,Tablas!$A$1506:$G$1508,4,TRUE)), (IF($B$19=2, (VLOOKUP(3,Tablas!$A$1506:$G$1508,4,TRUE)), (VLOOKUP(3,Tablas!$A$1506:$G$1508,4,TRUE)))))))), (IF($B$15=4,(IF(4-$B$19=0,(VLOOKUP(2,Tablas!$A$1506:$G$1508,4,TRUE)), (IF(4-$B$19=1,(VLOOKUP(2,Tablas!$A$1506:$G$1508,4,TRUE)), (IF(4-$B$19=2, (VLOOKUP(2,Tablas!$A$1506:$G$1508,4,TRUE)), (VLOOKUP(3,Tablas!$A$1506:$G$1508,4,TRUE)))))))), (IF($B$15=3,(IF(3-$B$19=0,(VLOOKUP(1,Tablas!$A$1506:$G$1508,4,TRUE)), (IF(3-$B$19=1,(VLOOKUP(1,Tablas!$A$1506:$G$1508,4,TRUE)), (IF(3-$B$19=2, (VLOOKUP(2,Tablas!$A$1506:$G$1508,4,TRUE)), (VLOOKUP(3,Tablas!$A$1506:$G$1508,4,TRUE)))))))), (IF($B$15=2,(IF(2-$B$19=0, 0, (IF(2-$B$19=1,(VLOOKUP(1,Tablas!$A$1506:$G$1508,4,TRUE)), (IF(2-$B$19=2, (VLOOKUP(2,Tablas!$A$1506:$G$1508,4,TRUE)), 0)))))), (IF($B$15=1,(IF(1-$B$19=0, 0, (IF(1-$B$19=1,(VLOOKUP(1,Tablas!$A$1506:$G$1508,4,TRUE)),0)))),0)))))))))))))), (IF($B$15=0, 0, (IF($B$19>$B$15, (VLOOKUP($B$15,Tablas!$A$1506:$G$1508,4,TRUE)), (IF($B$15=4,(IF(4-$B$19=0, 0, (IF(4-$B$19=1, (VLOOKUP(1,Tablas!$A$1506:$G$1508,4,TRUE)), (IF(4-$B$19=2, (VLOOKUP(2,Tablas!$A$1506:$G$1508,4,TRUE)), (IF(4-$B$19=3, (VLOOKUP(3,Tablas!$A$1506:$G$1508,4,TRUE)), (IF(4-$B$19=4, (VLOOKUP(3,Tablas!$A$1506:$G$1508,4,TRUE)), 0)))))))))), (IF($B$15=5,(IF(5-$B$19=0, (VLOOKUP(1,Tablas!$A$1506:$G$1508,4,TRUE)), (IF(5-$B$19=1, (VLOOKUP(1,Tablas!$A$1506:$G$1508,4,TRUE)), (IF(5-$B$19=2, (VLOOKUP(2,Tablas!$A$1506:$G$1508,4,TRUE)), (IF(5-$B$19=3, (VLOOKUP(3,Tablas!$A$1506:$G$1508,4,TRUE)), (IF(5-$B$19=4, (VLOOKUP(3,Tablas!$A$1506:$G$1508,4,TRUE)), (VLOOKUP(3,Tablas!$A$1506:$G$1508,4,TRUE)))))))))))), (IF($B$15=6,(IF(6-$B$19=0, (VLOOKUP(2,Tablas!$A$1506:$G$1508,4,TRUE)), (IF(6-$B$19=1, (VLOOKUP(2,Tablas!$A$1506:$G$1508,4,TRUE)), (IF(6-$B$19=2, (VLOOKUP(2,Tablas!$A$1506:$G$1508,4,TRUE)), (IF(6-$B$19=3, (VLOOKUP(3,Tablas!$A$1506:$G$1508,4,TRUE)), (IF(6-$B$19=4, (VLOOKUP(3,Tablas!$A$1506:$G$1508,4,TRUE)), (VLOOKUP(3,Tablas!$A$1506:$G$1508,4,TRUE)))))))))))), (IF($B$15>6,(IF(7-$B$19=0, (VLOOKUP(3,Tablas!$A$1506:$G$1508,4,TRUE)), (IF(7-$B$19=1, (VLOOKUP(3,Tablas!$A$1506:$G$1508,4,TRUE)), (IF(7-$B$19=2, (VLOOKUP(3,Tablas!$A$1506:$G$1508,4,TRUE)), (IF(7-$B$19=3, (VLOOKUP(3,Tablas!$A$1506:$G$1508,4,TRUE)), (IF(7-$B$19=4, (VLOOKUP(3,Tablas!$A$1506:$G$1508,4,TRUE)), (VLOOKUP(3,Tablas!$A$1506:$G$1508,4,TRUE)))))))))))), (IF($B$15=3,(IF(3-$B$19=0,0, (IF(3-$B$19=1,(VLOOKUP(1,Tablas!$A$1506:$G$1508,4,TRUE)), (IF(3-$B$19=2, (VLOOKUP(2,Tablas!$A$1506:$G$1508,4,TRUE)), (VLOOKUP(3,Tablas!$A$1506:$G$1508,4,TRUE)))))))), (IF($B$15=2,(IF(2-$B$19=0, 0, (IF(2-$B$19=1,(VLOOKUP(1,Tablas!$A$1506:$G$1508,4,TRUE)), (IF(2-$B$19=2, (VLOOKUP(2,Tablas!$A$1506:$G$1508,4,TRUE)), 0)))))), (IF($B$15=1,(IF(1-$B$19=0, 0, (IF(1-$B$19=1,(VLOOKUP(1,Tablas!$A$1506:$G$1508,4,TRUE)),0)))),0))))))))))))))))))) -> 4256.354634 | E44: =IF($B$17=1, (IF($B$15=0, 0, (IF($B$19>$B$15, (VLOOKUP($B$15,Tablas!$A$1506:$G$1508,5,TRUE)), (IF($B$15>4,(IF($B$19=0, (VLOOKUP(3,Tablas!$A$1506:$G$1508,5,TRUE)), (IF($B$19=1, (VLOOKUP(3,Tablas!$A$1506:$G$1508,5,TRUE)), (IF($B$19=2, (VLOOKUP(3,Tablas!$A$1506:$G$1508,5,TRUE)), (VLOOKUP(3,Tablas!$A$1506:$G$1508,5,TRUE)))))))), (IF($B$15=4,(IF(4-$B$19=0,(VLOOKUP(2,Tablas!$A$1506:$G$1508,5,TRUE)), (IF(4-$B$19=1,(VLOOKUP(2,Tablas!$A$1506:$G$1508,5,TRUE)), (IF(4-$B$19=2, (VLOOKUP(2,Tablas!$A$1506:$G$1508,5,TRUE)), (VLOOKUP(3,Tablas!$A$1506:$G$1508,5,TRUE)))))))), (IF($B$15=3,(IF(3-$B$19=0,(VLOOKUP(1,Tablas!$A$1506:$G$1508,5,TRUE)), (IF(3-$B$19=1,(VLOOKUP(1,Tablas!$A$1506:$G$1508,5,TRUE)), (IF(3-$B$19=2, (VLOOKUP(2,Tablas!$A$1506:$G$1508,5,TRUE)), (VLOOKUP(3,Tablas!$A$1506:$G$1508,5,TRUE)))))))), (IF($B$15=2,(IF(2-$B$19=0, 0, (IF(2-$B$19=1,(VLOOKUP(1,Tablas!$A$1506:$G$1508,5,TRUE)), (IF(2-$B$19=2, (VLOOKUP(2,Tablas!$A$1506:$G$1508,5,TRUE)), 0)))))), (IF($B$15=1,(IF(1-$B$19=0, 0, (IF(1-$B$19=1,(VLOOKUP(1,Tablas!$A$1506:$G$1508,5,TRUE)),0)))),0)))))))))))))), (IF($B$15=0, 0, (IF($B$19>$B$15, (VLOOKUP($B$15,Tablas!$A$1506:$G$1508,5,TRUE)), (IF($B$15=4,(IF(4-$B$19=0, 0, (IF(4-$B$19=1, (VLOOKUP(1,Tablas!$A$1506:$G$1508,5,TRUE)), (IF(4-$B$19=2, (VLOOKUP(2,Tablas!$A$1506:$G$1508,5,TRUE)), (IF(4-$B$19=3, (VLOOKUP(3,Tablas!$A$1506:$G$1508,5,TRUE)), (IF(4-$B$19=4, (VLOOKUP(3,Tablas!$A$1506:$G$1508,5,TRUE)), 0)))))))))), (IF($B$15=5,(IF(5-$B$19=0, (VLOOKUP(1,Tablas!$A$1506:$G$1508,5,TRUE)), (IF(5-$B$19=1, (VLOOKUP(1,Tablas!$A$1506:$G$1508,5,TRUE)), (IF(5-$B$19=2, (VLOOKUP(2,Tablas!$A$1506:$G$1508,5,TRUE)), (IF(5-$B$19=3, (VLOOKUP(3,Tablas!$A$1506:$G$1508,5,TRUE)), (IF(5-$B$19=4, (VLOOKUP(3,Tablas!$A$1506:$G$1508,5,TRUE)), (VLOOKUP(3,Tablas!$A$1506:$G$1508,5,TRUE)))))))))))), (IF($B$15=6,(IF(6-$B$19=0, (VLOOKUP(2,Tablas!$A$1506:$G$1508,5,TRUE)), (IF(6-$B$19=1, (VLOOKUP(2,Tablas!$A$1506:$G$1508,5,TRUE)), (IF(6-$B$19=2, (VLOOKUP(2,Tablas!$A$1506:$G$1508,5,TRUE)), (IF(6-$B$19=3, (VLOOKUP(3,Tablas!$A$1506:$G$1508,5,TRUE)), (IF(6-$B$19=4, (VLOOKUP(3,Tablas!$A$1506:$G$1508,5,TRUE)), (VLOOKUP(3,Tablas!$A$1506:$G$1508,5,TRUE)))))))))))), (IF($B$15>6,(IF(7-$B$19=0, (VLOOKUP(3,Tablas!$A$1506:$G$1508,5,TRUE)), (IF(7-$B$19=1, (VLOOKUP(3,Tablas!$A$1506:$G$1508,5,TRUE)), (IF(7-$B$19=2, (VLOOKUP(3,Tablas!$A$1506:$G$1508,5,TRUE)), (IF(7-$B$19=3, (VLOOKUP(3,Tablas!$A$1506:$G$1508,5,TRUE)), (IF(7-$B$19=4, (VLOOKUP(3,Tablas!$A$1506:$G$1508,5,TRUE)), (VLOOKUP(3,Tablas!$A$1506:$G$1508,5,TRUE)))))))))))), (IF($B$15=3,(IF(3-$B$19=0,0, (IF(3-$B$19=1,(VLOOKUP(1,Tablas!$A$1506:$G$1508,5,TRUE)), (IF(3-$B$19=2, (VLOOKUP(2,Tablas!$A$1506:$G$1508,5,TRUE)), (VLOOKUP(3,Tablas!$A$1506:$G$1508,5,TRUE)))))))), (IF($B$15=2,(IF(2-$B$19=0, 0, (IF(2-$B$19=1,(VLOOKUP(1,Tablas!$A$1506:$G$1508,5,TRUE)), (IF(2-$B$19=2, (VLOOKUP(2,Tablas!$A$1506:$G$1508,5,TRUE)), 0)))))), (IF($B$15=1,(IF(1-$B$19=0, 0, (IF(1-$B$19=1,(VLOOKUP(1,Tablas!$A$1506:$G$1508,5,TRUE)),0)))),0))))))))))))))))))) -> 0
A45: Total de Prima neta | C45: =SUM(C42:C44) ->  | D45: =SUM(D42:D44) -> 
A46: Tarifa administrativa anual | C46: =Tablas!$Y$2 -> 86 | D46: =Tablas!$Y$2 -> 86 | E46: =75*Tablas!$X$2 -> 86.205
A47: VAT (5%)
A48: ITBMS (7%)
A49: TOTAL de primera cuota | C49: =SUM(C45:C48) ->  | D49: =SUM(D45:D48) -> 
A50: Costo de segunda cuota | C50: =C49-C46 ->  | D50: =D49-D46 ->  | E50: =(E45 + E47)+((E31+E32+E33)*0.06*0.07)/2 -> 
A51: TOTAL ANUAL | C51: =C49+C50 ->  | D51: =D49+D50 -> 
A52: Ahorros en tarifas de prima para Dependientes | C52: =IF($B$17=1,IF($B$15=0,0,IF($B$19=0,0,IF($B$19=1,(VLOOKUP(1,Tablas!$A$1506:$G$1508,3,TRUE)),(VLOOKUP(2,Tablas!$A$1506:$G$1508,3,TRUE))))), IF($B$15=0,0,IF($B$19=0,0,IF($B$19=1,(VLOOKUP(1,Tablas!$A$1506:$G$1508,3,TRUE)),IF($B$19=2,(VLOOKUP(2,Tablas!$A$1506:$G$1508,3,TRUE)), (VLOOKUP(3,Tablas!$A$1506:$G$1508,3,TRUE))))))) -> 6594.39515 | D52: =IF($B$17=1,IF($B$15=0,0,IF($B$19=0,0,IF($B$19=1,(VLOOKUP(1,Tablas!$A$1506:$G$1508,4,TRUE)),(VLOOKUP(2,Tablas!$A$1506:$G$1508,4,TRUE))))), IF($B$15=0,0,IF($B$19=0,0,IF($B$19=1,(VLOOKUP(1,Tablas!$A$1506:$G$1508,4,TRUE)),IF($B$19=2,(VLOOKUP(2,Tablas!$A$1506:$G$1508,4,TRUE)), (VLOOKUP(3,Tablas!$A$1506:$G$1508,4,TRUE))))))) -> 4256.354634 | E52: =IF($B$17=1,IF($B$15=0,0,IF($B$19=0,0,IF($B$19=1,(VLOOKUP(1,Tablas!$A$1506:$G$1508,5,TRUE)),(VLOOKUP(2,Tablas!$A$1506:$G$1508,5,TRUE))))), IF($B$15=0,0,IF($B$19=0,0,IF($B$19=1,(VLOOKUP(1,Tablas!$A$1506:$G$1508,5,TRUE)),IF($B$19=2,(VLOOKUP(2,Tablas!$A$1506:$G$1508,5,TRUE)), (VLOOKUP(3,Tablas!$A$1506:$G$1508,5,TRUE))))))) -> 0
A54: TARIFAS TRIMESTRALES
A55: Prima para Asegurado Titular | C55: =VLOOKUP($B$21,Tablas!$A$1061:$G$1127,3,TRUE) -> 9731.62498 | D55: =VLOOKUP($B$21,Tablas!$A$1061:$G$1127,4,TRUE) -> 6279.97678 | E55: =VLOOKUP($B$21,Tablas!$A$1061:$G$1127,5,TRUE) -> 0
A56: Prima para conyuge | C56: =IF($B$17=1,0,(VLOOKUP($D$21,Tablas!$A$1061:$G$1127,3,TRUE))) ->  | D56: =IF($B$17=1,0,(VLOOKUP($D$21,Tablas!$A$1061:$G$1127,4,TRUE))) ->  | E56: =IF($B$17=1,0,(VLOOKUP($D$21,Tablas!$A$1061:$G$1127,5,TRUE))) -> 
A57: Prima para hijo (s) | C57: =IF($B$17=1, (IF($B$15=0, 0, (IF($B$19>$B$15, (VLOOKUP($B$15,Tablas!$A$1128:$G$1130,3,TRUE)), (IF($B$15>4,(IF($B$19=0, (VLOOKUP(3,Tablas!$A$1128:$G$1130,3,TRUE)), (IF($B$19=1, (VLOOKUP(3,Tablas!$A$1128:$G$1130,3,TRUE)), (IF($B$19=2, (VLOOKUP(3,Tablas!$A$1128:$G$1130,3,TRUE)), (VLOOKUP(3,Tablas!$A$1128:$G$1130,3,TRUE)))))))), (IF($B$15=4,(IF(4-$B$19=0,(VLOOKUP(2,Tablas!$A$1128:$G$1130,3,TRUE)), (IF(4-$B$19=1,(VLOOKUP(2,Tablas!$A$1128:$G$1130,3,TRUE)), (IF(4-$B$19=2, (VLOOKUP(2,Tablas!$A$1128:$G$1130,3,TRUE)), (VLOOKUP(3,Tablas!$A$1128:$G$1130,3,TRUE)))))))), (IF($B$15=3,(IF(3-$B$19=0,(VLOOKUP(1,Tablas!$A$1128:$G$1130,3,TRUE)), (IF(3-$B$19=1,(VLOOKUP(1,Tablas!$A$1128:$G$1130,3,TRUE)), (IF(3-$B$19=2, (VLOOKUP(2,Tablas!$A$1128:$G$1130,3,TRUE)), (VLOOKUP(3,Tablas!$A$1128:$G$1130,3,TRUE)))))))), (IF($B$15=2,(IF(2-$B$19=0, 0, (IF(2-$B$19=1,(VLOOKUP(1,Tablas!$A$1128:$G$1130,3,TRUE)), (IF(2-$B$19=2, (VLOOKUP(2,Tablas!$A$1128:$G$1130,3,TRUE)), 0)))))), (IF($B$15=1,(IF(1-$B$19=0, 0, (IF(1-$B$19=1,(VLOOKUP(1,Tablas!$A$1128:$G$1130,3,TRUE)),0)))),0)))))))))))))), (IF($B$15=0, 0, (IF($B$19>$B$15, (VLOOKUP($B$15,Tablas!$A$1128:$G$1130,3,TRUE)), (IF($B$15=4,(IF(4-$B$19=0, 0, (IF(4-$B$19=1, (VLOOKUP(1,Tablas!$A$1128:$G$1130,3,TRUE)), (IF(4-$B$19=2, (VLOOKUP(2,Tablas!$A$1128:$G$1130,3,TRUE)), (IF(4-$B$19=3, (VLOOKUP(3,Tablas!$A$1128:$G$1130,3,TRUE)), (IF(4-$B$19=4, (VLOOKUP(3,Tablas!$A$1128:$G$1130,3,TRUE)), 0)))))))))), (IF($B$15=5,(IF(5-$B$19=0, (VLOOKUP(1,Tablas!$A$1128:$G$1130,3,TRUE)), (IF(5-$B$19=1, (VLOOKUP(1,Tablas!$A$1128:$G$1130,3,TRUE)), (IF(5-$B$19=2, (VLOOKUP(2,Tablas!$A$1128:$G$1130,3,TRUE)), (IF(5-$B$19=3, (VLOOKUP(3,Tablas!$A$1128:$G$1130,3,TRUE)), (IF(5-$B$19=4, (VLOOKUP(3,Tablas!$A$1128:$G$1130,3,TRUE)), (VLOOKUP(3,Tablas!$A$1128:$G$1130,3,TRUE)))))))))))), (IF($B$15=6,(IF(6-$B$19=0, (VLOOKUP(2,Tablas!$A$1128:$G$1130,3,TRUE)), (IF(6-$B$19=1, (VLOOKUP(2,Tablas!$A$1128:$G$1130,3,TRUE)), (IF(6-$B$19=2, (VLOOKUP(2,Tablas!$A$1128:$G$1130,3,TRUE)), (IF(6-$B$19=3, (VLOOKUP(3,Tablas!$A$1128:$G$1130,3,TRUE)), (IF(6-$B$19=4, (VLOOKUP(3,Tablas!$A$1128:$G$1130,3,TRUE)), (VLOOKUP(3,Tablas!$A$1128:$G$1130,3,TRUE)))))))))))), (IF($B$15>6,(IF(7-$B$19=0, (VLOOKUP(3,Tablas!$A$1128:$G$1130,3,TRUE)), (IF(7-$B$19=1, (VLOOKUP(3,Tablas!$A$1128:$G$1130,3,TRUE)), (IF(7-$B$19=2, (VLOOKUP(3,Tablas!$A$1128:$G$1130,3,TRUE)), (IF(7-$B$19=3, (VLOOKUP(3,Tablas!$A$1128:$G$1130,3,TRUE)), (IF(7-$B$19=4, (VLOOKUP(3,Tablas!$A$1128:$G$1130,3,TRUE)), (VLOOKUP(3,Tablas!$A$1128:$G$1130,3,TRUE)))))))))))), (IF($B$15=3,(IF(3-$B$19=0,0, (IF(3-$B$19=1,(VLOOKUP(1,Tablas!$A$1128:$G$1130,3,TRUE)), (IF(3-$B$19=2, (VLOOKUP(2,Tablas!$A$1128:$G$1130,3,TRUE)), (VLOOKUP(3,Tablas!$A$1128:$G$1130,3,TRUE)))))))), (IF($B$15=2,(IF(2-$B$19=0, 0, (IF(2-$B$19=1,(VLOOKUP(1,Tablas!$A$1128:$G$1130,3,TRUE)), (IF(2-$B$19=2, (VLOOKUP(2,Tablas!$A$1128:$G$1130,3,TRUE)), 0)))))), (IF($B$15=1,(IF(1-$B$19=0, 0, (IF(1-$B$19=1,(VLOOKUP(1,Tablas!$A$1128:$G$1130,3,TRUE)),0)))),0))))))))))))))))))) -> 3421.620125 | D57: =IF($B$17=1, (IF($B$15=0, 0, (IF($B$19>$B$15, (VLOOKUP($B$15,Tablas!$A$1128:$G$1130,4,TRUE)), (IF($B$15>4,(IF($B$19=0, (VLOOKUP(3,Tablas!$A$1128:$G$1130,4,TRUE)), (IF($B$19=1, (VLOOKUP(3,Tablas!$A$1128:$G$1130,4,TRUE)), (IF($B$19=2, (VLOOKUP(3,Tablas!$A$1128:$G$1130,4,TRUE)), (VLOOKUP(3,Tablas!$A$1128:$G$1130,4,TRUE)))))))), (IF($B$15=4,(IF(4-$B$19=0,(VLOOKUP(2,Tablas!$A$1128:$G$1130,4,TRUE)), (IF(4-$B$19=1,(VLOOKUP(2,Tablas!$A$1128:$G$1130,4,TRUE)), (IF(4-$B$19=2, (VLOOKUP(2,Tablas!$A$1128:$G$1130,4,TRUE)), (VLOOKUP(3,Tablas!$A$1128:$G$1130,4,TRUE)))))))), (IF($B$15=3,(IF(3-$B$19=0,(VLOOKUP(1,Tablas!$A$1128:$G$1130,4,TRUE)), (IF(3-$B$19=1,(VLOOKUP(1,Tablas!$A$1128:$G$1130,4,TRUE)), (IF(3-$B$19=2, (VLOOKUP(2,Tablas!$A$1128:$G$1130,4,TRUE)), (VLOOKUP(3,Tablas!$A$1128:$G$1130,4,TRUE)))))))), (IF($B$15=2,(IF(2-$B$19=0, 0, (IF(2-$B$19=1,(VLOOKUP(1,Tablas!$A$1128:$G$1130,4,TRUE)), (IF(2-$B$19=2, (VLOOKUP(2,Tablas!$A$1128:$G$1130,4,TRUE)), 0)))))), (IF($B$15=1,(IF(1-$B$19=0, 0, (IF(1-$B$19=1,(VLOOKUP(1,Tablas!$A$1128:$G$1130,4,TRUE)),0)))),0)))))))))))))), (IF($B$15=0, 0, (IF($B$19>$B$15, (VLOOKUP($B$15,Tablas!$A$1128:$G$1130,4,TRUE)), (IF($B$15=4,(IF(4-$B$19=0, 0, (IF(4-$B$19=1, (VLOOKUP(1,Tablas!$A$1128:$G$1130,4,TRUE)), (IF(4-$B$19=2, (VLOOKUP(2,Tablas!$A$1128:$G$1130,4,TRUE)), (IF(4-$B$19=3, (VLOOKUP(3,Tablas!$A$1128:$G$1130,4,TRUE)), (IF(4-$B$19=4, (VLOOKUP(3,Tablas!$A$1128:$G$1130,4,TRUE)), 0)))))))))), (IF($B$15=5,(IF(5-$B$19=0, (VLOOKUP(1,Tablas!$A$1128:$G$1130,4,TRUE)), (IF(5-$B$19=1, (VLOOKUP(1,Tablas!$A$1128:$G$1130,4,TRUE)), (IF(5-$B$19=2, (VLOOKUP(2,Tablas!$A$1128:$G$1130,4,TRUE)), (IF(5-$B$19=3, (VLOOKUP(3,Tablas!$A$1128:$G$1130,4,TRUE)), (IF(5-$B$19=4, (VLOOKUP(3,Tablas!$A$1128:$G$1130,4,TRUE)), (VLOOKUP(3,Tablas!$A$1128:$G$1130,4,TRUE)))))))))))), (IF($B$15=6,(IF(6-$B$19=0, (VLOOKUP(2,Tablas!$A$1128:$G$1130,4,TRUE)), (IF(6-$B$19=1, (VLOOKUP(2,Tablas!$A$1128:$G$1130,4,TRUE)), (IF(6-$B$19=2, (VLOOKUP(2,Tablas!$A$1128:$G$1130,4,TRUE)), (IF(6-$B$19=3, (VLOOKUP(3,Tablas!$A$1128:$G$1130,4,TRUE)), (IF(6-$B$19=4, (VLOOKUP(3,Tablas!$A$1128:$G$1130,4,TRUE)), (VLOOKUP(3,Tablas!$A$1128:$G$1130,4,TRUE)))))))))))), (IF($B$15>6,(IF(7-$B$19=0, (VLOOKUP(3,Tablas!$A$1128:$G$1130,4,TRUE)), (IF(7-$B$19=1, (VLOOKUP(3,Tablas!$A$1128:$G$1130,4,TRUE)), (IF(7-$B$19=2, (VLOOKUP(3,Tablas!$A$1128:$G$1130,4,TRUE)), (IF(7-$B$19=3, (VLOOKUP(3,Tablas!$A$1128:$G$1130,4,TRUE)), (IF(7-$B$19=4, (VLOOKUP(3,Tablas!$A$1128:$G$1130,4,TRUE)), (VLOOKUP(3,Tablas!$A$1128:$G$1130,4,TRUE)))))))))))), (IF($B$15=3,(IF(3-$B$19=0,0, (IF(3-$B$19=1,(VLOOKUP(1,Tablas!$A$1128:$G$1130,4,TRUE)), (IF(3-$B$19=2, (VLOOKUP(2,Tablas!$A$1128:$G$1130,4,TRUE)), (VLOOKUP(3,Tablas!$A$1128:$G$1130,4,TRUE)))))))), (IF($B$15=2,(IF(2-$B$19=0, 0, (IF(2-$B$19=1,(VLOOKUP(1,Tablas!$A$1128:$G$1130,4,TRUE)), (IF(2-$B$19=2, (VLOOKUP(2,Tablas!$A$1128:$G$1130,4,TRUE)), 0)))))), (IF($B$15=1,(IF(1-$B$19=0, 0, (IF(1-$B$19=1,(VLOOKUP(1,Tablas!$A$1128:$G$1130,4,TRUE)),0)))),0))))))))))))))))))) -> 2208.485895 | E57: =IF($B$17=1, (IF($B$15=0, 0, (IF($B$19>$B$15, (VLOOKUP($B$15,Tablas!$A$1128:$G$1130,5,TRUE)), (IF($B$15>4,(IF($B$19=0, (VLOOKUP(3,Tablas!$A$1128:$G$1130,5,TRUE)), (IF($B$19=1, (VLOOKUP(3,Tablas!$A$1128:$G$1130,5,TRUE)), (IF($B$19=2, (VLOOKUP(3,Tablas!$A$1128:$G$1130,5,TRUE)), (VLOOKUP(3,Tablas!$A$1128:$G$1130,5,TRUE)))))))), (IF($B$15=4,(IF(4-$B$19=0,(VLOOKUP(2,Tablas!$A$1128:$G$1130,5,TRUE)), (IF(4-$B$19=1,(VLOOKUP(2,Tablas!$A$1128:$G$1130,5,TRUE)), (IF(4-$B$19=2, (VLOOKUP(2,Tablas!$A$1128:$G$1130,5,TRUE)), (VLOOKUP(3,Tablas!$A$1128:$G$1130,5,TRUE)))))))), (IF($B$15=3,(IF(3-$B$19=0,(VLOOKUP(1,Tablas!$A$1128:$G$1130,5,TRUE)), (IF(3-$B$19=1,(VLOOKUP(1,Tablas!$A$1128:$G$1130,5,TRUE)), (IF(3-$B$19=2, (VLOOKUP(2,Tablas!$A$1128:$G$1130,5,TRUE)), (VLOOKUP(3,Tablas!$A$1128:$G$1130,5,TRUE)))))))), (IF($B$15=2,(IF(2-$B$19=0, 0, (IF(2-$B$19=1,(VLOOKUP(1,Tablas!$A$1128:$G$1130,5,TRUE)), (IF(2-$B$19=2, (VLOOKUP(2,Tablas!$A$1128:$G$1130,5,TRUE)), 0)))))), (IF($B$15=1,(IF(1-$B$19=0, 0, (IF(1-$B$19=1,(VLOOKUP(1,Tablas!$A$1128:$G$1130,5,TRUE)),0)))),0)))))))))))))), (IF($B$15=0, 0, (IF($B$19>$B$15, (VLOOKUP($B$15,Tablas!$A$1128:$G$1130,5,TRUE)), (IF($B$15=4,(IF(4-$B$19=0, 0, (IF(4-$B$19=1, (VLOOKUP(1,Tablas!$A$1128:$G$1130,5,TRUE)), (IF(4-$B$19=2, (VLOOKUP(2,Tablas!$A$1128:$G$1130,5,TRUE)), (IF(4-$B$19=3, (VLOOKUP(3,Tablas!$A$1128:$G$1130,5,TRUE)), (IF(4-$B$19=4, (VLOOKUP(3,Tablas!$A$1128:$G$1130,5,TRUE)), 0)))))))))), (IF($B$15=5,(IF(5-$B$19=0, (VLOOKUP(1,Tablas!$A$1128:$G$1130,5,TRUE)), (IF(5-$B$19=1, (VLOOKUP(1,Tablas!$A$1128:$G$1130,5,TRUE)), (IF(5-$B$19=2, (VLOOKUP(2,Tablas!$A$1128:$G$1130,5,TRUE)), (IF(5-$B$19=3, (VLOOKUP(3,Tablas!$A$1128:$G$1130,5,TRUE)), (IF(5-$B$19=4, (VLOOKUP(3,Tablas!$A$1128:$G$1130,5,TRUE)), (VLOOKUP(3,Tablas!$A$1128:$G$1130,5,TRUE)))))))))))), (IF($B$15=6,(IF(6-$B$19=0, (VLOOKUP(2,Tablas!$A$1128:$G$1130,5,TRUE)), (IF(6-$B$19=1, (VLOOKUP(2,Tablas!$A$1128:$G$1130,5,TRUE)), (IF(6-$B$19=2, (VLOOKUP(2,Tablas!$A$1128:$G$1130,5,TRUE)), (IF(6-$B$19=3, (VLOOKUP(3,Tablas!$A$1128:$G$1130,5,TRUE)), (IF(6-$B$19=4, (VLOOKUP(3,Tablas!$A$1128:$G$1130,5,TRUE)), (VLOOKUP(3,Tablas!$A$1128:$G$1130,5,TRUE)))))))))))), (IF($B$15>6,(IF(7-$B$19=0, (VLOOKUP(3,Tablas!$A$1128:$G$1130,5,TRUE)), (IF(7-$B$19=1, (VLOOKUP(3,Tablas!$A$1128:$G$1130,5,TRUE)), (IF(7-$B$19=2, (VLOOKUP(3,Tablas!$A$1128:$G$1130,5,TRUE)), (IF(7-$B$19=3, (VLOOKUP(3,Tablas!$A$1128:$G$1130,5,TRUE)), (IF(7-$B$19=4, (VLOOKUP(3,Tablas!$A$1128:$G$1130,5,TRUE)), (VLOOKUP(3,Tablas!$A$1128:$G$1130,5,TRUE)))))))))))), (IF($B$15=3,(IF(3-$B$19=0,0, (IF(3-$B$19=1,(VLOOKUP(1,Tablas!$A$1128:$G$1130,5,TRUE)), (IF(3-$B$19=2, (VLOOKUP(2,Tablas!$A$1128:$G$1130,5,TRUE)), (VLOOKUP(3,Tablas!$A$1128:$G$1130,5,TRUE)))))))), (IF($B$15=2,(IF(2-$B$19=0, 0, (IF(2-$B$19=1,(VLOOKUP(1,Tablas!$A$1128:$G$1130,5,TRUE)), (IF(2-$B$19=2, (VLOOKUP(2,Tablas!$A$1128:$G$1130,5,TRUE)), 0)))))), (IF($B$15=1,(IF(1-$B$19=0, 0, (IF(1-$B$19=1,(VLOOKUP(1,Tablas!$A$1128:$G$1130,5,TRUE)),0)))),0))))))))))))))))))) -> 0
A58: Total de Prima neta | C58: =SUM(C55:C57) ->  | D58: =SUM(D55:D57) -> 
A59: Tarifa administrativa anual | C59: =Tablas!$Y$2 -> 86 | D59: =Tablas!$Y$2 -> 86 | E59: =75*Tablas!$X$2 -> 86.205
A60: VAT (5%)
A61: ITBMS (7%)
A62: TOTAL de primera cuota | C62: =SUM(C58:C61) ->  | D62: =SUM(D58:D61) -> 
A63: Costo de tarifa trimestral 2 a 4 | C63: =C62-C59 ->  | D63: =D62-D59 ->  | E63: =(E58 + E60)+((E31+E32+E33)*0.1*0.07)/4 -> 
A64: TOTAL ANUAL | C64: =C62+(C63*3) ->  | D64: =D62+(D63*3) -> 
A65: Ahorros en tarifas de prima para Dependientes | C65: =IF($B$17=1,IF($B$15=0,0,IF($B$19=0,0,IF($B$19=1,(VLOOKUP(1,Tablas!$A$1128:$G$1130,3,TRUE)),(VLOOKUP(2,Tablas!$A$1128:$G$1130,3,TRUE))))), IF($B$15=0,0,IF($B$19=0,0,IF($B$19=1,(VLOOKUP(1,Tablas!$A$1128:$G$1130,3,TRUE)),IF($B$19=2,(VLOOKUP(2,Tablas!$A$1128:$G$1130,3,TRUE)), (VLOOKUP(3,Tablas!$A$1128:$G$1130,3,TRUE))))))) -> 3421.620125 | D65: =IF($B$17=1,IF($B$15=0,0,IF($B$19=0,0,IF($B$19=1,(VLOOKUP(1,Tablas!$A$1128:$G$1130,4,TRUE)),(VLOOKUP(2,Tablas!$A$1128:$G$1130,4,TRUE))))), IF($B$15=0,0,IF($B$19=0,0,IF($B$19=1,(VLOOKUP(1,Tablas!$A$1128:$G$1130,4,TRUE)),IF($B$19=2,(VLOOKUP(2,Tablas!$A$1128:$G$1130,4,TRUE)), (VLOOKUP(3,Tablas!$A$1128:$G$1130,4,TRUE))))))) -> 2208.485895 | E65: =IF($B$17=1,IF($B$15=0,0,IF($B$19=0,0,IF($B$19=1,(VLOOKUP(1,Tablas!$A$1128:$G$1130,5,TRUE)),(VLOOKUP(2,Tablas!$A$1128:$G$1130,5,TRUE))))), IF($B$15=0,0,IF($B$19=0,0,IF($B$19=1,(VLOOKUP(1,Tablas!$A$1128:$G$1130,5,TRUE)),IF($B$19=2,(VLOOKUP(2,Tablas!$A$1128:$G$1130,5,TRUE)), (VLOOKUP(3,Tablas!$A$1128:$G$1130,5,TRUE))))))) -> 0
A67: TARIFAS MENSUALES
A68: Prima para Asegurado Titular | C68: =VLOOKUP($B$21,Tablas!$A$986:$G$1052,3,TRUE) -> 3302.854539 | D68: =VLOOKUP($B$21,Tablas!$A$986:$G$1052,4,TRUE) -> 2131.386059 | E68: =VLOOKUP($B$21,Tablas!$A$986:$G$1052,5,TRUE) -> 0
A69: Prima para conyuge | C69: =IF($B$17=1,0,(VLOOKUP($D$21,Tablas!$A$986:$G$1052,3,TRUE))) ->  | D69: =IF($B$17=1,0,(VLOOKUP($D$21,Tablas!$A$986:$G$1052,4,TRUE))) ->  | E69: =IF($B$17=1,0,(VLOOKUP($D$21,Tablas!$A$986:$G$1052,5,TRUE))) -> 
A70: Prima para hijo (s) | C70: =IF($B$17=1, (IF($B$15=0, 0, (IF($B$19>$B$15, (VLOOKUP($B$15,Tablas!$A$1053:$G$1055,3,TRUE)), (IF($B$15>4,(IF($B$19=0, (VLOOKUP(3,Tablas!$A$1053:$G$1055,3,TRUE)), (IF($B$19=1, (VLOOKUP(3,Tablas!$A$1053:$G$1055,3,TRUE)), (IF($B$19=2, (VLOOKUP(3,Tablas!$A$1053:$G$1055,3,TRUE)), (VLOOKUP(3,Tablas!$A$1053:$G$1055,3,TRUE)))))))), (IF($B$15=4,(IF(4-$B$19=0,(VLOOKUP(2,Tablas!$A$1053:$G$1055,3,TRUE)), (IF(4-$B$19=1,(VLOOKUP(2,Tablas!$A$1053:$G$1055,3,TRUE)), (IF(4-$B$19=2, (VLOOKUP(2,Tablas!$A$1053:$G$1055,3,TRUE)), (VLOOKUP(3,Tablas!$A$1053:$G$1055,3,TRUE)))))))), (IF($B$15=3,(IF(3-$B$19=0,(VLOOKUP(1,Tablas!$A$1053:$G$1055,3,TRUE)), (IF(3-$B$19=1,(VLOOKUP(1,Tablas!$A$1053:$G$1055,3,TRUE)), (IF(3-$B$19=2, (VLOOKUP(2,Tablas!$A$1053:$G$1055,3,TRUE)), (VLOOKUP(3,Tablas!$A$1053:$G$1055,3,TRUE)))))))), (IF($B$15=2,(IF(2-$B$19=0, 0, (IF(2-$B$19=1,(VLOOKUP(1,Tablas!$A$1053:$G$1055,3,TRUE)), (IF(2-$B$19=2, (VLOOKUP(2,Tablas!$A$1053:$G$1055,3,TRUE)), 0)))))), (IF($B$15=1,(IF(1-$B$19=0, 0, (IF(1-$B$19=1,(VLOOKUP(1,Tablas!$A$1053:$G$1055,3,TRUE)),0)))),0)))))))))))))), (IF($B$15=0, 0, (IF($B$19>$B$15, (VLOOKUP($B$15,Tablas!$A$1053:$G$1055,3,TRUE)), (IF($B$15=4,(IF(4-$B$19=0, 0, (IF(4-$B$19=1, (VLOOKUP(1,Tablas!$A$1053:$G$1055,3,TRUE)), (IF(4-$B$19=2, (VLOOKUP(2,Tablas!$A$1053:$G$1055,3,TRUE)), (IF(4-$B$19=3, (VLOOKUP(3,Tablas!$A$1053:$G$1055,3,TRUE)), (IF(4-$B$19=4, (VLOOKUP(3,Tablas!$A$1053:$G$1055,3,TRUE)), 0)))))))))), (IF($B$15=5,(IF(5-$B$19=0, (VLOOKUP(1,Tablas!$A$1053:$G$1055,3,TRUE)), (IF(5-$B$19=1, (VLOOKUP(1,Tablas!$A$1053:$G$1055,3,TRUE)), (IF(5-$B$19=2, (VLOOKUP(2,Tablas!$A$1053:$G$1055,3,TRUE)), (IF(5-$B$19=3, (VLOOKUP(3,Tablas!$A$1053:$G$1055,3,TRUE)), (IF(5-$B$19=4, (VLOOKUP(3,Tablas!$A$1053:$G$1055,3,TRUE)), (VLOOKUP(3,Tablas!$A$1053:$G$1055,3,TRUE)))))))))))), (IF($B$15=6,(IF(6-$B$19=0, (VLOOKUP(2,Tablas!$A$1053:$G$1055,3,TRUE)), (IF(6-$B$19=1, (VLOOKUP(2,Tablas!$A$1053:$G$1055,3,TRUE)), (IF(6-$B$19=2, (VLOOKUP(2,Tablas!$A$1053:$G$1055,3,TRUE)), (IF(6-$B$19=3, (VLOOKUP(3,Tablas!$A$1053:$G$1055,3,TRUE)), (IF(6-$B$19=4, (VLOOKUP(3,Tablas!$A$1053:$G$1055,3,TRUE)), (VLOOKUP(3,Tablas!$A$1053:$G$1055,3,TRUE)))))))))))), (IF($B$15>6,(IF(7-$B$19=0, (VLOOKUP(3,Tablas!$A$1053:$G$1055,3,TRUE)), (IF(7-$B$19=1, (VLOOKUP(3,Tablas!$A$1053:$G$1055,3,TRUE)), (IF(7-$B$19=2, (VLOOKUP(3,Tablas!$A$1053:$G$1055,3,TRUE)), (IF(7-$B$19=3, (VLOOKUP(3,Tablas!$A$1053:$G$1055,3,TRUE)), (IF(7-$B$19=4, (VLOOKUP(3,Tablas!$A$1053:$G$1055,3,TRUE)), (VLOOKUP(3,Tablas!$A$1053:$G$1055,3,TRUE)))))))))))), (IF($B$15=3,(IF(3-$B$19=0,0, (IF(3-$B$19=1,(VLOOKUP(1,Tablas!$A$1053:$G$1055,3,TRUE)), (IF(3-$B$19=2, (VLOOKUP(2,Tablas!$A$1053:$G$1055,3,TRUE)), (VLOOKUP(3,Tablas!$A$1053:$G$1055,3,TRUE)))))))), (IF($B$15=2,(IF(2-$B$19=0, 0, (IF(2-$B$19=1,(VLOOKUP(1,Tablas!$A$1053:$G$1055,3,TRUE)), (IF(2-$B$19=2, (VLOOKUP(2,Tablas!$A$1053:$G$1055,3,TRUE)), 0)))))), (IF($B$15=1,(IF(1-$B$19=0, 0, (IF(1-$B$19=1,(VLOOKUP(1,Tablas!$A$1053:$G$1055,3,TRUE)),0)))),0))))))))))))))))))) -> 1161.277133 | D70: =IF($B$17=1, (IF($B$15=0, 0, (IF($B$19>$B$15, (VLOOKUP($B$15,Tablas!$A$1053:$G$1055,4,TRUE)), (IF($B$15>4,(IF($B$19=0, (VLOOKUP(3,Tablas!$A$1053:$G$1055,4,TRUE)), (IF($B$19=1, (VLOOKUP(3,Tablas!$A$1053:$G$1055,4,TRUE)), (IF($B$19=2, (VLOOKUP(3,Tablas!$A$1053:$G$1055,4,TRUE)), (VLOOKUP(3,Tablas!$A$1053:$G$1055,4,TRUE)))))))), (IF($B$15=4,(IF(4-$B$19=0,(VLOOKUP(2,Tablas!$A$1053:$G$1055,4,TRUE)), (IF(4-$B$19=1,(VLOOKUP(2,Tablas!$A$1053:$G$1055,4,TRUE)), (IF(4-$B$19=2, (VLOOKUP(2,Tablas!$A$1053:$G$1055,4,TRUE)), (VLOOKUP(3,Tablas!$A$1053:$G$1055,4,TRUE)))))))), (IF($B$15=3,(IF(3-$B$19=0,(VLOOKUP(1,Tablas!$A$1053:$G$1055,4,TRUE)), (IF(3-$B$19=1,(VLOOKUP(1,Tablas!$A$1053:$G$1055,4,TRUE)), (IF(3-$B$19=2, (VLOOKUP(2,Tablas!$A$1053:$G$1055,4,TRUE)), (VLOOKUP(3,Tablas!$A$1053:$G$1055,4,TRUE)))))))), (IF($B$15=2,(IF(2-$B$19=0, 0, (IF(2-$B$19=1,(VLOOKUP(1,Tablas!$A$1053:$G$1055,4,TRUE)), (IF(2-$B$19=2, (VLOOKUP(2,Tablas!$A$1053:$G$1055,4,TRUE)), 0)))))), (IF($B$15=1,(IF(1-$B$19=0, 0, (IF(1-$B$19=1,(VLOOKUP(1,Tablas!$A$1053:$G$1055,4,TRUE)),0)))),0)))))))))))))), (IF($B$15=0, 0, (IF($B$19>$B$15, (VLOOKUP($B$15,Tablas!$A$1053:$G$1055,4,TRUE)), (IF($B$15=4,(IF(4-$B$19=0, 0, (IF(4-$B$19=1, (VLOOKUP(1,Tablas!$A$1053:$G$1055,4,TRUE)), (IF(4-$B$19=2, (VLOOKUP(2,Tablas!$A$1053:$G$1055,4,TRUE)), (IF(4-$B$19=3, (VLOOKUP(3,Tablas!$A$1053:$G$1055,4,TRUE)), (IF(4-$B$19=4, (VLOOKUP(3,Tablas!$A$1053:$G$1055,4,TRUE)), 0)))))))))), (IF($B$15=5,(IF(5-$B$19=0, (VLOOKUP(1,Tablas!$A$1053:$G$1055,4,TRUE)), (IF(5-$B$19=1, (VLOOKUP(1,Tablas!$A$1053:$G$1055,4,TRUE)), (IF(5-$B$19=2, (VLOOKUP(2,Tablas!$A$1053:$G$1055,4,TRUE)), (IF(5-$B$19=3, (VLOOKUP(3,Tablas!$A$1053:$G$1055,4,TRUE)), (IF(5-$B$19=4, (VLOOKUP(3,Tablas!$A$1053:$G$1055,4,TRUE)), (VLOOKUP(3,Tablas!$A$1053:$G$1055,4,TRUE)))))))))))), (IF($B$15=6,(IF(6-$B$19=0, (VLOOKUP(2,Tablas!$A$1053:$G$1055,4,TRUE)), (IF(6-$B$19=1, (VLOOKUP(2,Tablas!$A$1053:$G$1055,4,TRUE)), (IF(6-$B$19=2, (VLOOKUP(2,Tablas!$A$1053:$G$1055,4,TRUE)), (IF(6-$B$19=3, (VLOOKUP(3,Tablas!$A$1053:$G$1055,4,TRUE)), (IF(6-$B$19=4, (VLOOKUP(3,Tablas!$A$1053:$G$1055,4,TRUE)), (VLOOKUP(3,Tablas!$A$1053:$G$1055,4,TRUE)))))))))))), (IF($B$15>6,(IF(7-$B$19=0, (VLOOKUP(3,Tablas!$A$1053:$G$1055,4,TRUE)), (IF(7-$B$19=1, (VLOOKUP(3,Tablas!$A$1053:$G$1055,4,TRUE)), (IF(7-$B$19=2, (VLOOKUP(3,Tablas!$A$1053:$G$1055,4,TRUE)), (IF(7-$B$19=3, (VLOOKUP(3,Tablas!$A$1053:$G$1055,4,TRUE)), (IF(7-$B$19=4, (VLOOKUP(3,Tablas!$A$1053:$G$1055,4,TRUE)), (VLOOKUP(3,Tablas!$A$1053:$G$1055,4,TRUE)))))))))))), (IF($B$15=3,(IF(3-$B$19=0,0, (IF(3-$B$19=1,(VLOOKUP(1,Tablas!$A$1053:$G$1055,4,TRUE)), (IF(3-$B$19=2, (VLOOKUP(2,Tablas!$A$1053:$G$1055,4,TRUE)), (VLOOKUP(3,Tablas!$A$1053:$G$1055,4,TRUE)))))))), (IF($B$15=2,(IF(2-$B$19=0, 0, (IF(2-$B$19=1,(VLOOKUP(1,Tablas!$A$1053:$G$1055,4,TRUE)), (IF(2-$B$19=2, (VLOOKUP(2,Tablas!$A$1053:$G$1055,4,TRUE)), 0)))))), (IF($B$15=1,(IF(1-$B$19=0, 0, (IF(1-$B$19=1,(VLOOKUP(1,Tablas!$A$1053:$G$1055,4,TRUE)),0)))),0))))))))))))))))))) -> 749.546728 | E70: =IF($B$17=1, (IF($B$15=0, 0, (IF($B$19>$B$15, (VLOOKUP($B$15,Tablas!$A$1053:$G$1055,5,TRUE)), (IF($B$15>4,(IF($B$19=0, (VLOOKUP(3,Tablas!$A$1053:$G$1055,5,TRUE)), (IF($B$19=1, (VLOOKUP(3,Tablas!$A$1053:$G$1055,5,TRUE)), (IF($B$19=2, (VLOOKUP(3,Tablas!$A$1053:$G$1055,5,TRUE)), (VLOOKUP(3,Tablas!$A$1053:$G$1055,5,TRUE)))))))), (IF($B$15=4,(IF(4-$B$19=0,(VLOOKUP(2,Tablas!$A$1053:$G$1055,5,TRUE)), (IF(4-$B$19=1,(VLOOKUP(2,Tablas!$A$1053:$G$1055,5,TRUE)), (IF(4-$B$19=2, (VLOOKUP(2,Tablas!$A$1053:$G$1055,5,TRUE)), (VLOOKUP(3,Tablas!$A$1053:$G$1055,5,TRUE)))))))), (IF($B$15=3,(IF(3-$B$19=0,(VLOOKUP(1,Tablas!$A$1053:$G$1055,5,TRUE)), (IF(3-$B$19=1,(VLOOKUP(1,Tablas!$A$1053:$G$1055,5,TRUE)), (IF(3-$B$19=2, (VLOOKUP(2,Tablas!$A$1053:$G$1055,5,TRUE)), (VLOOKUP(3,Tablas!$A$1053:$G$1055,5,TRUE)))))))), (IF($B$15=2,(IF(2-$B$19=0, 0, (IF(2-$B$19=1,(VLOOKUP(1,Tablas!$A$1053:$G$1055,5,TRUE)), (IF(2-$B$19=2, (VLOOKUP(2,Tablas!$A$1053:$G$1055,5,TRUE)), 0)))))), (IF($B$15=1,(IF(1-$B$19=0, 0, (IF(1-$B$19=1,(VLOOKUP(1,Tablas!$A$1053:$G$1055,5,TRUE)),0)))),0)))))))))))))), (IF($B$15=0, 0, (IF($B$19>$B$15, (VLOOKUP($B$15,Tablas!$A$1053:$G$1055,5,TRUE)), (IF($B$15=4,(IF(4-$B$19=0, 0, (IF(4-$B$19=1, (VLOOKUP(1,Tablas!$A$1053:$G$1055,5,TRUE)), (IF(4-$B$19=2, (VLOOKUP(2,Tablas!$A$1053:$G$1055,5,TRUE)), (IF(4-$B$19=3, (VLOOKUP(3,Tablas!$A$1053:$G$1055,5,TRUE)), (IF(4-$B$19=4, (VLOOKUP(3,Tablas!$A$1053:$G$1055,5,TRUE)), 0)))))))))), (IF($B$15=5,(IF(5-$B$19=0, (VLOOKUP(1,Tablas!$A$1053:$G$1055,5,TRUE)), (IF(5-$B$19=1, (VLOOKUP(1,Tablas!$A$1053:$G$1055,5,TRUE)), (IF(5-$B$19=2, (VLOOKUP(2,Tablas!$A$1053:$G$1055,5,TRUE)), (IF(5-$B$19=3, (VLOOKUP(3,Tablas!$A$1053:$G$1055,5,TRUE)), (IF(5-$B$19=4, (VLOOKUP(3,Tablas!$A$1053:$G$1055,5,TRUE)), (VLOOKUP(3,Tablas!$A$1053:$G$1055,5,TRUE)))))))))))), (IF($B$15=6,(IF(6-$B$19=0, (VLOOKUP(2,Tablas!$A$1053:$G$1055,5,TRUE)), (IF(6-$B$19=1, (VLOOKUP(2,Tablas!$A$1053:$G$1055,5,TRUE)), (IF(6-$B$19=2, (VLOOKUP(2,Tablas!$A$1053:$G$1055,5,TRUE)), (IF(6-$B$19=3, (VLOOKUP(3,Tablas!$A$1053:$G$1055,5,TRUE)), (IF(6-$B$19=4, (VLOOKUP(3,Tablas!$A$1053:$G$1055,5,TRUE)), (VLOOKUP(3,Tablas!$A$1053:$G$1055,5,TRUE)))))))))))), (IF($B$15>6,(IF(7-$B$19=0, (VLOOKUP(3,Tablas!$A$1053:$G$1055,5,TRUE)), (IF(7-$B$19=1, (VLOOKUP(3,Tablas!$A$1053:$G$1055,5,TRUE)), (IF(7-$B$19=2, (VLOOKUP(3,Tablas!$A$1053:$G$1055,5,TRUE)), (IF(7-$B$19=3, (VLOOKUP(3,Tablas!$A$1053:$G$1055,5,TRUE)), (IF(7-$B$19=4, (VLOOKUP(3,Tablas!$A$1053:$G$1055,5,TRUE)), (VLOOKUP(3,Tablas!$A$1053:$G$1055,5,TRUE)))))))))))), (IF($B$15=3,(IF(3-$B$19=0,0, (IF(3-$B$19=1,(VLOOKUP(1,Tablas!$A$1053:$G$1055,5,TRUE)), (IF(3-$B$19=2, (VLOOKUP(2,Tablas!$A$1053:$G$1055,5,TRUE)), (VLOOKUP(3,Tablas!$A$1053:$G$1055,5,TRUE)))))))), (IF($B$15=2,(IF(2-$B$19=0, 0, (IF(2-$B$19=1,(VLOOKUP(1,Tablas!$A$1053:$G$1055,5,TRUE)), (IF(2-$B$19=2, (VLOOKUP(2,Tablas!$A$1053:$G$1055,5,TRUE)), 0)))))), (IF($B$15=1,(IF(1-$B$19=0, 0, (IF(1-$B$19=1,(VLOOKUP(1,Tablas!$A$1053:$G$1055,5,TRUE)),0)))),0))))))))))))))))))) -> 0
A71: Total de Prima neta | C71: =SUM(C68:C70) ->  | D71: =SUM(D68:D70) -> 
A72: Tarifa administrativa anual | C72: =Tablas!$Y$2 -> 86 | D72: =Tablas!$Y$2 -> 86 | E72: =75*Tablas!$X$2 -> 86.205
A73: VAT (5%)
A74: ITBMS (7%)
A75: TOTAL de primera cuota | C75: =SUM(C71:C74) ->  | D75: =SUM(D71:D74) -> 
A76: Costo de Tarifa mensual de 2 a 12 | C76: =C75-C72 ->  | D76: =D75-D72 ->  | E76: =(E71 + E73)+((E31+E32+E33)*0.12*0.07)/12 -> 
A77: TOTAL ANUAL | C77: =C75+(C76*11) ->  | D77: =D75+(D76*11) -> 
A78: Ahorros en tarifas de prima para Dependientes | C78: =IF($B$17=1,IF($B$15=0,0,IF($B$19=0,0,IF($B$19=1,(VLOOKUP(1,Tablas!$A$1053:$G$1055,3,TRUE)),(VLOOKUP(2,Tablas!$A$1053:$G$1055,3,TRUE))))), IF($B$15=0,0,IF($B$19=0,0,IF($B$19=1,(VLOOKUP(1,Tablas!$A$1053:$G$1055,3,TRUE)),IF($B$19=2,(VLOOKUP(2,Tablas!$A$1053:$G$1055,3,TRUE)), (VLOOKUP(3,Tablas!$A$1053:$G$1055,3,TRUE))))))) -> 1161.277133 | D78: =IF($B$17=1,IF($B$15=0,0,IF($B$19=0,0,IF($B$19=1,(VLOOKUP(1,Tablas!$A$1053:$G$1055,4,TRUE)),(VLOOKUP(2,Tablas!$A$1053:$G$1055,4,TRUE))))), IF($B$15=0,0,IF($B$19=0,0,IF($B$19=1,(VLOOKUP(1,Tablas!$A$1053:$G$1055,4,TRUE)),IF($B$19=2,(VLOOKUP(2,Tablas!$A$1053:$G$1055,4,TRUE)), (VLOOKUP(3,Tablas!$A$1053:$G$1055,4,TRUE))))))) -> 749.546728 | E78: =IF($B$17=1,IF($B$15=0,0,IF($B$19=0,0,IF($B$19=1,(VLOOKUP(1,Tablas!$A$1053:$G$1055,5,TRUE)),(VLOOKUP(2,Tablas!$A$1053:$G$1055,5,TRUE))))), IF($B$15=0,0,IF($B$19=0,0,IF($B$19=1,(VLOOKUP(1,Tablas!$A$1053:$G$1055,5,TRUE)),IF($B$19=2,(VLOOKUP(2,Tablas!$A$1053:$G$1055,5,TRUE)), (VLOOKUP(3,Tablas!$A$1053:$G$1055,5,TRUE))))))) -> 0
A80: Este presupuesto solamente tiene carácter informativo y en ningún momento expresa compromiso legal para suministrarle cobertura de seguro. La emisión de una póliza de seguro Bupa está sujeta a todas las evaluaciones de riesgo por parte de Bupa y a la recepción de todos los pagos de prima requeridos.

Sheet Global Elite
K1: RESUMEN DE BENEFICIOS | Z1: RESUMEN DE BENEFICIOS | AO1: RESUMEN DE BENEFICIOS
A5: Cotización de Seguro Médico Internacional Global Elite Health Plan Tarifas en US$ | Validas: 1 de enero de 2024
A13: Nombre del Asegurado Titular | B13: =+'INGRESO DE DATOS'!$C$37 -> John Doe
A15: Número de adultos en la póliza | B15: =+'INGRESO DE DATOS'!$C$39 -> 2
A17: Número de Dependientes en la póliza | B17: =+'INGRESO DE DATOS'!$C$41 -> 2 | C17: =IF('INGRESO DE DATOS'!$P$2=TRUE, "Cotización para dependiente de 24 años","") -> 
A19: Número de Dependientes menores de 10 años | B19: =+'INGRESO DE DATOS'!$H$42 -> 1
A21: Edad del Asegurado Titular | B21: =+'INGRESO DE DATOS'!$C$43 -> 32 | E21: Edad del/la conyuge | G21: =+'INGRESO DE DATOS'!$C$45 ->  | L21: FALSE | AA21: FALSE | AP21: FALSE
A23: Fecha de la cotización | B23: =NOW() -> 2024-01-09T15:08:58.210
A25: =IF('INGRESO DE DATOS'!P3=TRUE,"Variante con coaseguro fuera del país de residencia: SI","Variante con coaseguro fuera del país de residencia: NO") -> Variante con coaseguro fuera del país de residencia: NO
A27: DEDUCIBlES | C27: PLAN 1 | D27: PLAN 2 | E27: PLAN 3 | F27: PLAN 4 | G27: PLAN 5
A28: En el país de residencia | C28: 250 | D28: 2000 | E28: 3500 | F28: 5000 | G28: 10000
A29: Fuera del país de residencia | C29: 5000 | D29: 2000 | E29: 3500 | F29: 5000 | G29: 10000
A31: TARIFAS ANUALES
A32: Prima para Asegurado Titular | C32: =VLOOKUP($B$21,Tablas!$A$6:$G$72,3,TRUE) -> 12881.61315 | D32: =VLOOKUP($B$21,Tablas!$A$6:$G$72,4,TRUE) -> 11291.07343 | E32: =VLOOKUP($B$21,Tablas!$A$6:$G$72,5,TRUE) -> 9253.07229 | F32: =VLOOKUP($B$21,Tablas!$A$6:$G$72,6,TRUE) -> 8022.06489 | G32: =VLOOKUP($B$21,Tablas!$A$6:$G$72,7,TRUE) -> 6111.07245
A33: Prima para conyuge | C33: =IF($B$15=1,0,(VLOOKUP($G$21,Tablas!$A$6:$G$72,3,TRUE))) ->  | D33: =IF($B$15=1,0,(VLOOKUP($G$21,Tablas!$A$6:$G$72,4,TRUE))) ->  | E33: =IF($B$15=1,0,(VLOOKUP($G$21,Tablas!$A$6:$G$72,5,TRUE))) ->  | F33: =IF($B$15=1,0,(VLOOKUP($G$21,Tablas!$A$6:$G$72,6,TRUE))) ->  | G33: =IF($B$15=1,0,(VLOOKUP($G$21,Tablas!$A$6:$G$72,7,TRUE))) -> 
A34: Prima para hijo (s) | C34: =IF($B$15=1, (IF($B$17=0, 0, (IF($B$19>$B$17, (VLOOKUP($B$17,Tablas!$A$73:$G$75,3,TRUE)), (IF($B$17>4,(IF($B$19=0, (VLOOKUP(3,Tablas!$A$73:$G$75,3,TRUE)), (IF($B$19=1, (VLOOKUP(3,Tablas!$A$73:$G$75,3,TRUE)), (IF($B$19=2, (VLOOKUP(3,Tablas!$A$73:$G$75,3,TRUE)), (VLOOKUP(3,Tablas!$A$73:$G$75,3,TRUE)))))))), (IF($B$17=4,(IF(4-$B$19=0,(VLOOKUP(2,Tablas!$A$73:$G$75,3,TRUE)), (IF(4-$B$19=1,(VLOOKUP(2,Tablas!$A$73:$G$75,3,TRUE)), (IF(4-$B$19=2, (VLOOKUP(2,Tablas!$A$73:$G$75,3,TRUE)), (VLOOKUP(3,Tablas!$A$73:$G$75,3,TRUE)))))))), (IF($B$17=3,(IF(3-$B$19=0,(VLOOKUP(1,Tablas!$A$73:$G$75,3,TRUE)), (IF(3-$B$19=1,(VLOOKUP(1,Tablas!$A$73:$G$75,3,TRUE)), (IF(3-$B$19=2, (VLOOKUP(2,Tablas!$A$73:$G$75,3,TRUE)), (VLOOKUP(3,Tablas!$A$73:$G$75,3,TRUE)))))))), (IF($B$17=2,(IF(2-$B$19=0, 0, (IF(2-$B$19=1,(VLOOKUP(1,Tablas!$A$73:$G$75,3,TRUE)), (IF(2-$B$19=2, (VLOOKUP(2,Tablas!$A$73:$G$75,3,TRUE)), 0)))))), (IF($B$17=1,(IF(1-$B$19=0, 0, (IF(1-$B$19=1,(VLOOKUP(1,Tablas!$A$73:$G$75,3,TRUE)),0)))),0)))))))))))))), (IF($B$17=0, 0, (IF($B$19>$B$17, (VLOOKUP($B$17,Tablas!$A$73:$G$75,3,TRUE)), (IF($B$17=4,(IF(4-$B$19=0, 0, (IF(4-$B$19=1, (VLOOKUP(1,Tablas!$A$73:$G$75,3,TRUE)), (IF(4-$B$19=2, (VLOOKUP(2,Tablas!$A$73:$G$75,3,TRUE)), (IF(4-$B$19=3, (VLOOKUP(3,Tablas!$A$73:$G$75,3,TRUE)), (IF(4-$B$19=4, (VLOOKUP(3,Tablas!$A$73:$G$75,3,TRUE)), 0)))))))))), (IF($B$17=5,(IF(5-$B$19=0, (VLOOKUP(1,Tablas!$A$73:$G$75,3,TRUE)), (IF(5-$B$19=1, (VLOOKUP(1,Tablas!$A$73:$G$75,3,TRUE)), (IF(5-$B$19=2, (VLOOKUP(2,Tablas!$A$73:$G$75,3,TRUE)), (IF(5-$B$19=3, (VLOOKUP(3,Tablas!$A$73:$G$75,3,TRUE)), (IF(5-$B$19=4, (VLOOKUP(3,Tablas!$A$73:$G$75,3,TRUE)), (VLOOKUP(3,Tablas!$A$73:$G$75,3,TRUE)))))))))))), (IF($B$17=6,(IF(6-$B$19=0, (VLOOKUP(2,Tablas!$A$73:$G$75,3,TRUE)), (IF(6-$B$19=1, (VLOOKUP(2,Tablas!$A$73:$G$75,3,TRUE)), (IF(6-$B$19=2, (VLOOKUP(2,Tablas!$A$73:$G$75,3,TRUE)), (IF(6-$B$19=3, (VLOOKUP(3,Tablas!$A$73:$G$75,3,TRUE)), (IF(6-$B$19=4, (VLOOKUP(3,Tablas!$A$73:$G$75,3,TRUE)), (VLOOKUP(3,Tablas!$A$73:$G$75,3,TRUE)))))))))))), (IF($B$17>6,(IF(7-$B$19=0, (VLOOKUP(3,Tablas!$A$73:$G$75,3,TRUE)), (IF(7-$B$19=1, (VLOOKUP(3,Tablas!$A$73:$G$75,3,TRUE)), (IF(7-$B$19=2, (VLOOKUP(3,Tablas!$A$73:$G$75,3,TRUE)), (IF(7-$B$19=3, (VLOOKUP(3,Tablas!$A$73:$G$75,3,TRUE)), (IF(7-$B$19=4, (VLOOKUP(3,Tablas!$A$73:$G$75,3,TRUE)), (VLOOKUP(3,Tablas!$A$73:$G$75,3,TRUE)))))))))))), (IF($B$17=3,(IF(3-$B$19=0,0, (IF(3-$B$19=1,(VLOOKUP(1,Tablas!$A$73:$G$75,3,TRUE)), (IF(3-$B$19=2, (VLOOKUP(2,Tablas!$A$73:$G$75,3,TRUE)), (VLOOKUP(3,Tablas!$A$73:$G$75,3,TRUE)))))))), (IF($B$17=2,(IF(2-$B$19=0, 0, (IF(2-$B$19=1,(VLOOKUP(1,Tablas!$A$73:$G$75,3,TRUE)), (IF(2-$B$19=2, (VLOOKUP(2,Tablas!$A$73:$G$75,3,TRUE)), 0)))))), (IF($B$17=1,(IF(1-$B$19=0, 0, (IF(1-$B$19=1,(VLOOKUP(1,Tablas!$A$73:$G$75,3,TRUE)),0)))),0))))))))))))))))))) -> 4584.03708 | D34: =IF($B$15=1, (IF($B$17=0, 0, (IF($B$19>$B$17, (VLOOKUP($B$17,Tablas!$A$73:$G$75,4,TRUE)), (IF($B$17>4,(IF($B$19=0, (VLOOKUP(3,Tablas!$A$73:$G$75,4,TRUE)), (IF($B$19=1, (VLOOKUP(3,Tablas!$A$73:$G$75,4,TRUE)), (IF($B$19=2, (VLOOKUP(3,Tablas!$A$73:$G$75,4,TRUE)), (VLOOKUP(3,Tablas!$A$73:$G$75,4,TRUE)))))))), (IF($B$17=4,(IF(4-$B$19=0,(VLOOKUP(2,Tablas!$A$73:$G$75,4,TRUE)), (IF(4-$B$19=1,(VLOOKUP(2,Tablas!$A$73:$G$75,4,TRUE)), (IF(4-$B$19=2, (VLOOKUP(2,Tablas!$A$73:$G$75,4,TRUE)), (VLOOKUP(3,Tablas!$A$73:$G$75,4,TRUE)))))))), (IF($B$17=3,(IF(3-$B$19=0,(VLOOKUP(1,Tablas!$A$73:$G$75,4,TRUE)), (IF(3-$B$19=1,(VLOOKUP(1,Tablas!$A$73:$G$75,4,TRUE)), (IF(3-$B$19=2, (VLOOKUP(2,Tablas!$A$73:$G$75,4,TRUE)), (VLOOKUP(3,Tablas!$A$73:$G$75,4,TRUE)))))))), (IF($B$17=2,(IF(2-$B$19=0, 0, (IF(2-$B$19=1,(VLOOKUP(1,Tablas!$A$73:$G$75,4,TRUE)), (IF(2-$B$19=2, (VLOOKUP(2,Tablas!$A$73:$G$75,4,TRUE)), 0)))))), (IF($B$17=1,(IF(1-$B$19=0, 0, (IF(1-$B$19=1,(VLOOKUP(1,Tablas!$A$73:$G$75,4,TRUE)),0)))),0)))))))))))))), (IF($B$17=0, 0, (IF($B$19>$B$17, (VLOOKUP($B$17,Tablas!$A$73:$G$75,4,TRUE)), (IF($B$17=4,(IF(4-$B$19=0, 0, (IF(4-$B$19=1, (VLOOKUP(1,Tablas!$A$73:$G$75,4,TRUE)), (IF(4-$B$19=2, (VLOOKUP(2,Tablas!$A$73:$G$75,4,TRUE)), (IF(4-$B$19=3, (VLOOKUP(3,Tablas!$A$73:$G$75,4,TRUE)), (IF(4-$B$19=4, (VLOOKUP(3,Tablas!$A$73:$G$75,4,TRUE)), 0)))))))))), (IF($B$17=5,(IF(5-$B$19=0, (VLOOKUP(1,Tablas!$A$73:$G$75,4,TRUE)), (IF(5-$B$19=1, (VLOOKUP(1,Tablas!$A$73:$G$75,4,TRUE)), (IF(5-$B$19=2, (VLOOKUP(2,Tablas!$A$73:$G$75,4,TRUE)), (IF(5-$B$19=3, (VLOOKUP(3,Tablas!$A$73:$G$75,4,TRUE)), (IF(5-$B$19=4, (VLOOKUP(3,Tablas!$A$73:$G$75,4,TRUE)), (VLOOKUP(3,Tablas!$A$73:$G$75,4,TRUE)))))))))))), (IF($B$17=6,(IF(6-$B$19=0, (VLOOKUP(2,Tablas!$A$73:$G$75,4,TRUE)), (IF(6-$B$19=1, (VLOOKUP(2,Tablas!$A$73:$G$75,4,TRUE)), (IF(6-$B$19=2, (VLOOKUP(2,Tablas!$A$73:$G$75,4,TRUE)), (IF(6-$B$19=3, (VLOOKUP(3,Tablas!$A$73:$G$75,4,TRUE)), (IF(6-$B$19=4, (VLOOKUP(3,Tablas!$A$73:$G$75,4,TRUE)), (VLOOKUP(3,Tablas!$A$73:$G$75,4,TRUE)))))))))))), (IF($B$17>6,(IF(7-$B$19=0, (VLOOKUP(3,Tablas!$A$73:$G$75,4,TRUE)), (IF(7-$B$19=1, (VLOOKUP(3,Tablas!$A$73:$G$75,4,TRUE)), (IF(7-$B$19=2, (VLOOKUP(3,Tablas!$A$73:$G$75,4,TRUE)), (IF(7-$B$19=3, (VLOOKUP(3,Tablas!$A$73:$G$75,4,TRUE)), (IF(7-$B$19=4, (VLOOKUP(3,Tablas!$A$73:$G$75,4,TRUE)), (VLOOKUP(3,Tablas!$A$73:$G$75,4,TRUE)))))))))))), (IF($B$17=3,(IF(3-$B$19=0,0, (IF(3-$B$19=1,(VLOOKUP(1,Tablas!$A$73:$G$75,4,TRUE)), (IF(3-$B$19=2, (VLOOKUP(2,Tablas!$A$73:$G$75,4,TRUE)), (VLOOKUP(3,Tablas!$A$73:$G$75,4,TRUE)))))))), (IF($B$17=2,(IF(2-$B$19=0, 0, (IF(2-$B$19=1,(VLOOKUP(1,Tablas!$A$73:$G$75,4,TRUE)), (IF(2-$B$19=2, (VLOOKUP(2,Tablas!$A$73:$G$75,4,TRUE)), 0)))))), (IF($B$17=1,(IF(1-$B$19=0, 0, (IF(1-$B$19=1,(VLOOKUP(1,Tablas!$A$73:$G$75,4,TRUE)),0)))),0))))))))))))))))))) -> 4018.35987 | E34: =IF($B$15=1, (IF($B$17=0, 0, (IF($B$19>$B$17, (VLOOKUP($B$17,Tablas!$A$73:$G$75,5,TRUE)), (IF($B$17>4,(IF($B$19=0, (VLOOKUP(3,Tablas!$A$73:$G$75,5,TRUE)), (IF($B$19=1, (VLOOKUP(3,Tablas!$A$73:$G$75,5,TRUE)), (IF($B$19=2, (VLOOKUP(3,Tablas!$A$73:$G$75,5,TRUE)), (VLOOKUP(3,Tablas!$A$73:$G$75,5,TRUE)))))))), (IF($B$17=4,(IF(4-$B$19=0,(VLOOKUP(2,Tablas!$A$73:$G$75,5,TRUE)), (IF(4-$B$19=1,(VLOOKUP(2,Tablas!$A$73:$G$75,5,TRUE)), (IF(4-$B$19=2, (VLOOKUP(2,Tablas!$A$73:$G$75,5,TRUE)), (VLOOKUP(3,Tablas!$A$73:$G$75,5,TRUE)))))))), (IF($B$17=3,(IF(3-$B$19=0,(VLOOKUP(1,Tablas!$A$73:$G$75,5,TRUE)), (IF(3-$B$19=1,(VLOOKUP(1,Tablas!$A$73:$G$75,5,TRUE)), (IF(3-$B$19=2, (VLOOKUP(2,Tablas!$A$73:$G$75,5,TRUE)), (VLOOKUP(3,Tablas!$A$73:$G$75,5,TRUE)))))))), (IF($B$17=2,(IF(2-$B$19=0, 0, (IF(2-$B$19=1,(VLOOKUP(1,Tablas!$A$73:$G$75,5,TRUE)), (IF(2-$B$19=2, (VLOOKUP(2,Tablas!$A$73:$G$75,5,TRUE)), 0)))))), (IF($B$17=1,(IF(1-$B$19=0, 0, (IF(1-$B$19=1,(VLOOKUP(1,Tablas!$A$73:$G$75,5,TRUE)),0)))),0)))))))))))))), (IF($B$17=0, 0, (IF($B$19>$B$17, (VLOOKUP($B$17,Tablas!$A$73:$G$75,5,TRUE)), (IF($B$17=4,(IF(4-$B$19=0, 0, (IF(4-$B$19=1, (VLOOKUP(1,Tablas!$A$73:$G$75,5,TRUE)), (IF(4-$B$19=2, (VLOOKUP(2,Tablas!$A$73:$G$75,5,TRUE)), (IF(4-$B$19=3, (VLOOKUP(3,Tablas!$A$73:$G$75,5,TRUE)), (IF(4-$B$19=4, (VLOOKUP(3,Tablas!$A$73:$G$75,5,TRUE)), 0)))))))))), (IF($B$17=5,(IF(5-$B$19=0, (VLOOKUP(1,Tablas!$A$73:$G$75,5,TRUE)), (IF(5-$B$19=1, (VLOOKUP(1,Tablas!$A$73:$G$75,5,TRUE)), (IF(5-$B$19=2, (VLOOKUP(2,Tablas!$A$73:$G$75,5,TRUE)), (IF(5-$B$19=3, (VLOOKUP(3,Tablas!$A$73:$G$75,5,TRUE)), (IF(5-$B$19=4, (VLOOKUP(3,Tablas!$A$73:$G$75,5,TRUE)), (VLOOKUP(3,Tablas!$A$73:$G$75,5,TRUE)))))))))))), (IF($B$17=6,(IF(6-$B$19=0, (VLOOKUP(2,Tablas!$A$73:$G$75,5,TRUE)), (IF(6-$B$19=1, (VLOOKUP(2,Tablas!$A$73:$G$75,5,TRUE)), (IF(6-$B$19=2, (VLOOKUP(2,Tablas!$A$73:$G$75,5,TRUE)), (IF(6-$B$19=3, (VLOOKUP(3,Tablas!$A$73:$G$75,5,TRUE)), (IF(6-$B$19=4, (VLOOKUP(3,Tablas!$A$73:$G$75,5,TRUE)), (VLOOKUP(3,Tablas!$A$73:$G$75,5,TRUE)))))))))))), (IF($B$17>6,(IF(7-$B$19=0, (VLOOKUP(3,Tablas!$A$73:$G$75,5,TRUE)), (IF(7-$B$19=1, (VLOOKUP(3,Tablas!$A$73:$G$75,5,TRUE)), (IF(7-$B$19=2, (VLOOKUP(3,Tablas!$A$73:$G$75,5,TRUE)), (IF(7-$B$19=3, (VLOOKUP(3,Tablas!$A$73:$G$75,5,TRUE)), (IF(7-$B$19=4, (VLOOKUP(3,Tablas!$A$73:$G$75,5,TRUE)), (VLOOKUP(3,Tablas!$A$73:$G$75,5,TRUE)))))))))))), (IF($B$17=3,(IF(3-$B$19=0,0, (IF(3-$B$19=1,(VLOOKUP(1,Tablas!$A$73:$G$75,5,TRUE)), (IF(3-$B$19=2, (VLOOKUP(2,Tablas!$A$73:$G$75,5,TRUE)), (VLOOKUP(3,Tablas!$A$73:$G$75,5,TRUE)))))))), (IF($B$17=2,(IF(2-$B$19=0, 0, (IF(2-$B$19=1,(VLOOKUP(1,Tablas!$A$73:$G$75,5,TRUE)), (IF(2-$B$19=2, (VLOOKUP(2,Tablas!$A$73:$G$75,5,TRUE)), 0)))))), (IF($B$17=1,(IF(1-$B$19=0, 0, (IF(1-$B$19=1,(VLOOKUP(1,Tablas!$A$73:$G$75,5,TRUE)),0)))),0))))))))))))))))))) -> 3359.86861 | F34: =IF($B$15=1, (IF($B$17=0, 0, (IF($B$19>$B$17, (VLOOKUP($B$17,Tablas!$A$73:$G$75,6,TRUE)), (IF($B$17>4,(IF($B$19=0, (VLOOKUP(3,Tablas!$A$73:$G$75,6,TRUE)), (IF($B$19=1, (VLOOKUP(3,Tablas!$A$73:$G$75,6,TRUE)), (IF($B$19=2, (VLOOKUP(3,Tablas!$A$73:$G$75,6,TRUE)), (VLOOKUP(3,Tablas!$A$73:$G$75,6,TRUE)))))))), (IF($B$17=4,(IF(4-$B$19=0,(VLOOKUP(2,Tablas!$A$73:$G$75,6,TRUE)), (IF(4-$B$19=1,(VLOOKUP(2,Tablas!$A$73:$G$75,6,TRUE)), (IF(4-$B$19=2, (VLOOKUP(2,Tablas!$A$73:$G$75,6,TRUE)), (VLOOKUP(3,Tablas!$A$73:$G$75,6,TRUE)))))))), (IF($B$17=3,(IF(3-$B$19=0,(VLOOKUP(1,Tablas!$A$73:$G$75,6,TRUE)), (IF(3-$B$19=1,(VLOOKUP(1,Tablas!$A$73:$G$75,6,TRUE)), (IF(3-$B$19=2, (VLOOKUP(2,Tablas!$A$73:$G$75,6,TRUE)), (VLOOKUP(3,Tablas!$A$73:$G$75,6,TRUE)))))))), (IF($B$17=2,(IF(2-$B$19=0, 0, (IF(2-$B$19=1,(VLOOKUP(1,Tablas!$A$73:$G$75,6,TRUE)), (IF(2-$B$19=2, (VLOOKUP(2,Tablas!$A$73:$G$75,6,TRUE)), 0)))))), (IF($B$17=1,(IF(1-$B$19=0, 0, (IF(1-$B$19=1,(VLOOKUP(1,Tablas!$A$73:$G$75,6,TRUE)),0)))),0)))))))))))))), (IF($B$17=0, 0, (IF($B$19>$B$17, (VLOOKUP($B$17,Tablas!$A$73:$G$75,6,TRUE)), (IF($B$17=4,(IF(4-$B$19=0, 0, (IF(4-$B$19=1, (VLOOKUP(1,Tablas!$A$73:$G$75,6,TRUE)), (IF(4-$B$19=2, (VLOOKUP(2,Tablas!$A$73:$G$75,6,TRUE)), (IF(4-$B$19=3, (VLOOKUP(3,Tablas!$A$73:$G$75,6,TRUE)), (IF(4-$B$19=4, (VLOOKUP(3,Tablas!$A$73:$G$75,6,TRUE)), 0)))))))))), (IF($B$17=5,(IF(5-$B$19=0, (VLOOKUP(1,Tablas!$A$73:$G$75,6,TRUE)), (IF(5-$B$19=1, (VLOOKUP(1,Tablas!$A$73:$G$75,6,TRUE)), (IF(5-$B$19=2, (VLOOKUP(2,Tablas!$A$73:$G$75,6,TRUE)), (IF(5-$B$19=3, (VLOOKUP(3,Tablas!$A$73:$G$75,6,TRUE)), (IF(5-$B$19=4, (VLOOKUP(3,Tablas!$A$73:$G$75,6,TRUE)), (VLOOKUP(3,Tablas!$A$73:$G$75,6,TRUE)))))))))))), (IF($B$17=6,(IF(6-$B$19=0, (VLOOKUP(2,Tablas!$A$73:$G$75,6,TRUE)), (IF(6-$B$19=1, (VLOOKUP(2,Tablas!$A$73:$G$75,6,TRUE)), (IF(6-$B$19=2, (VLOOKUP(2,Tablas!$A$73:$G$75,6,TRUE)), (IF(6-$B$19=3, (VLOOKUP(3,Tablas!$A$73:$G$75,6,TRUE)), (IF(6-$B$19=4, (VLOOKUP(3,Tablas!$A$73:$G$75,6,TRUE)), (VLOOKUP(3,Tablas!$A$73:$G$75,6,TRUE)))))))))))), (IF($B$17>6,(IF(7-$B$19=0, (VLOOKUP(3,Tablas!$A$73:$G$75,6,TRUE)), (IF(7-$B$19=1, (VLOOKUP(3,Tablas!$A$73:$G$75,6,TRUE)), (IF(7-$B$19=2, (VLOOKUP(3,Tablas!$A$73:$G$75,6,TRUE)), (IF(7-$B$19=3, (VLOOKUP(3,Tablas!$A$73:$G$75,6,TRUE)), (IF(7-$B$19=4, (VLOOKUP(3,Tablas!$A$73:$G$75,6,TRUE)), (VLOOKUP(3,Tablas!$A$73:$G$75,6,TRUE)))))))))))), (IF($B$17=3,(IF(3-$B$19=0,0, (IF(3-$B$19=1,(VLOOKUP(1,Tablas!$A$73:$G$75,6,TRUE)), (IF(3-$B$19=2, (VLOOKUP(2,Tablas!$A$73:$G$75,6,TRUE)), (VLOOKUP(3,Tablas!$A$73:$G$75,6,TRUE)))))))), (IF($B$17=2,(IF(2-$B$19=0, 0, (IF(2-$B$19=1,(VLOOKUP(1,Tablas!$A$73:$G$75,6,TRUE)), (IF(2-$B$19=2, (VLOOKUP(2,Tablas!$A$73:$G$75,6,TRUE)), 0)))))), (IF($B$17=1,(IF(1-$B$19=0, 0, (IF(1-$B$19=1,(VLOOKUP(1,Tablas!$A$73:$G$75,6,TRUE)),0)))),0))))))))))))))))))) -> 2914.36117 | G34: =IF($B$15=1, (IF($B$17=0, 0, (IF($B$19>$B$17, (VLOOKUP($B$17,Tablas!$A$73:$G$75,7,TRUE)), (IF($B$17>4,(IF($B$19=0, (VLOOKUP(3,Tablas!$A$73:$G$75,7,TRUE)), (IF($B$19=1, (VLOOKUP(3,Tablas!$A$73:$G$75,7,TRUE)), (IF($B$19=2, (VLOOKUP(3,Tablas!$A$73:$G$75,7,TRUE)), (VLOOKUP(3,Tablas!$A$73:$G$75,7,TRUE)))))))), (IF($B$17=4,(IF(4-$B$19=0,(VLOOKUP(2,Tablas!$A$73:$G$75,7,TRUE)), (IF(4-$B$19=1,(VLOOKUP(2,Tablas!$A$73:$G$75,7,TRUE)), (IF(4-$B$19=2, (VLOOKUP(2,Tablas!$A$73:$G$75,7,TRUE)), (VLOOKUP(3,Tablas!$A$73:$G$75,7,TRUE)))))))), (IF($B$17=3,(IF(3-$B$19=0,(VLOOKUP(1,Tablas!$A$73:$G$75,7,TRUE)), (IF(3-$B$19=1,(VLOOKUP(1,Tablas!$A$73:$G$75,7,TRUE)), (IF(3-$B$19=2, (VLOOKUP(2,Tablas!$A$73:$G$75,7,TRUE)), (VLOOKUP(3,Tablas!$A$73:$G$75,7,TRUE)))))))), (IF($B$17=2,(IF(2-$B$19=0, 0, (IF(2-$B$19=1,(VLOOKUP(1,Tablas!$A$73:$G$75,7,TRUE)), (IF(2-$B$19=2, (VLOOKUP(2,Tablas!$A$73:$G$75,7,TRUE)), 0)))))), (IF($B$17=1,(IF(1-$B$19=0, 0, (IF(1-$B$19=1,(VLOOKUP(1,Tablas!$A$73:$G$75,7,TRUE)),0)))),0)))))))))))))), (IF($B$17=0, 0, (IF($B$19>$B$17, (VLOOKUP($B$17,Tablas!$A$73:$G$75,7,TRUE)), (IF($B$17=4,(IF(4-$B$19=0, 0, (IF(4-$B$19=1, (VLOOKUP(1,Tablas!$A$73:$G$75,7,TRUE)), (IF(4-$B$19=2, (VLOOKUP(2,Tablas!$A$73:$G$75,7,TRUE)), (IF(4-$B$19=3, (VLOOKUP(3,Tablas!$A$73:$G$75,7,TRUE)), (IF(4-$B$19=4, (VLOOKUP(3,Tablas!$A$73:$G$75,7,TRUE)), 0)))))))))), (IF($B$17=5,(IF(5-$B$19=0, (VLOOKUP(1,Tablas!$A$73:$G$75,7,TRUE)), (IF(5-$B$19=1, (VLOOKUP(1,Tablas!$A$73:$G$75,7,TRUE)), (IF(5-$B$19=2, (VLOOKUP(2,Tablas!$A$73:$G$75,7,TRUE)), (IF(5-$B$19=3, (VLOOKUP(3,Tablas!$A$73:$G$75,7,TRUE)), (IF(5-$B$19=4, (VLOOKUP(3,Tablas!$A$73:$G$75,7,TRUE)), (VLOOKUP(3,Tablas!$A$73:$G$75,7,TRUE)))))))))))), (IF($B$17=6,(IF(6-$B$19=0, (VLOOKUP(2,Tablas!$A$73:$G$75,7,TRUE)), (IF(6-$B$19=1, (VLOOKUP(2,Tablas!$A$73:$G$75,7,TRUE)), (IF(6-$B$19=2, (VLOOKUP(2,Tablas!$A$73:$G$75,7,TRUE)), (IF(6-$B$19=3, (VLOOKUP(3,Tablas!$A$73:$G$75,7,TRUE)), (IF(6-$B$19=4, (VLOOKUP(3,Tablas!$A$73:$G$75,7,TRUE)), (VLOOKUP(3,Tablas!$A$73:$G$75,7,TRUE)))))))))))), (IF($B$17>6,(IF(7-$B$19=0, (VLOOKUP(3,Tablas!$A$73:$G$75,7,TRUE)), (IF(7-$B$19=1, (VLOOKUP(3,Tablas!$A$73:$G$75,7,TRUE)), (IF(7-$B$19=2, (VLOOKUP(3,Tablas!$A$73:$G$75,7,TRUE)), (IF(7-$B$19=3, (VLOOKUP(3,Tablas!$A$73:$G$75,7,TRUE)), (IF(7-$B$19=4, (VLOOKUP(3,Tablas!$A$73:$G$75,7,TRUE)), (VLOOKUP(3,Tablas!$A$73:$G$75,7,TRUE)))))))))))), (IF($B$17=3,(IF(3-$B$19=0,0, (IF(3-$B$19=1,(VLOOKUP(1,Tablas!$A$73:$G$75,7,TRUE)), (IF(3-$B$19=2, (VLOOKUP(2,Tablas!$A$73:$G$75,7,TRUE)), (VLOOKUP(3,Tablas!$A$73:$G$75,7,TRUE)))))))), (IF($B$17=2,(IF(2-$B$19=0, 0, (IF(2-$B$19=1,(VLOOKUP(1,Tablas!$A$73:$G$75,7,TRUE)), (IF(2-$B$19=2, (VLOOKUP(2,Tablas!$A$73:$G$75,7,TRUE)), 0)))))), (IF($B$17=1,(IF(1-$B$19=0, 0, (IF(1-$B$19=1,(VLOOKUP(1,Tablas!$A$73:$G$75,7,TRUE)),0)))),0))))))))))))))))))) -> 2220.69827
A35: Total de Prima neta | C35: =SUM(C32:C34) ->  | D35: =SUM(D32:D34) -> 
A36: Ajuste por la variante con coaseguro fuera del país de residencia | C36: =IF('INGRESO DE DATOS'!$P$3,C35*-15%,0) -> 0 | D36: =IF('INGRESO DE DATOS'!$P$3,D35*-15%,0) -> 0 | E36: =IF('INGRESO DE DATOS'!$P$3,E35*-15%,0) -> 0 | F36: =IF('INGRESO DE DATOS'!$P$3,F35*-15%,0) -> 0 | G36: =IF('INGRESO DE DATOS'!$P$3,G35*-15%,0) -> 0
A37: Tarifa administrativa annual | C37: =Tablas!$Y$2 -> 86 | D37: =Tablas!$Y$2 -> 86 | E37: =Tablas!$Y$2 -> 86 | F37: =Tablas!$Y$2 -> 86 | G37: =Tablas!$Y$2 -> 86
A38: VAT (5%) :
A39: ITBMS (7%)
A40: TOTAL ANUAL | C40: =SUM(C35:C39) ->  | D40: =SUM(D35:D39) ->  | F40: =SUM(F35:F39) -> 
A41: Ahorros en tarifas de prima para Dependientes | C41: =IF($B$15=1,IF($B$17=0,0,IF($B$19=0,0,IF($B$19=1,(VLOOKUP(1,Tablas!$A$73:$G$75,3,TRUE)),(VLOOKUP(2,Tablas!$A$73:$G$75,3,TRUE))))), IF($B$17=0,0,IF($B$19=0,0,IF($B$19=1,(VLOOKUP(1,Tablas!$A$73:$G$75,3,TRUE)),IF($B$19=2,(VLOOKUP(2,Tablas!$A$73:$G$75,3,TRUE)), (VLOOKUP(3,Tablas!$A$73:$G$75,3,TRUE))))))) -> 4584.03708 | D41: =IF($B$15=1,IF($B$17=0,0,IF($B$19=0,0,IF($B$19=1,(VLOOKUP(1,Tablas!$A$73:$G$75,4,TRUE)),(VLOOKUP(2,Tablas!$A$73:$G$75,4,TRUE))))), IF($B$17=0,0,IF($B$19=0,0,IF($B$19=1,(VLOOKUP(1,Tablas!$A$73:$G$75,4,TRUE)),IF($B$19=2,(VLOOKUP(2,Tablas!$A$73:$G$75,4,TRUE)), (VLOOKUP(3,Tablas!$A$73:$G$75,4,TRUE))))))) -> 4018.35987 | E41: =IF($B$15=1,IF($B$17=0,0,IF($B$19=0,0,IF($B$19=1,(VLOOKUP(1,Tablas!$A$73:$G$75,5,TRUE)),(VLOOKUP(2,Tablas!$A$73:$G$75,5,TRUE))))), IF($B$17=0,0,IF($B$19=0,0,IF($B$19=1,(VLOOKUP(1,Tablas!$A$73:$G$75,5,TRUE)),IF($B$19=2,(VLOOKUP(2,Tablas!$A$73:$G$75,5,TRUE)), (VLOOKUP(3,Tablas!$A$73:$G$75,5,TRUE))))))) -> 3359.86861 | F41: =IF($B$15=1,IF($B$17=0,0,IF($B$19=0,0,IF($B$19=1,(VLOOKUP(1,Tablas!$A$73:$G$75,6,TRUE)),(VLOOKUP(2,Tablas!$A$73:$G$75,6,TRUE))))), IF($B$17=0,0,IF($B$19=0,0,IF($B$19=1,(VLOOKUP(1,Tablas!$A$73:$G$75,6,TRUE)),IF($B$19=2,(VLOOKUP(2,Tablas!$A$73:$G$75,6,TRUE)), (VLOOKUP(3,Tablas!$A$73:$G$75,6,TRUE))))))) -> 2914.36117 | G41: =IF($B$15=1,IF($B$17=0,0,IF($B$19=0,0,IF($B$19=1,(VLOOKUP(1,Tablas!$A$73:$G$75,7,TRUE)),(VLOOKUP(2,Tablas!$A$73:$G$75,7,TRUE))))), IF($B$17=0,0,IF($B$19=0,0,IF($B$19=1,(VLOOKUP(1,Tablas!$A$73:$G$75,7,TRUE)),IF($B$19=2,(VLOOKUP(2,Tablas!$A$73:$G$75,7,TRUE)), (VLOOKUP(3,Tablas!$A$73:$G$75,7,TRUE))))))) -> 2220.69827
A43: TARIFAS SEMIANUALES
A44: Prima para Asegurado Titular | C44: =VLOOKUP($B$21,Tablas!$A$458:$G$524,3,TRUE) -> 6827.254969 | D44: =VLOOKUP($B$21,Tablas!$A$458:$G$524,4,TRUE) -> 5984.268918 | E44: =VLOOKUP($B$21,Tablas!$A$458:$G$524,5,TRUE) -> 4904.128314 | F44: =VLOOKUP($B$21,Tablas!$A$458:$G$524,6,TRUE) -> 4251.694392 | G44: =VLOOKUP($B$21,Tablas!$A$458:$G$524,7,TRUE) -> 3238.868398
A45: Prima para conyuge | C45: =IF($B$15=1,0,(VLOOKUP($G$21,Tablas!$A$458:$G$524,3,TRUE))) ->  | D45: =IF($B$15=1,0,(VLOOKUP($G$21,Tablas!$A$458:$G$524,4,TRUE))) ->  | E45: =IF($B$15=1,0,(VLOOKUP($G$21,Tablas!$A$458:$G$524,5,TRUE))) ->  | F45: =IF($B$15=1,0,(VLOOKUP($G$21,Tablas!$A$458:$G$524,6,TRUE))) ->  | G45: =IF($B$15=1,0,(VLOOKUP($G$21,Tablas!$A$458:$G$524,7,TRUE))) -> 
A46: Prima para hijo (s) | C46: =IF($B$15=1, (IF($B$17=0, 0, (IF($B$19>$B$17, (VLOOKUP($B$17,Tablas!$A$525:$G$527,3,TRUE)), (IF($B$17>4,(IF($B$19=0, (VLOOKUP(3,Tablas!$A$525:$G$527,3,TRUE)), (IF($B$19=1, (VLOOKUP(3,Tablas!$A$525:$G$527,3,TRUE)), (IF($B$19=2, (VLOOKUP(3,Tablas!$A$525:$G$527,3,TRUE)), (VLOOKUP(3,Tablas!$A$525:$G$527,3,TRUE)))))))), (IF($B$17=4,(IF(4-$B$19=0,(VLOOKUP(2,Tablas!$A$525:$G$527,3,TRUE)), (IF(4-$B$19=1,(VLOOKUP(2,Tablas!$A$525:$G$527,3,TRUE)), (IF(4-$B$19=2, (VLOOKUP(2,Tablas!$A$525:$G$527,3,TRUE)), (VLOOKUP(3,Tablas!$A$525:$G$527,3,TRUE)))))))), (IF($B$17=3,(IF(3-$B$19=0,(VLOOKUP(1,Tablas!$A$525:$G$527,3,TRUE)), (IF(3-$B$19=1,(VLOOKUP(1,Tablas!$A$525:$G$527,3,TRUE)), (IF(3-$B$19=2, (VLOOKUP(2,Tablas!$A$525:$G$527,3,TRUE)), (VLOOKUP(3,Tablas!$A$525:$G$527,3,TRUE)))))))), (IF($B$17=2,(IF(2-$B$19=0, 0, (IF(2-$B$19=1,(VLOOKUP(1,Tablas!$A$525:$G$527,3,TRUE)), (IF(2-$B$19=2, (VLOOKUP(2,Tablas!$A$525:$G$527,3,TRUE)), 0)))))), (IF($B$17=1,(IF(1-$B$19=0, 0, (IF(1-$B$19=1,(VLOOKUP(1,Tablas!$A$525:$G$527,3,TRUE)),0)))),0)))))))))))))), (IF($B$17=0, 0, (IF($B$19>$B$17, (VLOOKUP($B$17,Tablas!$A$525:$G$527,3,TRUE)), (IF($B$17=4,(IF(4-$B$19=0, 0, (IF(4-$B$19=1, (VLOOKUP(1,Tablas!$A$525:$G$527,3,TRUE)), (IF(4-$B$19=2, (VLOOKUP(2,Tablas!$A$525:$G$527,3,TRUE)), (IF(4-$B$19=3, (VLOOKUP(3,Tablas!$A$525:$G$527,3,TRUE)), (IF(4-$B$19=4, (VLOOKUP(3,Tablas!$A$525:$G$527,3,TRUE)), 0)))))))))), (IF($B$17=5,(IF(5-$B$19=0, (VLOOKUP(1,Tablas!$A$525:$G$527,3,TRUE)), (IF(5-$B$19=1, (VLOOKUP(1,Tablas!$A$525:$G$527,3,TRUE)), (IF(5-$B$19=2, (VLOOKUP(2,Tablas!$A$525:$G$527,3,TRUE)), (IF(5-$B$19=3, (VLOOKUP(3,Tablas!$A$525:$G$527,3,TRUE)), (IF(5-$B$19=4, (VLOOKUP(3,Tablas!$A$525:$G$527,3,TRUE)), (VLOOKUP(3,Tablas!$A$525:$G$527,3,TRUE)))))))))))), (IF($B$17=6,(IF(6-$B$19=0, (VLOOKUP(2,Tablas!$A$525:$G$527,3,TRUE)), (IF(6-$B$19=1, (VLOOKUP(2,Tablas!$A$525:$G$527,3,TRUE)), (IF(6-$B$19=2, (VLOOKUP(2,Tablas!$A$525:$G$527,3,TRUE)), (IF(6-$B$19=3, (VLOOKUP(3,Tablas!$A$525:$G$527,3,TRUE)), (IF(6-$B$19=4, (VLOOKUP(3,Tablas!$A$525:$G$527,3,TRUE)), (VLOOKUP(3,Tablas!$A$525:$G$527,3,TRUE)))))))))))), (IF($B$17>6,(IF(7-$B$19=0, (VLOOKUP(3,Tablas!$A$525:$G$527,3,TRUE)), (IF(7-$B$19=1, (VLOOKUP(3,Tablas!$A$525:$G$527,3,TRUE)), (IF(7-$B$19=2, (VLOOKUP(3,Tablas!$A$525:$G$527,3,TRUE)), (IF(7-$B$19=3, (VLOOKUP(3,Tablas!$A$525:$G$527,3,TRUE)), (IF(7-$B$19=4, (VLOOKUP(3,Tablas!$A$525:$G$527,3,TRUE)), (VLOOKUP(3,Tablas!$A$525:$G$527,3,TRUE)))))))))))), (IF($B$17=3,(IF(3-$B$19=0,0, (IF(3-$B$19=1,(VLOOKUP(1,Tablas!$A$525:$G$527,3,TRUE)), (IF(3-$B$19=2, (VLOOKUP(2,Tablas!$A$525:$G$527,3,TRUE)), (VLOOKUP(3,Tablas!$A$525:$G$527,3,TRUE)))))))), (IF($B$17=2,(IF(2-$B$19=0, 0, (IF(2-$B$19=1,(VLOOKUP(1,Tablas!$A$525:$G$527,3,TRUE)), (IF(2-$B$19=2, (VLOOKUP(2,Tablas!$A$525:$G$527,3,TRUE)), 0)))))), (IF($B$17=1,(IF(1-$B$19=0, 0, (IF(1-$B$19=1,(VLOOKUP(1,Tablas!$A$525:$G$527,3,TRUE)),0)))),0))))))))))))))))))) -> 2429.539652 | D46: =IF($B$15=1, (IF($B$17=0, 0, (IF($B$19>$B$17, (VLOOKUP($B$17,Tablas!$A$525:$G$527,4,TRUE)), (IF($B$17>4,(IF($B$19=0, (VLOOKUP(3,Tablas!$A$525:$G$527,4,TRUE)), (IF($B$19=1, (VLOOKUP(3,Tablas!$A$525:$G$527,4,TRUE)), (IF($B$19=2, (VLOOKUP(3,Tablas!$A$525:$G$527,4,TRUE)), (VLOOKUP(3,Tablas!$A$525:$G$527,4,TRUE)))))))), (IF($B$17=4,(IF(4-$B$19=0,(VLOOKUP(2,Tablas!$A$525:$G$527,4,TRUE)), (IF(4-$B$19=1,(VLOOKUP(2,Tablas!$A$525:$G$527,4,TRUE)), (IF(4-$B$19=2, (VLOOKUP(2,Tablas!$A$525:$G$527,4,TRUE)), (VLOOKUP(3,Tablas!$A$525:$G$527,4,TRUE)))))))), (IF($B$17=3,(IF(3-$B$19=0,(VLOOKUP(1,Tablas!$A$525:$G$527,4,TRUE)), (IF(3-$B$19=1,(VLOOKUP(1,Tablas!$A$525:$G$527,4,TRUE)), (IF(3-$B$19=2, (VLOOKUP(2,Tablas!$A$525:$G$527,4,TRUE)), (VLOOKUP(3,Tablas!$A$525:$G$527,4,TRUE)))))))), (IF($B$17=2,(IF(2-$B$19=0, 0, (IF(2-$B$19=1,(VLOOKUP(1,Tablas!$A$525:$G$527,4,TRUE)), (IF(2-$B$19=2, (VLOOKUP(2,Tablas!$A$525:$G$527,4,TRUE)), 0)))))), (IF($B$17=1,(IF(1-$B$19=0, 0, (IF(1-$B$19=1,(VLOOKUP(1,Tablas!$A$525:$G$527,4,TRUE)),0)))),0)))))))))))))), (IF($B$17=0, 0, (IF($B$19>$B$17, (VLOOKUP($B$17,Tablas!$A$525:$G$527,4,TRUE)), (IF($B$17=4,(IF(4-$B$19=0, 0, (IF(4-$B$19=1, (VLOOKUP(1,Tablas!$A$525:$G$527,4,TRUE)), (IF(4-$B$19=2, (VLOOKUP(2,Tablas!$A$525:$G$527,4,TRUE)), (IF(4-$B$19=3, (VLOOKUP(3,Tablas!$A$525:$G$527,4,TRUE)), (IF(4-$B$19=4, (VLOOKUP(3,Tablas!$A$525:$G$527,4,TRUE)), 0)))))))))), (IF($B$17=5,(IF(5-$B$19=0, (VLOOKUP(1,Tablas!$A$525:$G$527,4,TRUE)), (IF(5-$B$19=1, (VLOOKUP(1,Tablas!$A$525:$G$527,4,TRUE)), (IF(5-$B$19=2, (VLOOKUP(2,Tablas!$A$525:$G$527,4,TRUE)), (IF(5-$B$19=3, (VLOOKUP(3,Tablas!$A$525:$G$527,4,TRUE)), (IF(5-$B$19=4, (VLOOKUP(3,Tablas!$A$525:$G$527,4,TRUE)), (VLOOKUP(3,Tablas!$A$525:$G$527,4,TRUE)))))))))))), (IF($B$17=6,(IF(6-$B$19=0, (VLOOKUP(2,Tablas!$A$525:$G$527,4,TRUE)), (IF(6-$B$19=1, (VLOOKUP(2,Tablas!$A$525:$G$527,4,TRUE)), (IF(6-$B$19=2, (VLOOKUP(2,Tablas!$A$525:$G$527,4,TRUE)), (IF(6-$B$19=3, (VLOOKUP(3,Tablas!$A$525:$G$527,4,TRUE)), (IF(6-$B$19=4, (VLOOKUP(3,Tablas!$A$525:$G$527,4,TRUE)), (VLOOKUP(3,Tablas!$A$525:$G$527,4,TRUE)))))))))))), (IF($B$17>6,(IF(7-$B$19=0, (VLOOKUP(3,Tablas!$A$525:$G$527,4,TRUE)), (IF(7-$B$19=1, (VLOOKUP(3,Tablas!$A$525:$G$527,4,TRUE)), (IF(7-$B$19=2, (VLOOKUP(3,Tablas!$A$525:$G$527,4,TRUE)), (IF(7-$B$19=3, (VLOOKUP(3,Tablas!$A$525:$G$527,4,TRUE)), (IF(7-$B$19=4, (VLOOKUP(3,Tablas!$A$525:$G$527,4,TRUE)), (VLOOKUP(3,Tablas!$A$525:$G$527,4,TRUE)))))))))))), (IF($B$17=3,(IF(3-$B$19=0,0, (IF(3-$B$19=1,(VLOOKUP(1,Tablas!$A$525:$G$527,4,TRUE)), (IF(3-$B$19=2, (VLOOKUP(2,Tablas!$A$525:$G$527,4,TRUE)), (VLOOKUP(3,Tablas!$A$525:$G$527,4,TRUE)))))))), (IF($B$17=2,(IF(2-$B$19=0, 0, (IF(2-$B$19=1,(VLOOKUP(1,Tablas!$A$525:$G$527,4,TRUE)), (IF(2-$B$19=2, (VLOOKUP(2,Tablas!$A$525:$G$527,4,TRUE)), 0)))))), (IF($B$17=1,(IF(1-$B$19=0, 0, (IF(1-$B$19=1,(VLOOKUP(1,Tablas!$A$525:$G$527,4,TRUE)),0)))),0))))))))))))))))))) -> 2129.730731 | E46: =IF($B$15=1, (IF($B$17=0, 0, (IF($B$19>$B$17, (VLOOKUP($B$17,Tablas!$A$525:$G$527,5,TRUE)), (IF($B$17>4,(IF($B$19=0, (VLOOKUP(3,Tablas!$A$525:$G$527,5,TRUE)), (IF($B$19=1, (VLOOKUP(3,Tablas!$A$525:$G$527,5,TRUE)), (IF($B$19=2, (VLOOKUP(3,Tablas!$A$525:$G$527,5,TRUE)), (VLOOKUP(3,Tablas!$A$525:$G$527,5,TRUE)))))))), (IF($B$17=4,(IF(4-$B$19=0,(VLOOKUP(2,Tablas!$A$525:$G$527,5,TRUE)), (IF(4-$B$19=1,(VLOOKUP(2,Tablas!$A$525:$G$527,5,TRUE)), (IF(4-$B$19=2, (VLOOKUP(2,Tablas!$A$525:$G$527,5,TRUE)), (VLOOKUP(3,Tablas!$A$525:$G$527,5,TRUE)))))))), (IF($B$17=3,(IF(3-$B$19=0,(VLOOKUP(1,Tablas!$A$525:$G$527,5,TRUE)), (IF(3-$B$19=1,(VLOOKUP(1,Tablas!$A$525:$G$527,5,TRUE)), (IF(3-$B$19=2, (VLOOKUP(2,Tablas!$A$525:$G$527,5,TRUE)), (VLOOKUP(3,Tablas!$A$525:$G$527,5,TRUE)))))))), (IF($B$17=2,(IF(2-$B$19=0, 0, (IF(2-$B$19=1,(VLOOKUP(1,Tablas!$A$525:$G$527,5,TRUE)), (IF(2-$B$19=2, (VLOOKUP(2,Tablas!$A$525:$G$527,5,TRUE)), 0)))))), (IF($B$17=1,(IF(1-$B$19=0, 0, (IF(1-$B$19=1,(VLOOKUP(1,Tablas!$A$525:$G$527,5,TRUE)),0)))),0)))))))))))))), (IF($B$17=0, 0, (IF($B$19>$B$17, (VLOOKUP($B$17,Tablas!$A$525:$G$527,5,TRUE)), (IF($B$17=4,(IF(4-$B$19=0, 0, (IF(4-$B$19=1, (VLOOKUP(1,Tablas!$A$525:$G$527,5,TRUE)), (IF(4-$B$19=2, (VLOOKUP(2,Tablas!$A$525:$G$527,5,TRUE)), (IF(4-$B$19=3, (VLOOKUP(3,Tablas!$A$525:$G$527,5,TRUE)), (IF(4-$B$19=4, (VLOOKUP(3,Tablas!$A$525:$G$527,5,TRUE)), 0)))))))))), (IF($B$17=5,(IF(5-$B$19=0, (VLOOKUP(1,Tablas!$A$525:$G$527,5,TRUE)), (IF(5-$B$19=1, (VLOOKUP(1,Tablas!$A$525:$G$527,5,TRUE)), (IF(5-$B$19=2, (VLOOKUP(2,Tablas!$A$525:$G$527,5,TRUE)), (IF(5-$B$19=3, (VLOOKUP(3,Tablas!$A$525:$G$527,5,TRUE)), (IF(5-$B$19=4, (VLOOKUP(3,Tablas!$A$525:$G$527,5,TRUE)), (VLOOKUP(3,Tablas!$A$525:$G$527,5,TRUE)))))))))))), (IF($B$17=6,(IF(6-$B$19=0, (VLOOKUP(2,Tablas!$A$525:$G$527,5,TRUE)), (IF(6-$B$19=1, (VLOOKUP(2,Tablas!$A$525:$G$527,5,TRUE)), (IF(6-$B$19=2, (VLOOKUP(2,Tablas!$A$525:$G$527,5,TRUE)), (IF(6-$B$19=3, (VLOOKUP(3,Tablas!$A$525:$G$527,5,TRUE)), (IF(6-$B$19=4, (VLOOKUP(3,Tablas!$A$525:$G$527,5,TRUE)), (VLOOKUP(3,Tablas!$A$525:$G$527,5,TRUE)))))))))))), (IF($B$17>6,(IF(7-$B$19=0, (VLOOKUP(3,Tablas!$A$525:$G$527,5,TRUE)), (IF(7-$B$19=1, (VLOOKUP(3,Tablas!$A$525:$G$527,5,TRUE)), (IF(7-$B$19=2, (VLOOKUP(3,Tablas!$A$525:$G$527,5,TRUE)), (IF(7-$B$19=3, (VLOOKUP(3,Tablas!$A$525:$G$527,5,TRUE)), (IF(7-$B$19=4, (VLOOKUP(3,Tablas!$A$525:$G$527,5,TRUE)), (VLOOKUP(3,Tablas!$A$525:$G$527,5,TRUE)))))))))))), (IF($B$17=3,(IF(3-$B$19=0,0, (IF(3-$B$19=1,(VLOOKUP(1,Tablas!$A$525:$G$527,5,TRUE)), (IF(3-$B$19=2, (VLOOKUP(2,Tablas!$A$525:$G$527,5,TRUE)), (VLOOKUP(3,Tablas!$A$525:$G$527,5,TRUE)))))))), (IF($B$17=2,(IF(2-$B$19=0, 0, (IF(2-$B$19=1,(VLOOKUP(1,Tablas!$A$525:$G$527,5,TRUE)), (IF(2-$B$19=2, (VLOOKUP(2,Tablas!$A$525:$G$527,5,TRUE)), 0)))))), (IF($B$17=1,(IF(1-$B$19=0, 0, (IF(1-$B$19=1,(VLOOKUP(1,Tablas!$A$525:$G$527,5,TRUE)),0)))),0))))))))))))))))))) -> 1780.730363 | F46: =IF($B$15=1, (IF($B$17=0, 0, (IF($B$19>$B$17, (VLOOKUP($B$17,Tablas!$A$525:$G$527,6,TRUE)), (IF($B$17>4,(IF($B$19=0, (VLOOKUP(3,Tablas!$A$525:$G$527,6,TRUE)), (IF($B$19=1, (VLOOKUP(3,Tablas!$A$525:$G$527,6,TRUE)), (IF($B$19=2, (VLOOKUP(3,Tablas!$A$525:$G$527,6,TRUE)), (VLOOKUP(3,Tablas!$A$525:$G$527,7,TRUE)))))))), (IF($B$17=4,(IF(4-$B$19=0,(VLOOKUP(2,Tablas!$A$525:$G$527,6,TRUE)), (IF(4-$B$19=1,(VLOOKUP(2,Tablas!$A$525:$G$527,6,TRUE)), (IF(4-$B$19=2, (VLOOKUP(2,Tablas!$A$525:$G$527,6,TRUE)), (VLOOKUP(3,Tablas!$A$525:$G$527,6,TRUE)))))))), (IF($B$17=3,(IF(3-$B$19=0,(VLOOKUP(1,Tablas!$A$525:$G$527,6,TRUE)), (IF(3-$B$19=1,(VLOOKUP(1,Tablas!$A$525:$G$527,6,TRUE)), (IF(3-$B$19=2, (VLOOKUP(2,Tablas!$A$525:$G$527,6,TRUE)), (VLOOKUP(3,Tablas!$A$525:$G$527,6,TRUE)))))))), (IF($B$17=2,(IF(2-$B$19=0, 0, (IF(2-$B$19=1,(VLOOKUP(1,Tablas!$A$525:$G$527,6,TRUE)), (IF(2-$B$19=2, (VLOOKUP(2,Tablas!$A$525:$G$527,6,TRUE)), 0)))))), (IF($B$17=1,(IF(1-$B$19=0, 0, (IF(1-$B$19=1,(VLOOKUP(1,Tablas!$A$525:$G$527,6,TRUE)),0)))),0)))))))))))))), (IF($B$17=0, 0, (IF($B$19>$B$17, (VLOOKUP($B$17,Tablas!$A$525:$G$527,6,TRUE)), (IF($B$17=4,(IF(4-$B$19=0, 0, (IF(4-$B$19=1, (VLOOKUP(1,Tablas!$A$525:$G$527,6,TRUE)), (IF(4-$B$19=2, (VLOOKUP(2,Tablas!$A$525:$G$527,6,TRUE)), (IF(4-$B$19=3, (VLOOKUP(3,Tablas!$A$525:$G$527,6,TRUE)), (IF(4-$B$19=4, (VLOOKUP(3,Tablas!$A$525:$G$527,6,TRUE)), 0)))))))))), (IF($B$17=5,(IF(5-$B$19=0, (VLOOKUP(1,Tablas!$A$525:$G$527,6,TRUE)), (IF(5-$B$19=1, (VLOOKUP(1,Tablas!$A$525:$G$527,6,TRUE)), (IF(5-$B$19=2, (VLOOKUP(2,Tablas!$A$525:$G$527,6,TRUE)), (IF(5-$B$19=3, (VLOOKUP(3,Tablas!$A$525:$G$527,6,TRUE)), (IF(5-$B$19=4, (VLOOKUP(3,Tablas!$A$525:$G$527,6,TRUE)), (VLOOKUP(3,Tablas!$A$525:$G$527,7,TRUE)))))))))))), (IF($B$17=6,(IF(6-$B$19=0, (VLOOKUP(2,Tablas!$A$525:$G$527,6,TRUE)), (IF(6-$B$19=1, (VLOOKUP(2,Tablas!$A$525:$G$527,6,TRUE)), (IF(6-$B$19=2, (VLOOKUP(2,Tablas!$A$525:$G$527,6,TRUE)), (IF(6-$B$19=3, (VLOOKUP(3,Tablas!$A$525:$G$527,6,TRUE)), (IF(6-$B$19=4, (VLOOKUP(3,Tablas!$A$525:$G$527,6,TRUE)), (VLOOKUP(3,Tablas!$A$525:$G$527,7,TRUE)))))))))))), (IF($B$17>6,(IF(7-$B$19=0, (VLOOKUP(3,Tablas!$A$525:$G$527,6,TRUE)), (IF(7-$B$19=1, (VLOOKUP(3,Tablas!$A$525:$G$527,6,TRUE)), (IF(7-$B$19=2, (VLOOKUP(3,Tablas!$A$525:$G$527,6,TRUE)), (IF(7-$B$19=3, (VLOOKUP(3,Tablas!$A$525:$G$527,6,TRUE)), (IF(7-$B$19=4, (VLOOKUP(3,Tablas!$A$525:$G$527,6,TRUE)), (VLOOKUP(3,Tablas!$A$525:$G$527,6,TRUE)))))))))))), (IF($B$17=3,(IF(3-$B$19=0,0, (IF(3-$B$19=1,(VLOOKUP(1,Tablas!$A$525:$G$527,6,TRUE)), (IF(3-$B$19=2, (VLOOKUP(2,Tablas!$A$525:$G$527,6,TRUE)), (VLOOKUP(3,Tablas!$A$525:$G$527,7,TRUE)))))))), (IF($B$17=2,(IF(2-$B$19=0, 0, (IF(2-$B$19=1,(VLOOKUP(1,Tablas!$A$525:$G$527,6,TRUE)), (IF(2-$B$19=2, (VLOOKUP(2,Tablas!$A$525:$G$527,6,TRUE)), 0)))))), (IF($B$17=1,(IF(1-$B$19=0, 0, (IF(1-$B$19=1,(VLOOKUP(1,Tablas!$A$525:$G$527,6,TRUE)),0)))),0))))))))))))))))))) -> 1544.61142 | G46: =IF($B$15=1, (IF($B$17=0, 0, (IF($B$19>$B$17, (VLOOKUP($B$17,Tablas!$A$525:$G$527,7,TRUE)), (IF($B$17>4,(IF($B$19=0, (VLOOKUP(3,Tablas!$A$525:$G$527,7,TRUE)), (IF($B$19=1, (VLOOKUP(3,Tablas!$A$525:$G$527,7,TRUE)), (IF($B$19=2, (VLOOKUP(3,Tablas!$A$525:$G$527,7,TRUE)), (VLOOKUP(3,Tablas!$A$525:$G$527,7,TRUE)))))))), (IF($B$17=4,(IF(4-$B$19=0,(VLOOKUP(2,Tablas!$A$525:$G$527,7,TRUE)), (IF(4-$B$19=1,(VLOOKUP(2,Tablas!$A$525:$G$527,7,TRUE)), (IF(4-$B$19=2, (VLOOKUP(2,Tablas!$A$525:$G$527,7,TRUE)), (VLOOKUP(3,Tablas!$A$525:$G$527,7,TRUE)))))))), (IF($B$17=3,(IF(3-$B$19=0,(VLOOKUP(1,Tablas!$A$525:$G$527,7,TRUE)), (IF(3-$B$19=1,(VLOOKUP(1,Tablas!$A$525:$G$527,7,TRUE)), (IF(3-$B$19=2, (VLOOKUP(2,Tablas!$A$525:$G$527,7,TRUE)), (VLOOKUP(3,Tablas!$A$525:$G$527,7,TRUE)))))))), (IF($B$17=2,(IF(2-$B$19=0, 0, (IF(2-$B$19=1,(VLOOKUP(1,Tablas!$A$525:$G$527,7,TRUE)), (IF(2-$B$19=2, (VLOOKUP(2,Tablas!$A$525:$G$527,7,TRUE)), 0)))))), (IF($B$17=1,(IF(1-$B$19=0, 0, (IF(1-$B$19=1,(VLOOKUP(1,Tablas!$A$525:$G$527,7,TRUE)),0)))),0)))))))))))))), (IF($B$17=0, 0, (IF($B$19>$B$17, (VLOOKUP($B$17,Tablas!$A$525:$G$527,7,TRUE)), (IF($B$17=4,(IF(4-$B$19=0, 0, (IF(4-$B$19=1, (VLOOKUP(1,Tablas!$A$525:$G$527,7,TRUE)), (IF(4-$B$19=2, (VLOOKUP(2,Tablas!$A$525:$G$527,7,TRUE)), (IF(4-$B$19=3, (VLOOKUP(3,Tablas!$A$525:$G$527,7,TRUE)), (IF(4-$B$19=4, (VLOOKUP(3,Tablas!$A$525:$G$527,7,TRUE)), 0)))))))))), (IF($B$17=5,(IF(5-$B$19=0, (VLOOKUP(1,Tablas!$A$525:$G$527,7,TRUE)), (IF(5-$B$19=1, (VLOOKUP(1,Tablas!$A$525:$G$527,7,TRUE)), (IF(5-$B$19=2, (VLOOKUP(2,Tablas!$A$525:$G$527,7,TRUE)), (IF(5-$B$19=3, (VLOOKUP(3,Tablas!$A$525:$G$527,7,TRUE)), (IF(5-$B$19=4, (VLOOKUP(3,Tablas!$A$525:$G$527,7,TRUE)), (VLOOKUP(3,Tablas!$A$525:$G$527,7,TRUE)))))))))))), (IF($B$17=6,(IF(6-$B$19=0, (VLOOKUP(2,Tablas!$A$525:$G$527,7,TRUE)), (IF(6-$B$19=1, (VLOOKUP(2,Tablas!$A$525:$G$527,7,TRUE)), (IF(6-$B$19=2, (VLOOKUP(2,Tablas!$A$525:$G$527,7,TRUE)), (IF(6-$B$19=3, (VLOOKUP(3,Tablas!$A$525:$G$527,7,TRUE)), (IF(6-$B$19=4, (VLOOKUP(3,Tablas!$A$525:$G$527,7,TRUE)), (VLOOKUP(3,Tablas!$A$525:$G$527,7,TRUE)))))))))))), (IF($B$17>6,(IF(7-$B$19=0, (VLOOKUP(3,Tablas!$A$525:$G$527,7,TRUE)), (IF(7-$B$19=1, (VLOOKUP(3,Tablas!$A$525:$G$527,7,TRUE)), (IF(7-$B$19=2, (VLOOKUP(3,Tablas!$A$525:$G$527,7,TRUE)), (IF(7-$B$19=3, (VLOOKUP(3,Tablas!$A$525:$G$527,7,TRUE)), (IF(7-$B$19=4, (VLOOKUP(3,Tablas!$A$525:$G$527,7,TRUE)), (VLOOKUP(3,Tablas!$A$525:$G$527,7,TRUE)))))))))))), (IF($B$17=3,(IF(3-$B$19=0,0, (IF(3-$B$19=1,(VLOOKUP(1,Tablas!$A$525:$G$527,7,TRUE)), (IF(3-$B$19=2, (VLOOKUP(2,Tablas!$A$525:$G$527,7,TRUE)), (VLOOKUP(3,Tablas!$A$525:$G$527,7,TRUE)))))))), (IF($B$17=2,(IF(2-$B$19=0, 0, (IF(2-$B$19=1,(VLOOKUP(1,Tablas!$A$525:$G$527,7,TRUE)), (IF(2-$B$19=2, (VLOOKUP(2,Tablas!$A$525:$G$527,7,TRUE)), 0)))))), (IF($B$17=1,(IF(1-$B$19=0, 0, (IF(1-$B$19=1,(VLOOKUP(1,Tablas!$A$525:$G$527,7,TRUE)),0)))),0))))))))))))))))))) -> 1176.970083
A47: Total de Prima neta | C47: =SUM(C44:C46) ->  | D47: =SUM(D44:D46) -> 
A48: Ajuste por la variante con coaseguro fuera del país de residencia | C48: =IF('INGRESO DE DATOS'!$P$3,C47*-15%,0) -> 0 | D48: =IF('INGRESO DE DATOS'!$P$3,D47*-15%,0) -> 0 | E48: =IF('INGRESO DE DATOS'!$P$3,E47*-15%,0) -> 0 | F48: =IF('INGRESO DE DATOS'!$P$3,F47*-15%,0) -> 0 | G48: =IF('INGRESO DE DATOS'!$P$3,G47*-15%,0) -> 0
A49: Tarifa administrativa anual | C49: =Tablas!$Y$2 -> 86 | D49: =Tablas!$Y$2 -> 86 | E49: =Tablas!$Y$2 -> 86 | F49: =Tablas!$Y$2 -> 86 | G49: =Tablas!$Y$2 -> 86
A50: VAT (5%) :
A51: ITBMS (7%)
A52: TOTAL de primera cuota | C52: =SUM(C47:C51) ->  | D52: =SUM(D47:D51) -> 
A53: Costo de segunda cuota | C53: =C52-C49 ->  | D53: =D52-D49 -> 
A54: TOTAL ANUAL | C54: =C52+C53 ->  | D54: =D52+D53 ->  | F54: =F52+F53 -> 
A55: Ahorros en tarifas de prima para Dependientes | C55: =IF($B$15=1,IF($B$17=0,0,IF($B$19=0,0,IF($B$19=1,(VLOOKUP(1,Tablas!$A$525:$G$527,3,TRUE)),(VLOOKUP(2,Tablas!$A$525:$G$527,3,TRUE))))), IF($B$17=0,0,IF($B$19=0,0,IF($B$19=1,(VLOOKUP(1,Tablas!$A$525:$G$527,3,TRUE)),IF($B$19=2,(VLOOKUP(2,Tablas!$A$525:$G$527,3,TRUE)), (VLOOKUP(3,Tablas!$A$525:$G$527,3,TRUE))))))) -> 2429.539652 | D55: =IF($B$15=1,IF($B$17=0,0,IF($B$19=0,0,IF($B$19=1,(VLOOKUP(1,Tablas!$A$525:$G$527,4,TRUE)),(VLOOKUP(2,Tablas!$A$525:$G$527,4,TRUE))))), IF($B$17=0,0,IF($B$19=0,0,IF($B$19=1,(VLOOKUP(1,Tablas!$A$525:$G$527,4,TRUE)),IF($B$19=2,(VLOOKUP(2,Tablas!$A$525:$G$527,4,TRUE)), (VLOOKUP(3,Tablas!$A$525:$G$527,4,TRUE))))))) -> 2129.730731 | E55: =IF($B$15=1,IF($B$17=0,0,IF($B$19=0,0,IF($B$19=1,(VLOOKUP(1,Tablas!$A$525:$G$527,5,TRUE)),(VLOOKUP(2,Tablas!$A$525:$G$527,5,TRUE))))), IF($B$17=0,0,IF($B$19=0,0,IF($B$19=1,(VLOOKUP(1,Tablas!$A$525:$G$527,5,TRUE)),IF($B$19=2,(VLOOKUP(2,Tablas!$A$525:$G$527,5,TRUE)), (VLOOKUP(3,Tablas!$A$525:$G$527,5,TRUE))))))) -> 1780.730363 | F55: =IF($B$15=1,IF($B$17=0,0,IF($B$19=0,0,IF($B$19=1,(VLOOKUP(1,Tablas!$A$525:$G$527,7,TRUE)),(VLOOKUP(2,Tablas!$A$525:$G$527,7,TRUE))))), IF($B$17=0,0,IF($B$19=0,0,IF($B$19=1,(VLOOKUP(1,Tablas!$A$525:$G$527,7,TRUE)),IF($B$19=2,(VLOOKUP(2,Tablas!$A$525:$G$527,7,TRUE)), (VLOOKUP(3,Tablas!$A$525:$G$527,7,TRUE))))))) -> 1176.970083 | G55: =IF($B$15=1,IF($B$17=0,0,IF($B$19=0,0,IF($B$19=1,(VLOOKUP(1,Tablas!$A$525:$G$527,7,TRUE)),(VLOOKUP(2,Tablas!$A$525:$G$527,7,TRUE))))), IF($B$17=0,0,IF($B$19=0,0,IF($B$19=1,(VLOOKUP(1,Tablas!$A$525:$G$527,7,TRUE)),IF($B$19=2,(VLOOKUP(2,Tablas!$A$525:$G$527,7,TRUE)), (VLOOKUP(3,Tablas!$A$525:$G$527,7,TRUE))))))) -> 1176.970083
A57: TARIFAS TRIMESTRALES
A58: Prima para Asegurado Titular | C58: =VLOOKUP($B$21,Tablas!$A$685:$G$751,3,TRUE) -> 3542.443616 | D58: =VLOOKUP($B$21,Tablas!$A$685:$G$751,4,TRUE) -> 3105.045193 | E58: =VLOOKUP($B$21,Tablas!$A$685:$G$751,5,TRUE) -> 2544.59488 | F58: =VLOOKUP($B$21,Tablas!$A$685:$G$751,6,TRUE) -> 2206.067845 | G58: =VLOOKUP($B$21,Tablas!$A$685:$G$751,7,TRUE) -> 1680.544924
A59: Prima para conyuge | C59: =IF($B$15=1,0,(VLOOKUP($G$21,Tablas!$A$685:$G$751,3,TRUE))) ->  | D59: =IF($B$15=1,0,(VLOOKUP($G$21,Tablas!$A$685:$G$751,4,TRUE))) ->  | E59: =IF($B$15=1,0,(VLOOKUP($G$21,Tablas!$A$685:$G$751,5,TRUE))) ->  | F59: =IF($B$15=1,0,(VLOOKUP($G$21,Tablas!$A$685:$G$751,6,TRUE))) ->  | G59: =IF($B$15=1,0,(VLOOKUP($G$21,Tablas!$A$685:$G$751,7,TRUE))) -> 
A60: Prima para hijo (s) | C60: =IF($B$15=1, (IF($B$17=0, 0, (IF($B$19>$B$17, (VLOOKUP($B$17,Tablas!$A$752:$G$754,3,TRUE)), (IF($B$17>4,(IF($B$19=0, (VLOOKUP(3,Tablas!$A$752:$G$754,3,TRUE)), (IF($B$19=1, (VLOOKUP(3,Tablas!$A$752:$G$754,3,TRUE)), (IF($B$19=2, (VLOOKUP(3,Tablas!$A$752:$G$754,3,TRUE)), (VLOOKUP(3,Tablas!$A$752:$G$754,3,TRUE)))))))), (IF($B$17=4,(IF(4-$B$19=0,(VLOOKUP(2,Tablas!$A$752:$G$754,3,TRUE)), (IF(4-$B$19=1,(VLOOKUP(2,Tablas!$A$752:$G$754,3,TRUE)), (IF(4-$B$19=2, (VLOOKUP(2,Tablas!$A$752:$G$754,3,TRUE)), (VLOOKUP(3,Tablas!$A$752:$G$754,3,TRUE)))))))), (IF($B$17=3,(IF(3-$B$19=0,(VLOOKUP(1,Tablas!$A$752:$G$754,3,TRUE)), (IF(3-$B$19=1,(VLOOKUP(1,Tablas!$A$752:$G$754,3,TRUE)), (IF(3-$B$19=2, (VLOOKUP(2,Tablas!$A$752:$G$754,3,TRUE)), (VLOOKUP(3,Tablas!$A$752:$G$754,3,TRUE)))))))), (IF($B$17=2,(IF(2-$B$19=0, 0, (IF(2-$B$19=1,(VLOOKUP(1,Tablas!$A$752:$G$754,3,TRUE)), (IF(2-$B$19=2, (VLOOKUP(2,Tablas!$A$752:$G$754,3,TRUE)), 0)))))), (IF($B$17=1,(IF(1-$B$19=0, 0, (IF(1-$B$19=1,(VLOOKUP(1,Tablas!$A$752:$G$754,3,TRUE)),0)))),0)))))))))))))), (IF($B$17=0, 0, (IF($B$19>$B$17, (VLOOKUP($B$17,Tablas!$A$752:$G$754,3,TRUE)), (IF($B$17=4,(IF(4-$B$19=0, 0, (IF(4-$B$19=1, (VLOOKUP(1,Tablas!$A$752:$G$754,3,TRUE)), (IF(4-$B$19=2, (VLOOKUP(2,Tablas!$A$752:$G$754,3,TRUE)), (IF(4-$B$19=3, (VLOOKUP(3,Tablas!$A$752:$G$754,3,TRUE)), (IF(4-$B$19=4, (VLOOKUP(3,Tablas!$A$752:$G$754,3,TRUE)), 0)))))))))), (IF($B$17=5,(IF(5-$B$19=0, (VLOOKUP(1,Tablas!$A$752:$G$754,3,TRUE)), (IF(5-$B$19=1, (VLOOKUP(1,Tablas!$A$752:$G$754,3,TRUE)), (IF(5-$B$19=2, (VLOOKUP(2,Tablas!$A$752:$G$754,3,TRUE)), (IF(5-$B$19=3, (VLOOKUP(3,Tablas!$A$752:$G$754,3,TRUE)), (IF(5-$B$19=4, (VLOOKUP(3,Tablas!$A$752:$G$754,3,TRUE)), (VLOOKUP(3,Tablas!$A$752:$G$754,3,TRUE)))))))))))), (IF($B$17=6,(IF(6-$B$19=0, (VLOOKUP(2,Tablas!$A$752:$G$754,3,TRUE)), (IF(6-$B$19=1, (VLOOKUP(2,Tablas!$A$752:$G$754,3,TRUE)), (IF(6-$B$19=2, (VLOOKUP(2,Tablas!$A$752:$G$754,3,TRUE)), (IF(6-$B$19=3, (VLOOKUP(3,Tablas!$A$752:$G$754,3,TRUE)), (IF(6-$B$19=4, (VLOOKUP(3,Tablas!$A$752:$G$754,3,TRUE)), (VLOOKUP(3,Tablas!$A$752:$G$754,3,TRUE)))))))))))), (IF($B$17>6,(IF(7-$B$19=0, (VLOOKUP(3,Tablas!$A$752:$G$754,3,TRUE)), (IF(7-$B$19=1, (VLOOKUP(3,Tablas!$A$752:$G$754,3,TRUE)), (IF(7-$B$19=2, (VLOOKUP(3,Tablas!$A$752:$G$754,3,TRUE)), (IF(7-$B$19=3, (VLOOKUP(3,Tablas!$A$752:$G$754,3,TRUE)), (IF(7-$B$19=4, (VLOOKUP(3,Tablas!$A$752:$G$754,3,TRUE)), (VLOOKUP(3,Tablas!$A$752:$G$754,3,TRUE)))))))))))), (IF($B$17=3,(IF(3-$B$19=0,0, (IF(3-$B$19=1,(VLOOKUP(1,Tablas!$A$752:$G$754,3,TRUE)), (IF(3-$B$19=2, (VLOOKUP(2,Tablas!$A$752:$G$754,3,TRUE)), (VLOOKUP(3,Tablas!$A$752:$G$754,3,TRUE)))))))), (IF($B$17=2,(IF(2-$B$19=0, 0, (IF(2-$B$19=1,(VLOOKUP(1,Tablas!$A$752:$G$754,3,TRUE)), (IF(2-$B$19=2, (VLOOKUP(2,Tablas!$A$752:$G$754,3,TRUE)), 0)))))), (IF($B$17=1,(IF(1-$B$19=0, 0, (IF(1-$B$19=1,(VLOOKUP(1,Tablas!$A$752:$G$754,3,TRUE)),0)))),0))))))))))))))))))) -> 1260.610197 | D60: =IF($B$15=1, (IF($B$17=0, 0, (IF($B$19>$B$17, (VLOOKUP($B$17,Tablas!$A$752:$G$754,4,TRUE)), (IF($B$17>4,(IF($B$19=0, (VLOOKUP(3,Tablas!$A$752:$G$754,4,TRUE)), (IF($B$19=1, (VLOOKUP(3,Tablas!$A$752:$G$754,4,TRUE)), (IF($B$19=2, (VLOOKUP(3,Tablas!$A$752:$G$754,4,TRUE)), (VLOOKUP(3,Tablas!$A$752:$G$754,4,TRUE)))))))), (IF($B$17=4,(IF(4-$B$19=0,(VLOOKUP(2,Tablas!$A$752:$G$754,4,TRUE)), (IF(4-$B$19=1,(VLOOKUP(2,Tablas!$A$752:$G$754,4,TRUE)), (IF(4-$B$19=2, (VLOOKUP(2,Tablas!$A$752:$G$754,4,TRUE)), (VLOOKUP(3,Tablas!$A$752:$G$754,4,TRUE)))))))), (IF($B$17=3,(IF(3-$B$19=0,(VLOOKUP(1,Tablas!$A$752:$G$754,4,TRUE)), (IF(3-$B$19=1,(VLOOKUP(1,Tablas!$A$752:$G$754,4,TRUE)), (IF(3-$B$19=2, (VLOOKUP(2,Tablas!$A$752:$G$754,4,TRUE)), (VLOOKUP(3,Tablas!$A$752:$G$754,4,TRUE)))))))), (IF($B$17=2,(IF(2-$B$19=0, 0, (IF(2-$B$19=1,(VLOOKUP(1,Tablas!$A$752:$G$754,4,TRUE)), (IF(2-$B$19=2, (VLOOKUP(2,Tablas!$A$752:$G$754,4,TRUE)), 0)))))), (IF($B$17=1,(IF(1-$B$19=0, 0, (IF(1-$B$19=1,(VLOOKUP(1,Tablas!$A$752:$G$754,4,TRUE)),0)))),0)))))))))))))), (IF($B$17=0, 0, (IF($B$19>$B$17, (VLOOKUP($B$17,Tablas!$A$752:$G$754,4,TRUE)), (IF($B$17=4,(IF(4-$B$19=0, 0, (IF(4-$B$19=1, (VLOOKUP(1,Tablas!$A$752:$G$754,4,TRUE)), (IF(4-$B$19=2, (VLOOKUP(2,Tablas!$A$752:$G$754,4,TRUE)), (IF(4-$B$19=3, (VLOOKUP(3,Tablas!$A$752:$G$754,4,TRUE)), (IF(4-$B$19=4, (VLOOKUP(3,Tablas!$A$752:$G$754,4,TRUE)), 0)))))))))), (IF($B$17=5,(IF(5-$B$19=0, (VLOOKUP(1,Tablas!$A$752:$G$754,4,TRUE)), (IF(5-$B$19=1, (VLOOKUP(1,Tablas!$A$752:$G$754,4,TRUE)), (IF(5-$B$19=2, (VLOOKUP(2,Tablas!$A$752:$G$754,4,TRUE)), (IF(5-$B$19=3, (VLOOKUP(3,Tablas!$A$752:$G$754,4,TRUE)), (IF(5-$B$19=4, (VLOOKUP(3,Tablas!$A$752:$G$754,4,TRUE)), (VLOOKUP(3,Tablas!$A$752:$G$754,4,TRUE)))))))))))), (IF($B$17=6,(IF(6-$B$19=0, (VLOOKUP(2,Tablas!$A$752:$G$754,4,TRUE)), (IF(6-$B$19=1, (VLOOKUP(2,Tablas!$A$752:$G$754,4,TRUE)), (IF(6-$B$19=2, (VLOOKUP(2,Tablas!$A$752:$G$754,4,TRUE)), (IF(6-$B$19=3, (VLOOKUP(3,Tablas!$A$752:$G$754,4,TRUE)), (IF(6-$B$19=4, (VLOOKUP(3,Tablas!$A$752:$G$754,4,TRUE)), (VLOOKUP(3,Tablas!$A$752:$G$754,4,TRUE)))))))))))), (IF($B$17>6,(IF(7-$B$19=0, (VLOOKUP(3,Tablas!$A$752:$G$754,4,TRUE)), (IF(7-$B$19=1, (VLOOKUP(3,Tablas!$A$752:$G$754,4,TRUE)), (IF(7-$B$19=2, (VLOOKUP(3,Tablas!$A$752:$G$754,4,TRUE)), (IF(7-$B$19=3, (VLOOKUP(3,Tablas!$A$752:$G$754,4,TRUE)), (IF(7-$B$19=4, (VLOOKUP(3,Tablas!$A$752:$G$754,4,TRUE)), (VLOOKUP(3,Tablas!$A$752:$G$754,4,TRUE)))))))))))), (IF($B$17=3,(IF(3-$B$19=0,0, (IF(3-$B$19=1,(VLOOKUP(1,Tablas!$A$752:$G$754,4,TRUE)), (IF(3-$B$19=2, (VLOOKUP(2,Tablas!$A$752:$G$754,4,TRUE)), (VLOOKUP(3,Tablas!$A$752:$G$754,4,TRUE)))))))), (IF($B$17=2,(IF(2-$B$19=0, 0, (IF(2-$B$19=1,(VLOOKUP(1,Tablas!$A$752:$G$754,4,TRUE)), (IF(2-$B$19=2, (VLOOKUP(2,Tablas!$A$752:$G$754,4,TRUE)), 0)))))), (IF($B$17=1,(IF(1-$B$19=0, 0, (IF(1-$B$19=1,(VLOOKUP(1,Tablas!$A$752:$G$754,4,TRUE)),0)))),0))))))))))))))))))) -> 1105.048964 | E60: =IF($B$15=1, (IF($B$17=0, 0, (IF($B$19>$B$17, (VLOOKUP($B$17,Tablas!$A$752:$G$754,5,TRUE)), (IF($B$17>4,(IF($B$19=0, (VLOOKUP(3,Tablas!$A$752:$G$754,5,TRUE)), (IF($B$19=1, (VLOOKUP(3,Tablas!$A$752:$G$754,5,TRUE)), (IF($B$19=2, (VLOOKUP(3,Tablas!$A$752:$G$754,5,TRUE)), (VLOOKUP(3,Tablas!$A$752:$G$754,5,TRUE)))))))), (IF($B$17=4,(IF(4-$B$19=0,(VLOOKUP(2,Tablas!$A$752:$G$754,5,TRUE)), (IF(4-$B$19=1,(VLOOKUP(2,Tablas!$A$752:$G$754,5,TRUE)), (IF(4-$B$19=2, (VLOOKUP(2,Tablas!$A$752:$G$754,5,TRUE)), (VLOOKUP(3,Tablas!$A$752:$G$754,5,TRUE)))))))), (IF($B$17=3,(IF(3-$B$19=0,(VLOOKUP(1,Tablas!$A$752:$G$754,5,TRUE)), (IF(3-$B$19=1,(VLOOKUP(1,Tablas!$A$752:$G$754,5,TRUE)), (IF(3-$B$19=2, (VLOOKUP(2,Tablas!$A$752:$G$754,5,TRUE)), (VLOOKUP(3,Tablas!$A$752:$G$754,5,TRUE)))))))), (IF($B$17=2,(IF(2-$B$19=0, 0, (IF(2-$B$19=1,(VLOOKUP(1,Tablas!$A$752:$G$754,5,TRUE)), (IF(2-$B$19=2, (VLOOKUP(2,Tablas!$A$752:$G$754,5,TRUE)), 0)))))), (IF($B$17=1,(IF(1-$B$19=0, 0, (IF(1-$B$19=1,(VLOOKUP(1,Tablas!$A$752:$G$754,5,TRUE)),0)))),0)))))))))))))), (IF($B$17=0, 0, (IF($B$19>$B$17, (VLOOKUP($B$17,Tablas!$A$752:$G$754,5,TRUE)), (IF($B$17=4,(IF(4-$B$19=0, 0, (IF(4-$B$19=1, (VLOOKUP(1,Tablas!$A$752:$G$754,5,TRUE)), (IF(4-$B$19=2, (VLOOKUP(2,Tablas!$A$752:$G$754,5,TRUE)), (IF(4-$B$19=3, (VLOOKUP(3,Tablas!$A$752:$G$754,5,TRUE)), (IF(4-$B$19=4, (VLOOKUP(3,Tablas!$A$752:$G$754,5,TRUE)), 0)))))))))), (IF($B$17=5,(IF(5-$B$19=0, (VLOOKUP(1,Tablas!$A$752:$G$754,5,TRUE)), (IF(5-$B$19=1, (VLOOKUP(1,Tablas!$A$752:$G$754,5,TRUE)), (IF(5-$B$19=2, (VLOOKUP(2,Tablas!$A$752:$G$754,5,TRUE)), (IF(5-$B$19=3, (VLOOKUP(3,Tablas!$A$752:$G$754,5,TRUE)), (IF(5-$B$19=4, (VLOOKUP(3,Tablas!$A$752:$G$754,5,TRUE)), (VLOOKUP(3,Tablas!$A$752:$G$754,5,TRUE)))))))))))), (IF($B$17=6,(IF(6-$B$19=0, (VLOOKUP(2,Tablas!$A$752:$G$754,5,TRUE)), (IF(6-$B$19=1, (VLOOKUP(2,Tablas!$A$752:$G$754,5,TRUE)), (IF(6-$B$19=2, (VLOOKUP(2,Tablas!$A$752:$G$754,5,TRUE)), (IF(6-$B$19=3, (VLOOKUP(3,Tablas!$A$752:$G$754,5,TRUE)), (IF(6-$B$19=4, (VLOOKUP(3,Tablas!$A$752:$G$754,5,TRUE)), (VLOOKUP(3,Tablas!$A$752:$G$754,5,TRUE)))))))))))), (IF($B$17>6,(IF(7-$B$19=0, (VLOOKUP(3,Tablas!$A$752:$G$754,5,TRUE)), (IF(7-$B$19=1, (VLOOKUP(3,Tablas!$A$752:$G$754,5,TRUE)), (IF(7-$B$19=2, (VLOOKUP(3,Tablas!$A$752:$G$754,5,TRUE)), (IF(7-$B$19=3, (VLOOKUP(3,Tablas!$A$752:$G$754,5,TRUE)), (IF(7-$B$19=4, (VLOOKUP(3,Tablas!$A$752:$G$754,5,TRUE)), (VLOOKUP(3,Tablas!$A$752:$G$754,5,TRUE)))))))))))), (IF($B$17=3,(IF(3-$B$19=0,0, (IF(3-$B$19=1,(VLOOKUP(1,Tablas!$A$752:$G$754,5,TRUE)), (IF(3-$B$19=2, (VLOOKUP(2,Tablas!$A$752:$G$754,5,TRUE)), (VLOOKUP(3,Tablas!$A$752:$G$754,5,TRUE)))))))), (IF($B$17=2,(IF(2-$B$19=0, 0, (IF(2-$B$19=1,(VLOOKUP(1,Tablas!$A$752:$G$754,5,TRUE)), (IF(2-$B$19=2, (VLOOKUP(2,Tablas!$A$752:$G$754,5,TRUE)), 0)))))), (IF($B$17=1,(IF(1-$B$19=0, 0, (IF(1-$B$19=1,(VLOOKUP(1,Tablas!$A$752:$G$754,5,TRUE)),0)))),0))))))))))))))))))) -> 923.9638678 | F60: =IF($B$15=1, (IF($B$17=0, 0, (IF($B$19>$B$17, (VLOOKUP($B$17,Tablas!$A$752:$G$754,6,TRUE)), (IF($B$17>4,(IF($B$19=0, (VLOOKUP(3,Tablas!$A$752:$G$754,6,TRUE)), (IF($B$19=1, (VLOOKUP(3,Tablas!$A$752:$G$754,6,TRUE)), (IF($B$19=2, (VLOOKUP(3,Tablas!$A$752:$G$754,6,TRUE)), (VLOOKUP(3,Tablas!$A$752:$G$754,6,TRUE)))))))), (IF($B$17=4,(IF(4-$B$19=0,(VLOOKUP(2,Tablas!$A$752:$G$754,6,TRUE)), (IF(4-$B$19=1,(VLOOKUP(2,Tablas!$A$752:$G$754,6,TRUE)), (IF(4-$B$19=2, (VLOOKUP(2,Tablas!$A$752:$G$754,6,TRUE)), (VLOOKUP(3,Tablas!$A$752:$G$754,6,TRUE)))))))), (IF($B$17=3,(IF(3-$B$19=0,(VLOOKUP(1,Tablas!$A$752:$G$754,6,TRUE)), (IF(3-$B$19=1,(VLOOKUP(1,Tablas!$A$752:$G$754,6,TRUE)), (IF(3-$B$19=2, (VLOOKUP(2,Tablas!$A$752:$G$754,6,TRUE)), (VLOOKUP(3,Tablas!$A$752:$G$754,6,TRUE)))))))), (IF($B$17=2,(IF(2-$B$19=0, 0, (IF(2-$B$19=1,(VLOOKUP(1,Tablas!$A$752:$G$754,6,TRUE)), (IF(2-$B$19=2, (VLOOKUP(2,Tablas!$A$752:$G$754,6,TRUE)), 0)))))), (IF($B$17=1,(IF(1-$B$19=0, 0, (IF(1-$B$19=1,(VLOOKUP(1,Tablas!$A$752:$G$754,6,TRUE)),0)))),0)))))))))))))), (IF($B$17=0, 0, (IF($B$19>$B$17, (VLOOKUP($B$17,Tablas!$A$752:$G$754,6,TRUE)), (IF($B$17=4,(IF(4-$B$19=0, 0, (IF(4-$B$19=1, (VLOOKUP(1,Tablas!$A$752:$G$754,6,TRUE)), (IF(4-$B$19=2, (VLOOKUP(2,Tablas!$A$752:$G$754,6,TRUE)), (IF(4-$B$19=3, (VLOOKUP(3,Tablas!$A$752:$G$754,6,TRUE)), (IF(4-$B$19=4, (VLOOKUP(3,Tablas!$A$752:$G$754,6,TRUE)), 0)))))))))), (IF($B$17=5,(IF(5-$B$19=0, (VLOOKUP(1,Tablas!$A$752:$G$754,6,TRUE)), (IF(5-$B$19=1, (VLOOKUP(1,Tablas!$A$752:$G$754,6,TRUE)), (IF(5-$B$19=2, (VLOOKUP(2,Tablas!$A$752:$G$754,6,TRUE)), (IF(5-$B$19=3, (VLOOKUP(3,Tablas!$A$752:$G$754,6,TRUE)), (IF(5-$B$19=4, (VLOOKUP(3,Tablas!$A$752:$G$754,6,TRUE)), (VLOOKUP(3,Tablas!$A$752:$G$754,6,TRUE)))))))))))), (IF($B$17=6,(IF(6-$B$19=0, (VLOOKUP(2,Tablas!$A$752:$G$754,6,TRUE)), (IF(6-$B$19=1, (VLOOKUP(2,Tablas!$A$752:$G$754,6,TRUE)), (IF(6-$B$19=2, (VLOOKUP(2,Tablas!$A$752:$G$754,6,TRUE)), (IF(6-$B$19=3, (VLOOKUP(3,Tablas!$A$752:$G$754,6,TRUE)), (IF(6-$B$19=4, (VLOOKUP(3,Tablas!$A$752:$G$754,6,TRUE)), (VLOOKUP(3,Tablas!$A$752:$G$754,6,TRUE)))))))))))), (IF($B$17>6,(IF(7-$B$19=0, (VLOOKUP(3,Tablas!$A$752:$G$754,6,TRUE)), (IF(7-$B$19=1, (VLOOKUP(3,Tablas!$A$752:$G$754,6,TRUE)), (IF(7-$B$19=2, (VLOOKUP(3,Tablas!$A$752:$G$754,6,TRUE)), (IF(7-$B$19=3, (VLOOKUP(3,Tablas!$A$752:$G$754,6,TRUE)), (IF(7-$B$19=4, (VLOOKUP(3,Tablas!$A$752:$G$754,6,TRUE)), (VLOOKUP(3,Tablas!$A$752:$G$754,6,TRUE)))))))))))), (IF($B$17=3,(IF(3-$B$19=0,0, (IF(3-$B$19=1,(VLOOKUP(1,Tablas!$A$752:$G$754,6,TRUE)), (IF(3-$B$19=2, (VLOOKUP(2,Tablas!$A$752:$G$754,6,TRUE)), (VLOOKUP(3,Tablas!$A$752:$G$754,6,TRUE)))))))), (IF($B$17=2,(IF(2-$B$19=0, 0, (IF(2-$B$19=1,(VLOOKUP(1,Tablas!$A$752:$G$754,6,TRUE)), (IF(2-$B$19=2, (VLOOKUP(2,Tablas!$A$752:$G$754,6,TRUE)), 0)))))), (IF($B$17=1,(IF(1-$B$19=0, 0, (IF(1-$B$19=1,(VLOOKUP(1,Tablas!$A$752:$G$754,6,TRUE)),0)))),0))))))))))))))))))) -> 801.4493217 | G60: =IF($B$15=1, (IF($B$17=0, 0, (IF($B$19>$B$17, (VLOOKUP($B$17,Tablas!$A$752:$G$754,7,TRUE)), (IF($B$17>4,(IF($B$19=0, (VLOOKUP(3,Tablas!$A$752:$G$754,7,TRUE)), (IF($B$19=1, (VLOOKUP(3,Tablas!$A$752:$G$754,7,TRUE)), (IF($B$19=2, (VLOOKUP(3,Tablas!$A$752:$G$754,7,TRUE)), (VLOOKUP(3,Tablas!$A$752:$G$754,7,TRUE)))))))), (IF($B$17=4,(IF(4-$B$19=0,(VLOOKUP(2,Tablas!$A$752:$G$754,7,TRUE)), (IF(4-$B$19=1,(VLOOKUP(2,Tablas!$A$752:$G$754,7,TRUE)), (IF(4-$B$19=2, (VLOOKUP(2,Tablas!$A$752:$G$754,7,TRUE)), (VLOOKUP(3,Tablas!$A$752:$G$754,7,TRUE)))))))), (IF($B$17=3,(IF(3-$B$19=0,(VLOOKUP(1,Tablas!$A$752:$G$754,7,TRUE)), (IF(3-$B$19=1,(VLOOKUP(1,Tablas!$A$752:$G$754,7,TRUE)), (IF(3-$B$19=2, (VLOOKUP(2,Tablas!$A$752:$G$754,7,TRUE)), (VLOOKUP(3,Tablas!$A$752:$G$754,7,TRUE)))))))), (IF($B$17=2,(IF(2-$B$19=0, 0, (IF(2-$B$19=1,(VLOOKUP(1,Tablas!$A$752:$G$754,7,TRUE)), (IF(2-$B$19=2, (VLOOKUP(2,Tablas!$A$752:$G$754,7,TRUE)), 0)))))), (IF($B$17=1,(IF(1-$B$19=0, 0, (IF(1-$B$19=1,(VLOOKUP(1,Tablas!$A$752:$G$754,7,TRUE)),0)))),0)))))))))))))), (IF($B$17=0, 0, (IF($B$19>$B$17, (VLOOKUP($B$17,Tablas!$A$752:$G$754,7,TRUE)), (IF($B$17=4,(IF(4-$B$19=0, 0, (IF(4-$B$19=1, (VLOOKUP(1,Tablas!$A$752:$G$754,7,TRUE)), (IF(4-$B$19=2, (VLOOKUP(2,Tablas!$A$752:$G$754,7,TRUE)), (IF(4-$B$19=3, (VLOOKUP(3,Tablas!$A$752:$G$754,7,TRUE)), (IF(4-$B$19=4, (VLOOKUP(3,Tablas!$A$752:$G$754,7,TRUE)), 0)))))))))), (IF($B$17=5,(IF(5-$B$19=0, (VLOOKUP(1,Tablas!$A$752:$G$754,7,TRUE)), (IF(5-$B$19=1, (VLOOKUP(1,Tablas!$A$752:$G$754,7,TRUE)), (IF(5-$B$19=2, (VLOOKUP(2,Tablas!$A$752:$G$754,7,TRUE)), (IF(5-$B$19=3, (VLOOKUP(3,Tablas!$A$752:$G$754,7,TRUE)), (IF(5-$B$19=4, (VLOOKUP(3,Tablas!$A$752:$G$754,7,TRUE)), (VLOOKUP(3,Tablas!$A$752:$G$754,7,TRUE)))))))))))), (IF($B$17=6,(IF(6-$B$19=0, (VLOOKUP(2,Tablas!$A$752:$G$754,7,TRUE)), (IF(6-$B$19=1, (VLOOKUP(2,Tablas!$A$752:$G$754,7,TRUE)), (IF(6-$B$19=2, (VLOOKUP(2,Tablas!$A$752:$G$754,7,TRUE)), (IF(6-$B$19=3, (VLOOKUP(3,Tablas!$A$752:$G$754,7,TRUE)), (IF(6-$B$19=4, (VLOOKUP(3,Tablas!$A$752:$G$754,7,TRUE)), (VLOOKUP(3,Tablas!$A$752:$G$754,7,TRUE)))))))))))), (IF($B$17>6,(IF(7-$B$19=0, (VLOOKUP(3,Tablas!$A$752:$G$754,7,TRUE)), (IF(7-$B$19=1, (VLOOKUP(3,Tablas!$A$752:$G$754,7,TRUE)), (IF(7-$B$19=2, (VLOOKUP(3,Tablas!$A$752:$G$754,7,TRUE)), (IF(7-$B$19=3, (VLOOKUP(3,Tablas!$A$752:$G$754,7,TRUE)), (IF(7-$B$19=4, (VLOOKUP(3,Tablas!$A$752:$G$754,7,TRUE)), (VLOOKUP(3,Tablas!$A$752:$G$754,7,TRUE)))))))))))), (IF($B$17=3,(IF(3-$B$19=0,0, (IF(3-$B$19=1,(VLOOKUP(1,Tablas!$A$752:$G$754,7,TRUE)), (IF(3-$B$19=2, (VLOOKUP(2,Tablas!$A$752:$G$754,7,TRUE)), (VLOOKUP(3,Tablas!$A$752:$G$754,7,TRUE)))))))), (IF($B$17=2,(IF(2-$B$19=0, 0, (IF(2-$B$19=1,(VLOOKUP(1,Tablas!$A$752:$G$754,7,TRUE)), (IF(2-$B$19=2, (VLOOKUP(2,Tablas!$A$752:$G$754,7,TRUE)), 0)))))), (IF($B$17=1,(IF(1-$B$19=0, 0, (IF(1-$B$19=1,(VLOOKUP(1,Tablas!$A$752:$G$754,7,TRUE)),0)))),0))))))))))))))))))) -> 610.6920243
A61: Total de Prima neta | C61: =SUM(C58:C60) ->  | D61: =SUM(D58:D60) -> 
A62: Ajuste por la variante con coaseguro fuera del país de residencia | C62: =IF('INGRESO DE DATOS'!$P$3,C61*-15%,0) -> 0 | D62: =IF('INGRESO DE DATOS'!$P$3,D61*-15%,0) -> 0 | E62: =IF('INGRESO DE DATOS'!$P$3,E61*-15%,0) -> 0 | F62: =IF('INGRESO DE DATOS'!$P$3,F61*-15%,0) -> 0 | G62: =IF('INGRESO DE DATOS'!$P$3,G61*-15%,0) -> 0
A63: Tarifa administrativa anual | C63: =Tablas!$Y$2 -> 86 | D63: =Tablas!$Y$2 -> 86 | E63: =Tablas!$Y$2 -> 86 | F63: =Tablas!$Y$2 -> 86 | G63: =Tablas!$Y$2 -> 86
A64: VAT (5%) :
A65: ITBMS (7%)
A66: TOTAL de primera cuota | C66: =SUM(C61:C65) ->  | D66: =SUM(D61:D65) -> 
A67: Costo de tarifa trimestral 2 a 4 | C67: =C66-C63 ->  | D67: =D66-D63 -> 
A68: TOTAL ANUAL | C68: =C66+(C67*3) ->  | D68: =D66+(D67*3) ->  | F68: =F66+(F67*3) -> 
A69: Ahorros en tarifas de prima para Dependientes | C69: =IF($B$15=1,IF($B$17=0,0,IF($B$19=0,0,IF($B$19=1,(VLOOKUP(1,Tablas!$A$752:$G$754,3,TRUE)),(VLOOKUP(2,Tablas!$A$752:$G$754,3,TRUE))))), IF($B$17=0,0,IF($B$19=0,0,IF($B$19=1,(VLOOKUP(1,Tablas!$A$752:$G$754,3,TRUE)),IF($B$19=2,(VLOOKUP(2,Tablas!$A$752:$G$754,3,TRUE)), (VLOOKUP(3,Tablas!$A$752:$G$754,3,TRUE))))))) -> 1260.610197 | D69: =IF($B$15=1,IF($B$17=0,0,IF($B$19=0,0,IF($B$19=1,(VLOOKUP(1,Tablas!$A$752:$G$754,4,TRUE)),(VLOOKUP(2,Tablas!$A$752:$G$754,4,TRUE))))), IF($B$17=0,0,IF($B$19=0,0,IF($B$19=1,(VLOOKUP(1,Tablas!$A$752:$G$754,4,TRUE)),IF($B$19=2,(VLOOKUP(2,Tablas!$A$752:$G$754,4,TRUE)), (VLOOKUP(3,Tablas!$A$752:$G$754,4,TRUE))))))) -> 1105.048964 | E69: =IF($B$15=1,IF($B$17=0,0,IF($B$19=0,0,IF($B$19=1,(VLOOKUP(1,Tablas!$A$752:$G$754,5,TRUE)),(VLOOKUP(2,Tablas!$A$752:$G$754,5,TRUE))))), IF($B$17=0,0,IF($B$19=0,0,IF($B$19=1,(VLOOKUP(1,Tablas!$A$752:$G$754,5,TRUE)),IF($B$19=2,(VLOOKUP(2,Tablas!$A$752:$G$754,5,TRUE)), (VLOOKUP(3,Tablas!$A$752:$G$754,5,TRUE))))))) -> 923.9638678 | F69: =IF($B$15=1,IF($B$17=0,0,IF($B$19=0,0,IF($B$19=1,(VLOOKUP(1,Tablas!$A$752:$G$754,6,TRUE)),(VLOOKUP(2,Tablas!$A$752:$G$754,6,TRUE))))), IF($B$17=0,0,IF($B$19=0,0,IF($B$19=1,(VLOOKUP(1,Tablas!$A$752:$G$754,6,TRUE)),IF($B$19=2,(VLOOKUP(2,Tablas!$A$752:$G$754,6,TRUE)), (VLOOKUP(3,Tablas!$A$752:$G$754,6,TRUE))))))) -> 801.4493217 | G69: =IF($B$15=1,IF($B$17=0,0,IF($B$19=0,0,IF($B$19=1,(VLOOKUP(1,Tablas!$A$752:$G$754,7,TRUE)),(VLOOKUP(2,Tablas!$A$752:$G$754,7,TRUE))))), IF($B$17=0,0,IF($B$19=0,0,IF($B$19=1,(VLOOKUP(1,Tablas!$A$752:$G$754,7,TRUE)),IF($B$19=2,(VLOOKUP(2,Tablas!$A$752:$G$754,7,TRUE)), (VLOOKUP(3,Tablas!$A$752:$G$754,7,TRUE))))))) -> 610.6920243
A71: TARIFAS MENSUALES
A72: Prima para Asegurado Titular | C72: =VLOOKUP($B$21,Tablas!$A$80:$G$146,3,TRUE) -> 1202.283894 | D72: =VLOOKUP($B$21,Tablas!$A$80:$G$146,4,TRUE) -> 1053.83352 | E72: =VLOOKUP($B$21,Tablas!$A$80:$G$146,5,TRUE) -> 863.6200804 | F72: =VLOOKUP($B$21,Tablas!$A$80:$G$146,6,TRUE) -> 748.7260564 | G72: =VLOOKUP($B$21,Tablas!$A$80:$G$146,7,TRUE) -> 570.366762
A73: Prima para conyuge | C73: =IF($B$15=1,0,(VLOOKUP($G$21,Tablas!$A$80:$G$146,3,TRUE))) ->  | D73: =IF($B$15=1,0,(VLOOKUP($G$21,Tablas!$A$80:$G$146,4,TRUE))) ->  | E73: =IF($B$15=1,0,(VLOOKUP($G$21,Tablas!$A$80:$G$146,5,TRUE))) ->  | F73: =IF($B$15=1,0,(VLOOKUP($G$21,Tablas!$A$80:$G$146,6,TRUE))) ->  | G73: =IF($B$15=1,0,(VLOOKUP($G$21,Tablas!$A$80:$G$146,7,TRUE))) -> 
A74: Prima para hijo (s) | C74: =IF($B$15=1, (IF($B$17=0, 0, (IF($B$19>$B$17, (VLOOKUP($B$17,Tablas!$A$147:$G$149,3,TRUE)), (IF($B$17>4,(IF($B$19=0, (VLOOKUP(3,Tablas!$A$147:$G$149,3,TRUE)), (IF($B$19=1, (VLOOKUP(3,Tablas!$A$147:$G$149,3,TRUE)), (IF($B$19=2, (VLOOKUP(3,Tablas!$A$147:$G$149,3,TRUE)), (VLOOKUP(3,Tablas!$A$147:$G$149,3,TRUE)))))))), (IF($B$17=4,(IF(4-$B$19=0,(VLOOKUP(2,Tablas!$A$147:$G$149,3,TRUE)), (IF(4-$B$19=1,(VLOOKUP(2,Tablas!$A$147:$G$149,3,TRUE)), (IF(4-$B$19=2, (VLOOKUP(2,Tablas!$A$147:$G$149,3,TRUE)), (VLOOKUP(3,Tablas!$A$147:$G$149,3,TRUE)))))))), (IF($B$17=3,(IF(3-$B$19=0,(VLOOKUP(1,Tablas!$A$147:$G$149,3,TRUE)), (IF(3-$B$19=1,(VLOOKUP(1,Tablas!$A$147:$G$149,3,TRUE)), (IF(3-$B$19=2, (VLOOKUP(2,Tablas!$A$147:$G$149,3,TRUE)), (VLOOKUP(3,Tablas!$A$147:$G$149,3,TRUE)))))))), (IF($B$17=2,(IF(2-$B$19=0, 0, (IF(2-$B$19=1,(VLOOKUP(1,Tablas!$A$147:$G$149,3,TRUE)), (IF(2-$B$19=2, (VLOOKUP(2,Tablas!$A$147:$G$149,3,TRUE)), 0)))))), (IF($B$17=1,(IF(1-$B$19=0, 0, (IF(1-$B$19=1,(VLOOKUP(1,Tablas!$A$147:$G$149,3,TRUE)),0)))),0)))))))))))))), (IF($B$17=0, 0, (IF($B$19>$B$17, (VLOOKUP($B$17,Tablas!$A$147:$G$149,3,TRUE)), (IF($B$17=4,(IF(4-$B$19=0, 0, (IF(4-$B$19=1, (VLOOKUP(1,Tablas!$A$147:$G$149,3,TRUE)), (IF(4-$B$19=2, (VLOOKUP(2,Tablas!$A$147:$G$149,3,TRUE)), (IF(4-$B$19=3, (VLOOKUP(3,Tablas!$A$147:$G$149,3,TRUE)), (IF(4-$B$19=4, (VLOOKUP(3,Tablas!$A$147:$G$149,3,TRUE)), 0)))))))))), (IF($B$17=5,(IF(5-$B$19=0, (VLOOKUP(1,Tablas!$A$147:$G$149,3,TRUE)), (IF(5-$B$19=1, (VLOOKUP(1,Tablas!$A$147:$G$149,3,TRUE)), (IF(5-$B$19=2, (VLOOKUP(2,Tablas!$A$147:$G$149,3,TRUE)), (IF(5-$B$19=3, (VLOOKUP(3,Tablas!$A$147:$G$149,3,TRUE)), (IF(5-$B$19=4, (VLOOKUP(3,Tablas!$A$147:$G$149,3,TRUE)), (VLOOKUP(3,Tablas!$A$147:$G$149,3,TRUE)))))))))))), (IF($B$17=6,(IF(6-$B$19=0, (VLOOKUP(2,Tablas!$A$147:$G$149,3,TRUE)), (IF(6-$B$19=1, (VLOOKUP(2,Tablas!$A$147:$G$149,3,TRUE)), (IF(6-$B$19=2, (VLOOKUP(2,Tablas!$A$147:$G$149,3,TRUE)), (IF(6-$B$19=3, (VLOOKUP(3,Tablas!$A$147:$G$149,3,TRUE)), (IF(6-$B$19=4, (VLOOKUP(3,Tablas!$A$147:$G$149,3,TRUE)), (VLOOKUP(3,Tablas!$A$147:$G$149,3,TRUE)))))))))))), (IF($B$17>6,(IF(7-$B$19=0, (VLOOKUP(3,Tablas!$A$147:$G$149,3,TRUE)), (IF(7-$B$19=1, (VLOOKUP(3,Tablas!$A$147:$G$149,3,TRUE)), (IF(7-$B$19=2, (VLOOKUP(3,Tablas!$A$147:$G$149,3,TRUE)), (IF(7-$B$19=3, (VLOOKUP(3,Tablas!$A$147:$G$149,3,TRUE)), (IF(7-$B$19=4, (VLOOKUP(3,Tablas!$A$147:$G$149,3,TRUE)), (VLOOKUP(3,Tablas!$A$147:$G$149,3,TRUE)))))))))))), (IF($B$17=3,(IF(3-$B$19=0,0, (IF(3-$B$19=1,(VLOOKUP(1,Tablas!$A$147:$G$149,3,TRUE)), (IF(3-$B$19=2, (VLOOKUP(2,Tablas!$A$147:$G$149,3,TRUE)), (VLOOKUP(3,Tablas!$A$147:$G$149,3,TRUE)))))))), (IF($B$17=2,(IF(2-$B$19=0, 0, (IF(2-$B$19=1,(VLOOKUP(1,Tablas!$A$147:$G$149,3,TRUE)), (IF(2-$B$19=2, (VLOOKUP(2,Tablas!$A$147:$G$149,3,TRUE)), 0)))))), (IF($B$17=1,(IF(1-$B$19=0, 0, (IF(1-$B$19=1,(VLOOKUP(1,Tablas!$A$147:$G$149,3,TRUE)),0)))),0))))))))))))))))))) -> 427.8434608 | D74: =IF($B$15=1, (IF($B$17=0, 0, (IF($B$19>$B$17, (VLOOKUP($B$17,Tablas!$A$147:$G$149,4,TRUE)), (IF($B$17>4,(IF($B$19=0, (VLOOKUP(3,Tablas!$A$147:$G$149,4,TRUE)), (IF($B$19=1, (VLOOKUP(3,Tablas!$A$147:$G$149,4,TRUE)), (IF($B$19=2, (VLOOKUP(3,Tablas!$A$147:$G$149,4,TRUE)), (VLOOKUP(3,Tablas!$A$147:$G$149,4,TRUE)))))))), (IF($B$17=4,(IF(4-$B$19=0,(VLOOKUP(2,Tablas!$A$147:$G$149,4,TRUE)), (IF(4-$B$19=1,(VLOOKUP(2,Tablas!$A$147:$G$149,4,TRUE)), (IF(4-$B$19=2, (VLOOKUP(2,Tablas!$A$147:$G$149,4,TRUE)), (VLOOKUP(3,Tablas!$A$147:$G$149,4,TRUE)))))))), (IF($B$17=3,(IF(3-$B$19=0,(VLOOKUP(1,Tablas!$A$147:$G$149,4,TRUE)), (IF(3-$B$19=1,(VLOOKUP(1,Tablas!$A$147:$G$149,4,TRUE)), (IF(3-$B$19=2, (VLOOKUP(2,Tablas!$A$147:$G$149,4,TRUE)), (VLOOKUP(3,Tablas!$A$147:$G$149,4,TRUE)))))))), (IF($B$17=2,(IF(2-$B$19=0, 0, (IF(2-$B$19=1,(VLOOKUP(1,Tablas!$A$147:$G$149,4,TRUE)), (IF(2-$B$19=2, (VLOOKUP(2,Tablas!$A$147:$G$149,4,TRUE)), 0)))))), (IF($B$17=1,(IF(1-$B$19=0, 0, (IF(1-$B$19=1,(VLOOKUP(1,Tablas!$A$147:$G$149,4,TRUE)),0)))),0)))))))))))))), (IF($B$17=0, 0, (IF($B$19>$B$17, (VLOOKUP($B$17,Tablas!$A$147:$G$149,4,TRUE)), (IF($B$17=4,(IF(4-$B$19=0, 0, (IF(4-$B$19=1, (VLOOKUP(1,Tablas!$A$147:$G$149,4,TRUE)), (IF(4-$B$19=2, (VLOOKUP(2,Tablas!$A$147:$G$149,4,TRUE)), (IF(4-$B$19=3, (VLOOKUP(3,Tablas!$A$147:$G$149,4,TRUE)), (IF(4-$B$19=4, (VLOOKUP(3,Tablas!$A$147:$G$149,4,TRUE)), 0)))))))))), (IF($B$17=5,(IF(5-$B$19=0, (VLOOKUP(1,Tablas!$A$147:$G$149,4,TRUE)), (IF(5-$B$19=1, (VLOOKUP(1,Tablas!$A$147:$G$149,4,TRUE)), (IF(5-$B$19=2, (VLOOKUP(2,Tablas!$A$147:$G$149,4,TRUE)), (IF(5-$B$19=3, (VLOOKUP(3,Tablas!$A$147:$G$149,4,TRUE)), (IF(5-$B$19=4, (VLOOKUP(3,Tablas!$A$147:$G$149,4,TRUE)), (VLOOKUP(3,Tablas!$A$147:$G$149,4,TRUE)))))))))))), (IF($B$17=6,(IF(6-$B$19=0, (VLOOKUP(2,Tablas!$A$147:$G$149,4,TRUE)), (IF(6-$B$19=1, (VLOOKUP(2,Tablas!$A$147:$G$149,4,TRUE)), (IF(6-$B$19=2, (VLOOKUP(2,Tablas!$A$147:$G$149,4,TRUE)), (IF(6-$B$19=3, (VLOOKUP(3,Tablas!$A$147:$G$149,4,TRUE)), (IF(6-$B$19=4, (VLOOKUP(3,Tablas!$A$147:$G$149,4,TRUE)), (VLOOKUP(3,Tablas!$A$147:$G$149,4,TRUE)))))))))))), (IF($B$17>6,(IF(7-$B$19=0, (VLOOKUP(3,Tablas!$A$147:$G$149,4,TRUE)), (IF(7-$B$19=1, (VLOOKUP(3,Tablas!$A$147:$G$149,4,TRUE)), (IF(7-$B$19=2, (VLOOKUP(3,Tablas!$A$147:$G$149,4,TRUE)), (IF(7-$B$19=3, (VLOOKUP(3,Tablas!$A$147:$G$149,4,TRUE)), (IF(7-$B$19=4, (VLOOKUP(3,Tablas!$A$147:$G$149,4,TRUE)), (VLOOKUP(3,Tablas!$A$147:$G$149,4,TRUE)))))))))))), (IF($B$17=3,(IF(3-$B$19=0,0, (IF(3-$B$19=1,(VLOOKUP(1,Tablas!$A$147:$G$149,4,TRUE)), (IF(3-$B$19=2, (VLOOKUP(2,Tablas!$A$147:$G$149,4,TRUE)), (VLOOKUP(3,Tablas!$A$147:$G$149,4,TRUE)))))))), (IF($B$17=2,(IF(2-$B$19=0, 0, (IF(2-$B$19=1,(VLOOKUP(1,Tablas!$A$147:$G$149,4,TRUE)), (IF(2-$B$19=2, (VLOOKUP(2,Tablas!$A$147:$G$149,4,TRUE)), 0)))))), (IF($B$17=1,(IF(1-$B$19=0, 0, (IF(1-$B$19=1,(VLOOKUP(1,Tablas!$A$147:$G$149,4,TRUE)),0)))),0))))))))))))))))))) -> 375.0469212 | E74: =IF($B$15=1, (IF($B$17=0, 0, (IF($B$19>$B$17, (VLOOKUP($B$17,Tablas!$A$147:$G$149,5,TRUE)), (IF($B$17>4,(IF($B$19=0, (VLOOKUP(3,Tablas!$A$147:$G$149,5,TRUE)), (IF($B$19=1, (VLOOKUP(3,Tablas!$A$147:$G$149,5,TRUE)), (IF($B$19=2, (VLOOKUP(3,Tablas!$A$147:$G$149,5,TRUE)), (VLOOKUP(3,Tablas!$A$147:$G$149,5,TRUE)))))))), (IF($B$17=4,(IF(4-$B$19=0,(VLOOKUP(2,Tablas!$A$147:$G$149,5,TRUE)), (IF(4-$B$19=1,(VLOOKUP(2,Tablas!$A$147:$G$149,5,TRUE)), (IF(4-$B$19=2, (VLOOKUP(2,Tablas!$A$147:$G$149,5,TRUE)), (VLOOKUP(3,Tablas!$A$147:$G$149,5,TRUE)))))))), (IF($B$17=3,(IF(3-$B$19=0,(VLOOKUP(1,Tablas!$A$147:$G$149,5,TRUE)), (IF(3-$B$19=1,(VLOOKUP(1,Tablas!$A$147:$G$149,5,TRUE)), (IF(3-$B$19=2, (VLOOKUP(2,Tablas!$A$147:$G$149,5,TRUE)), (VLOOKUP(3,Tablas!$A$147:$G$149,5,TRUE)))))))), (IF($B$17=2,(IF(2-$B$19=0, 0, (IF(2-$B$19=1,(VLOOKUP(1,Tablas!$A$147:$G$149,5,TRUE)), (IF(2-$B$19=2, (VLOOKUP(2,Tablas!$A$147:$G$149,5,TRUE)), 0)))))), (IF($B$17=1,(IF(1-$B$19=0, 0, (IF(1-$B$19=1,(VLOOKUP(1,Tablas!$A$147:$G$149,5,TRUE)),0)))),0)))))))))))))), (IF($B$17=0, 0, (IF($B$19>$B$17, (VLOOKUP($B$17,Tablas!$A$147:$G$149,5,TRUE)), (IF($B$17=4,(IF(4-$B$19=0, 0, (IF(4-$B$19=1, (VLOOKUP(1,Tablas!$A$147:$G$149,5,TRUE)), (IF(4-$B$19=2, (VLOOKUP(2,Tablas!$A$147:$G$149,5,TRUE)), (IF(4-$B$19=3, (VLOOKUP(3,Tablas!$A$147:$G$149,5,TRUE)), (IF(4-$B$19=4, (VLOOKUP(3,Tablas!$A$147:$G$149,5,TRUE)), 0)))))))))), (IF($B$17=5,(IF(5-$B$19=0, (VLOOKUP(1,Tablas!$A$147:$G$149,5,TRUE)), (IF(5-$B$19=1, (VLOOKUP(1,Tablas!$A$147:$G$149,5,TRUE)), (IF(5-$B$19=2, (VLOOKUP(2,Tablas!$A$147:$G$149,5,TRUE)), (IF(5-$B$19=3, (VLOOKUP(3,Tablas!$A$147:$G$149,5,TRUE)), (IF(5-$B$19=4, (VLOOKUP(3,Tablas!$A$147:$G$149,5,TRUE)), (VLOOKUP(3,Tablas!$A$147:$G$149,5,TRUE)))))))))))), (IF($B$17=6,(IF(6-$B$19=0, (VLOOKUP(2,Tablas!$A$147:$G$149,5,TRUE)), (IF(6-$B$19=1, (VLOOKUP(2,Tablas!$A$147:$G$149,5,TRUE)), (IF(6-$B$19=2, (VLOOKUP(2,Tablas!$A$147:$G$149,5,TRUE)), (IF(6-$B$19=3, (VLOOKUP(3,Tablas!$A$147:$G$149,5,TRUE)), (IF(6-$B$19=4, (VLOOKUP(3,Tablas!$A$147:$G$149,5,TRUE)), (VLOOKUP(3,Tablas!$A$147:$G$149,5,TRUE)))))))))))), (IF($B$17>6,(IF(7-$B$19=0, (VLOOKUP(3,Tablas!$A$147:$G$149,5,TRUE)), (IF(7-$B$19=1, (VLOOKUP(3,Tablas!$A$147:$G$149,5,TRUE)), (IF(7-$B$19=2, (VLOOKUP(3,Tablas!$A$147:$G$149,5,TRUE)), (IF(7-$B$19=3, (VLOOKUP(3,Tablas!$A$147:$G$149,5,TRUE)), (IF(7-$B$19=4, (VLOOKUP(3,Tablas!$A$147:$G$149,5,TRUE)), (VLOOKUP(3,Tablas!$A$147:$G$149,5,TRUE)))))))))))), (IF($B$17=3,(IF(3-$B$19=0,0, (IF(3-$B$19=1,(VLOOKUP(1,Tablas!$A$147:$G$149,5,TRUE)), (IF(3-$B$19=2, (VLOOKUP(2,Tablas!$A$147:$G$149,5,TRUE)), (VLOOKUP(3,Tablas!$A$147:$G$149,5,TRUE)))))))), (IF($B$17=2,(IF(2-$B$19=0, 0, (IF(2-$B$19=1,(VLOOKUP(1,Tablas!$A$147:$G$149,5,TRUE)), (IF(2-$B$19=2, (VLOOKUP(2,Tablas!$A$147:$G$149,5,TRUE)), 0)))))), (IF($B$17=1,(IF(1-$B$19=0, 0, (IF(1-$B$19=1,(VLOOKUP(1,Tablas!$A$147:$G$149,5,TRUE)),0)))),0))))))))))))))))))) -> 313.5877369 | F74: =IF($B$15=1, (IF($B$17=0, 0, (IF($B$19>$B$17, (VLOOKUP($B$17,Tablas!$A$147:$G$149,6,TRUE)), (IF($B$17>4,(IF($B$19=0, (VLOOKUP(3,Tablas!$A$147:$G$149,6,TRUE)), (IF($B$19=1, (VLOOKUP(3,Tablas!$A$147:$G$149,6,TRUE)), (IF($B$19=2, (VLOOKUP(3,Tablas!$A$147:$G$149,6,TRUE)), (VLOOKUP(3,Tablas!$A$147:$G$149,6,TRUE)))))))), (IF($B$17=4,(IF(4-$B$19=0,(VLOOKUP(2,Tablas!$A$147:$G$149,6,TRUE)), (IF(4-$B$19=1,(VLOOKUP(2,Tablas!$A$147:$G$149,6,TRUE)), (IF(4-$B$19=2, (VLOOKUP(2,Tablas!$A$147:$G$149,6,TRUE)), (VLOOKUP(3,Tablas!$A$147:$G$149,6,TRUE)))))))), (IF($B$17=3,(IF(3-$B$19=0,(VLOOKUP(1,Tablas!$A$147:$G$149,6,TRUE)), (IF(3-$B$19=1,(VLOOKUP(1,Tablas!$A$147:$G$149,6,TRUE)), (IF(3-$B$19=2, (VLOOKUP(2,Tablas!$A$147:$G$149,6,TRUE)), (VLOOKUP(3,Tablas!$A$147:$G$149,6,TRUE)))))))), (IF($B$17=2,(IF(2-$B$19=0, 0, (IF(2-$B$19=1,(VLOOKUP(1,Tablas!$A$147:$G$149,6,TRUE)), (IF(2-$B$19=2, (VLOOKUP(2,Tablas!$A$147:$G$149,6,TRUE)), 0)))))), (IF($B$17=1,(IF(1-$B$19=0, 0, (IF(1-$B$19=1,(VLOOKUP(1,Tablas!$A$147:$G$149,6,TRUE)),0)))),0)))))))))))))), (IF($B$17=0, 0, (IF($B$19>$B$17, (VLOOKUP($B$17,Tablas!$A$147:$G$149,6,TRUE)), (IF($B$17=4,(IF(4-$B$19=0, 0, (IF(4-$B$19=1, (VLOOKUP(1,Tablas!$A$147:$G$149,6,TRUE)), (IF(4-$B$19=2, (VLOOKUP(2,Tablas!$A$147:$G$149,6,TRUE)), (IF(4-$B$19=3, (VLOOKUP(3,Tablas!$A$147:$G$149,6,TRUE)), (IF(4-$B$19=4, (VLOOKUP(3,Tablas!$A$147:$G$149,6,TRUE)), 0)))))))))), (IF($B$17=5,(IF(5-$B$19=0, (VLOOKUP(1,Tablas!$A$147:$G$149,6,TRUE)), (IF(5-$B$19=1, (VLOOKUP(1,Tablas!$A$147:$G$149,6,TRUE)), (IF(5-$B$19=2, (VLOOKUP(2,Tablas!$A$147:$G$149,6,TRUE)), (IF(5-$B$19=3, (VLOOKUP(3,Tablas!$A$147:$G$149,6,TRUE)), (IF(5-$B$19=4, (VLOOKUP(3,Tablas!$A$147:$G$149,6,TRUE)), (VLOOKUP(3,Tablas!$A$147:$G$149,6,TRUE)))))))))))), (IF($B$17=6,(IF(6-$B$19=0, (VLOOKUP(2,Tablas!$A$147:$G$149,6,TRUE)), (IF(6-$B$19=1, (VLOOKUP(2,Tablas!$A$147:$G$149,6,TRUE)), (IF(6-$B$19=2, (VLOOKUP(2,Tablas!$A$147:$G$149,6,TRUE)), (IF(6-$B$19=3, (VLOOKUP(3,Tablas!$A$147:$G$149,6,TRUE)), (IF(6-$B$19=4, (VLOOKUP(3,Tablas!$A$147:$G$149,6,TRUE)), (VLOOKUP(3,Tablas!$A$147:$G$149,6,TRUE)))))))))))), (IF($B$17>6,(IF(7-$B$19=0, (VLOOKUP(3,Tablas!$A$147:$G$149,6,TRUE)), (IF(7-$B$19=1, (VLOOKUP(3,Tablas!$A$147:$G$149,6,TRUE)), (IF(7-$B$19=2, (VLOOKUP(3,Tablas!$A$147:$G$149,6,TRUE)), (IF(7-$B$19=3, (VLOOKUP(3,Tablas!$A$147:$G$149,6,TRUE)), (IF(7-$B$19=4, (VLOOKUP(3,Tablas!$A$147:$G$149,6,TRUE)), (VLOOKUP(3,Tablas!$A$147:$G$149,6,TRUE)))))))))))), (IF($B$17=3,(IF(3-$B$19=0,0, (IF(3-$B$19=1,(VLOOKUP(1,Tablas!$A$147:$G$149,6,TRUE)), (IF(3-$B$19=2, (VLOOKUP(2,Tablas!$A$147:$G$149,6,TRUE)), (VLOOKUP(3,Tablas!$A$147:$G$149,6,TRUE)))))))), (IF($B$17=2,(IF(2-$B$19=0, 0, (IF(2-$B$19=1,(VLOOKUP(1,Tablas!$A$147:$G$149,6,TRUE)), (IF(2-$B$19=2, (VLOOKUP(2,Tablas!$A$147:$G$149,6,TRUE)), 0)))))), (IF($B$17=1,(IF(1-$B$19=0, 0, (IF(1-$B$19=1,(VLOOKUP(1,Tablas!$A$147:$G$149,6,TRUE)),0)))),0))))))))))))))))))) -> 272.0070425 | G74: =IF($B$15=1, (IF($B$17=0, 0, (IF($B$19>$B$17, (VLOOKUP($B$17,Tablas!$A$147:$G$149,7,TRUE)), (IF($B$17>4,(IF($B$19=0, (VLOOKUP(3,Tablas!$A$147:$G$149,7,TRUE)), (IF($B$19=1, (VLOOKUP(3,Tablas!$A$147:$G$149,7,TRUE)), (IF($B$19=2, (VLOOKUP(3,Tablas!$A$147:$G$149,7,TRUE)), (VLOOKUP(3,Tablas!$A$147:$G$149,7,TRUE)))))))), (IF($B$17=4,(IF(4-$B$19=0,(VLOOKUP(2,Tablas!$A$147:$G$149,7,TRUE)), (IF(4-$B$19=1,(VLOOKUP(2,Tablas!$A$147:$G$149,7,TRUE)), (IF(4-$B$19=2, (VLOOKUP(2,Tablas!$A$147:$G$149,7,TRUE)), (VLOOKUP(3,Tablas!$A$147:$G$149,7,TRUE)))))))), (IF($B$17=3,(IF(3-$B$19=0,(VLOOKUP(1,Tablas!$A$147:$G$149,7,TRUE)), (IF(3-$B$19=1,(VLOOKUP(1,Tablas!$A$147:$G$149,7,TRUE)), (IF(3-$B$19=2, (VLOOKUP(2,Tablas!$A$147:$G$149,7,TRUE)), (VLOOKUP(3,Tablas!$A$147:$G$149,7,TRUE)))))))), (IF($B$17=2,(IF(2-$B$19=0, 0, (IF(2-$B$19=1,(VLOOKUP(1,Tablas!$A$147:$G$149,7,TRUE)), (IF(2-$B$19=2, (VLOOKUP(2,Tablas!$A$147:$G$149,7,TRUE)), 0)))))), (IF($B$17=1,(IF(1-$B$19=0, 0, (IF(1-$B$19=1,(VLOOKUP(1,Tablas!$A$147:$G$149,7,TRUE)),0)))),0)))))))))))))), (IF($B$17=0, 0, (IF($B$19>$B$17, (VLOOKUP($B$17,Tablas!$A$147:$G$149,7,TRUE)), (IF($B$17=4,(IF(4-$B$19=0, 0, (IF(4-$B$19=1, (VLOOKUP(1,Tablas!$A$147:$G$149,7,TRUE)), (IF(4-$B$19=2, (VLOOKUP(2,Tablas!$A$147:$G$149,7,TRUE)), (IF(4-$B$19=3, (VLOOKUP(3,Tablas!$A$147:$G$149,7,TRUE)), (IF(4-$B$19=4, (VLOOKUP(3,Tablas!$A$147:$G$149,7,TRUE)), 0)))))))))), (IF($B$17=5,(IF(5-$B$19=0, (VLOOKUP(1,Tablas!$A$147:$G$149,7,TRUE)), (IF(5-$B$19=1, (VLOOKUP(1,Tablas!$A$147:$G$149,7,TRUE)), (IF(5-$B$19=2, (VLOOKUP(2,Tablas!$A$147:$G$149,7,TRUE)), (IF(5-$B$19=3, (VLOOKUP(3,Tablas!$A$147:$G$149,7,TRUE)), (IF(5-$B$19=4, (VLOOKUP(3,Tablas!$A$147:$G$149,7,TRUE)), (VLOOKUP(3,Tablas!$A$147:$G$149,7,TRUE)))))))))))), (IF($B$17=6,(IF(6-$B$19=0, (VLOOKUP(2,Tablas!$A$147:$G$149,7,TRUE)), (IF(6-$B$19=1, (VLOOKUP(2,Tablas!$A$147:$G$149,7,TRUE)), (IF(6-$B$19=2, (VLOOKUP(2,Tablas!$A$147:$G$149,7,TRUE)), (IF(6-$B$19=3, (VLOOKUP(3,Tablas!$A$147:$G$149,7,TRUE)), (IF(6-$B$19=4, (VLOOKUP(3,Tablas!$A$147:$G$149,7,TRUE)), (VLOOKUP(3,Tablas!$A$147:$G$149,7,TRUE)))))))))))), (IF($B$17>6,(IF(7-$B$19=0, (VLOOKUP(3,Tablas!$A$147:$G$149,7,TRUE)), (IF(7-$B$19=1, (VLOOKUP(3,Tablas!$A$147:$G$149,7,TRUE)), (IF(7-$B$19=2, (VLOOKUP(3,Tablas!$A$147:$G$149,7,TRUE)), (IF(7-$B$19=3, (VLOOKUP(3,Tablas!$A$147:$G$149,7,TRUE)), (IF(7-$B$19=4, (VLOOKUP(3,Tablas!$A$147:$G$149,7,TRUE)), (VLOOKUP(3,Tablas!$A$147:$G$149,7,TRUE)))))))))))), (IF($B$17=3,(IF(3-$B$19=0,0, (IF(3-$B$19=1,(VLOOKUP(1,Tablas!$A$147:$G$149,7,TRUE)), (IF(3-$B$19=2, (VLOOKUP(2,Tablas!$A$147:$G$149,7,TRUE)), (VLOOKUP(3,Tablas!$A$147:$G$149,7,TRUE)))))))), (IF($B$17=2,(IF(2-$B$19=0, 0, (IF(2-$B$19=1,(VLOOKUP(1,Tablas!$A$147:$G$149,7,TRUE)), (IF(2-$B$19=2, (VLOOKUP(2,Tablas!$A$147:$G$149,7,TRUE)), 0)))))), (IF($B$17=1,(IF(1-$B$19=0, 0, (IF(1-$B$19=1,(VLOOKUP(1,Tablas!$A$147:$G$149,7,TRUE)),0)))),0))))))))))))))))))) -> 207.2651719
A75: Total de Prima neta | C75: =SUM(C72:C74) ->  | D75: =SUM(D72:D74) -> 
A76: Ajuste por la variante con coaseguro fuera del país de residencia | C76: =IF('INGRESO DE DATOS'!$P$3,C75*-15%,0) -> 0 | D76: =IF('INGRESO DE DATOS'!$P$3,D75*-15%,0) -> 0 | E76: =IF('INGRESO DE DATOS'!$P$3,E75*-15%,0) -> 0 | F76: =IF('INGRESO DE DATOS'!$P$3,F75*-15%,0) -> 0 | G76: =IF('INGRESO DE DATOS'!$P$3,G75*-15%,0) -> 0
A77: Tarifa administrativa anual | C77: =Tablas!$Y$2 -> 86 | D77: =Tablas!$Y$2 -> 86 | E77: =Tablas!$Y$2 -> 86 | F77: =Tablas!$Y$2 -> 86 | G77: =Tablas!$Y$2 -> 86
A78: VAT (5%) :
A79: ITBMS (7%)
A80: TOTAL de primera cuota | C80: =SUM(C75:C79) ->  | D80: =SUM(D75:D79) -> 
A81: Costo de Tarifa mensual de 2 a 12 | C81: =C80-C77 ->  | D81: =D80-D77 -> 
A82: TOTAL ANUAL | C82: =C80+(C81*11) ->  | D82: =D80+(D81*11) ->  | F82: =F80+(F81*11) -> 
A83: Ahorros en tarifas de prima para Dependientes | C83: =IF($B$15=1,IF($B$17=0,0,IF($B$19=0,0,IF($B$19=1,(VLOOKUP(1,Tablas!$A$147:$G$149,3,TRUE)),(VLOOKUP(2,Tablas!$A$147:$G$149,3,TRUE))))), IF($B$17=0,0,IF($B$19=0,0,IF($B$19=1,(VLOOKUP(1,Tablas!$A$147:$G$149,3,TRUE)),IF($B$19=2,(VLOOKUP(2,Tablas!$A$147:$G$149,3,TRUE)), (VLOOKUP(3,Tablas!$A$147:$G$149,3,TRUE))))))) -> 427.8434608 | D83: =IF($B$15=1,IF($B$17=0,0,IF($B$19=0,0,IF($B$19=1,(VLOOKUP(1,Tablas!$A$147:$G$149,4,TRUE)),(VLOOKUP(2,Tablas!$A$147:$G$149,4,TRUE))))), IF($B$17=0,0,IF($B$19=0,0,IF($B$19=1,(VLOOKUP(1,Tablas!$A$147:$G$149,4,TRUE)),IF($B$19=2,(VLOOKUP(2,Tablas!$A$147:$G$149,4,TRUE)), (VLOOKUP(3,Tablas!$A$147:$G$149,4,TRUE))))))) -> 375.0469212 | E83: =IF($B$15=1,IF($B$17=0,0,IF($B$19=0,0,IF($B$19=1,(VLOOKUP(1,Tablas!$A$147:$G$149,5,TRUE)),(VLOOKUP(2,Tablas!$A$147:$G$149,5,TRUE))))), IF($B$17=0,0,IF($B$19=0,0,IF($B$19=1,(VLOOKUP(1,Tablas!$A$147:$G$149,5,TRUE)),IF($B$19=2,(VLOOKUP(2,Tablas!$A$147:$G$149,5,TRUE)), (VLOOKUP(3,Tablas!$A$147:$G$149,5,TRUE))))))) -> 313.5877369 | F83: =IF($B$15=1,IF($B$17=0,0,IF($B$19=0,0,IF($B$19=1,(VLOOKUP(1,Tablas!$A$147:$G$149,6,TRUE)),(VLOOKUP(2,Tablas!$A$147:$G$149,6,TRUE))))), IF($B$17=0,0,IF($B$19=0,0,IF($B$19=1,(VLOOKUP(1,Tablas!$A$147:$G$149,6,TRUE)),IF($B$19=2,(VLOOKUP(2,Tablas!$A$147:$G$149,6,TRUE)), (VLOOKUP(3,Tablas!$A$147:$G$149,6,TRUE))))))) -> 272.0070425 | G83: =IF($B$15=1,IF($B$17=0,0,IF($B$19=0,0,IF($B$19=1,(VLOOKUP(1,Tablas!$A$147:$G$149,7,TRUE)),(VLOOKUP(2,Tablas!$A$147:$G$149,7,TRUE))))), IF($B$17=0,0,IF($B$19=0,0,IF($B$19=1,(VLOOKUP(1,Tablas!$A$147:$G$149,7,TRUE)),IF($B$19=2,(VLOOKUP(2,Tablas!$A$147:$G$149,7,TRUE)), (VLOOKUP(3,Tablas!$A$147:$G$149,7,TRUE))))))) -> 207.2651719
A85: Este presupuesto solamente tiene carácter informativo y en ningún momento expresa compromiso legal para suministrarle cobertura de seguro. La emisión de una póliza de seguro Bupa está sujeta a todas las evaluaciones de riesgo por parte de Bupa y a la recepción de todos los pagos de prima requeridos.

Sheet Global Premier
I1: RESUMEN DE BENEFICIOS | X1: RESUMEN DE BENEFICIOS | AM1: RESUMEN DE BENEFICIOS
A5: Cotización de Seguro Médico Internacional Global Premier Health Plan Tarifas en US$ | Validas: 1 de enero de 2024
A13: Nombre del Asegurado Titular | B13: =+'INGRESO DE DATOS'!$C$37 -> John Doe
A15: Número de adultos en la póliza | B15: =+'INGRESO DE DATOS'!$C$39 -> 2
A17: Número de Dependientes en la póliza | B17: =+'INGRESO DE DATOS'!$C$41 -> 2 | C17: =IF('INGRESO DE DATOS'!$P$2=TRUE, "Cotización para dependiente de 24 años","") -> 
A19: Edad del Asegurado Titular | B19: =+'INGRESO DE DATOS'!$C$43 -> 32 | D19: Edad del/la conyuge | F19: =+'INGRESO DE DATOS'!$C$45 -> 
A21: Fecha de la cotización | B21: =NOW() -> 2024-01-09T15:08:58.210 | J21: FALSE | Y21: FALSE | AN21: FALSE
A23: =IF('INGRESO DE DATOS'!P3=TRUE,"Variante con coaseguro fuera del país de residencia: SI","Variante con coaseguro fuera del país de residencia: NO") -> Variante con coaseguro fuera del país de residencia: NO
A25: Deducibles | C25: PLAN 1 | D25: PLAN 2 | E25: PLAN 3 | F25: PLAN 4
A26: En el país de residencia | C26: 250 | D26: 2000 | E26: 5000 | F26: 10000
A27: Fuera del país de residencia | C27: 5000 | D27: 2000 | E27: 5000 | F27: 10000
A29: TARIFAS ANUALES
A30: Prima para Asegurado Titular | C30: =VLOOKUP($B$19,Tablas!$A$156:$G$222,3,TRUE) -> 8469.52631 | D30: =VLOOKUP($B$19,Tablas!$A$156:$G$222,4,TRUE) -> 7685.98033 | E30: =VLOOKUP($B$19,Tablas!$A$156:$G$222,5,TRUE) -> 5645.04822 | F30: =VLOOKUP($B$19,Tablas!$A$156:$G$222,6,TRUE) -> 4123.87479
A31: Prima para conyuge | C31: =IF($B$15=1,0,(VLOOKUP($F$19,Tablas!$A$156:$G$222,3,TRUE))) ->  | D31: =IF($B$15=1,0,(VLOOKUP($F$19,Tablas!$A$156:$G$222,4,TRUE))) ->  | E31: =IF($B$15=1,0,(VLOOKUP($F$19,Tablas!$A$156:$G$222,5,TRUE))) ->  | F31: =IF($B$15=1,0,(VLOOKUP($F$19,Tablas!$A$156:$G$222,6,TRUE))) -> 
A32: Prima para hijo (s) | C32: =IF($B$17=0,0,(VLOOKUP($B$17,Tablas!$A$223:$G$225,3,TRUE))) -> 5120.40459 | D32: =IF($B$17=0,0,(VLOOKUP($B$17,Tablas!$A$223:$G$225,4,TRUE))) -> 4647.54143 | E32: =IF($B$17=0,0,(VLOOKUP($B$17,Tablas!$A$223:$G$225,5,TRUE))) -> 3536.7038 | F32: =IF($B$17=0,0,(VLOOKUP($B$17,Tablas!$A$223:$G$225,6,TRUE))) -> 2585.11554
A33: Total de Prima neta | C33: =SUM(C30:C32) ->  | D33: =SUM(D30:D32) -> 
A34: Ajuste por la variante con coaseguro fuera del país de residencia | C34: =IF('INGRESO DE DATOS'!$P$3,C33*-15%,0) -> 0 | D34: =IF('INGRESO DE DATOS'!$P$3,D33*-15%,0) -> 0 | E34: =IF('INGRESO DE DATOS'!$P$3,E33*-15%,0) -> 0 | F34: =IF('INGRESO DE DATOS'!$P$3,F33*-15%,0) -> 0
A35: Tarifa administrativa anual | C35: =Tablas!$Y$2 -> 86 | D35: =Tablas!$Y$2 -> 86 | E35: =Tablas!$Y$2 -> 86 | F35: =Tablas!$Y$2 -> 86
A36: VAT (5%) :
A37: ITBMS (7%)
A38: TOTAL ANUAL | C38: =SUM(C33:C37) ->  | D38: =SUM(D33:D37) ->  | F38: =SUM(F33:F37) -> 
A40: TARIFAS SEMESTRALES
A41: Prima para Asegurado Titular | C41: =VLOOKUP($B$19,Tablas!$A$533:$G$599,3,TRUE) -> 4488.848944 | D41: =VLOOKUP($B$19,Tablas!$A$533:$G$599,4,TRUE) -> 4073.569575 | E41: =VLOOKUP($B$19,Tablas!$A$533:$G$599,5,TRUE) -> 2991.875557 | F41: =VLOOKUP($B$19,Tablas!$A$533:$G$599,6,TRUE) -> 2185.653639
A42: Prima para conyuge | C42: =IF($B$15=1,0,(VLOOKUP($F$19,Tablas!$A$533:$G$599,3,TRUE))) ->  | D42: =IF($B$15=1,0,(VLOOKUP($F$19,Tablas!$A$533:$G$599,4,TRUE))) ->  | E42: =IF($B$15=1,0,(VLOOKUP($F$19,Tablas!$A$533:$G$599,5,TRUE))) ->  | F42: =IF($B$15=1,0,(VLOOKUP($F$19,Tablas!$A$533:$G$599,6,TRUE))) -> 
A43: Prima para hijo (s) | C43: =IF($B$17=0,0,(VLOOKUP($B$17,Tablas!$A$600:$G$602,3,TRUE))) -> 2713.814433 | D43: =IF($B$17=0,0,(VLOOKUP($B$17,Tablas!$A$600:$G$602,4,TRUE))) -> 2463.196958 | E43: =IF($B$17=0,0,(VLOOKUP($B$17,Tablas!$A$600:$G$602,5,TRUE))) -> 1874.453014 | F43: =IF($B$17=0,0,(VLOOKUP($B$17,Tablas!$A$600:$G$602,6,TRUE))) -> 1370.111236
A44: Total de Prima neta | C44: =SUM(C41:C43) ->  | D44: =SUM(D41:D43) -> 
A45: Ajuste por la variante con coaseguro fuera del país de residencia | C45: =IF('INGRESO DE DATOS'!$P$3,C44*-15%,0) -> 0 | D45: =IF('INGRESO DE DATOS'!$P$3,D44*-15%,0) -> 0 | E45: =IF('INGRESO DE DATOS'!$P$3,E44*-15%,0) -> 0 | F45: =IF('INGRESO DE DATOS'!$P$3,F44*-15%,0) -> 0
A46: Tarifa administrativa anual | C46: =Tablas!$Y$2 -> 86 | D46: =Tablas!$Y$2 -> 86 | E46: =Tablas!$Y$2 -> 86 | F46: =Tablas!$Y$2 -> 86
A47: VAT (5%) :
A48: ITBMS (7%)
A49: TOTAL de primera cuota | C49: =SUM(C44:C48) ->  | D49: =SUM(D44:D48) -> 
A50: Costo de segunda cuota | C50: =C49-C46 ->  | D50: =D49-D46 -> 
A51: TOTAL ANUAL | C51: =C49+C50 ->  | D51: =D49+D50 ->  | F51: =F49+F50 -> 
A53: TARIFAS TRIMESTRALES
A54: Prima para Asegurado Titular | C54: =VLOOKUP($B$19,Tablas!$A$760:$G$826,3,TRUE) -> 2329.119735 | D54: =VLOOKUP($B$19,Tablas!$A$760:$G$826,4,TRUE) -> 2113.644591 | E54: =VLOOKUP($B$19,Tablas!$A$760:$G$826,5,TRUE) -> 1552.388261 | F54: =VLOOKUP($B$19,Tablas!$A$760:$G$826,6,TRUE) -> 1134.065567
A55: Prima para conyuge | C55: =IF($B$15=1,0,(VLOOKUP($F$19,Tablas!$A$760:$G$826,3,TRUE))) ->  | D55: =IF($B$15=1,0,(VLOOKUP($F$19,Tablas!$A$760:$G$826,4,TRUE))) ->  | E55: =IF($B$15=1,0,(VLOOKUP($F$19,Tablas!$A$760:$G$826,5,TRUE))) ->  | F55: =IF($B$15=1,0,(VLOOKUP($F$19,Tablas!$A$760:$G$826,6,TRUE))) -> 
A56: Prima para hijo (s) | C56: =IF($B$17=0,0,(VLOOKUP($B$17,Tablas!$A$827:$G$829,3,TRUE))) -> 1408.111262 | D56: =IF($B$17=0,0,(VLOOKUP($B$17,Tablas!$A$827:$G$829,4,TRUE))) -> 1278.073893 | E56: =IF($B$17=0,0,(VLOOKUP($B$17,Tablas!$A$827:$G$829,5,TRUE))) -> 972.593545 | F56: =IF($B$17=0,0,(VLOOKUP($B$17,Tablas!$A$827:$G$829,6,TRUE))) -> 710.9067735
A57: Total de Prima neta | C57: =SUM(C54:C56) ->  | D57: =SUM(D54:D56) -> 
A58: Ajuste por la variante con coaseguro fuera del país de residencia | C58: =IF('INGRESO DE DATOS'!$P$3,C57*-15%,0) -> 0 | D58: =IF('INGRESO DE DATOS'!$P$3,D57*-15%,0) -> 0 | E58: =IF('INGRESO DE DATOS'!$P$3,E57*-15%,0) -> 0 | F58: =IF('INGRESO DE DATOS'!$P$3,F57*-15%,0) -> 0
A59: Tarifa administrativa anual | C59: =Tablas!$Y$2 -> 86 | D59: =Tablas!$Y$2 -> 86 | E59: =Tablas!$Y$2 -> 86 | F59: =Tablas!$Y$2 -> 86
A60: VAT (5%) :
A61: ITBMS (7%)
A62: TOTAL de primera cuota | C62: =SUM(C57:C61) ->  | D62: =SUM(D57:D61) -> 
A63: Costo de tarifa trimestral 2 a 4 | C63: =C62-C59 ->  | D63: =D62-D59 -> 
A64: TOTAL ANUAL | C64: =C62+(C63*3) ->  | D64: =D62+(D63*3) ->  | F64: =F62+(F63*3) -> 
A66: TARIFAS MENSUALES
A67: Prima para Asegurado Titular | C67: =VLOOKUP($B$19,Tablas!$A$230:$G$296,3,TRUE) -> 790.4891223 | D67: =VLOOKUP($B$19,Tablas!$A$230:$G$296,4,TRUE) -> 717.3581641 | E67: =VLOOKUP($B$19,Tablas!$A$230:$G$296,5,TRUE) -> 526.8711672 | F67: =VLOOKUP($B$19,Tablas!$A$230:$G$296,6,TRUE) -> 384.8949804
A68: Prima para conyuge | C68: =IF($B$15=1,0,(VLOOKUP($F$19,Tablas!$A$230:$G$296,3,TRUE))) ->  | D68: =IF($B$15=1,0,(VLOOKUP($F$19,Tablas!$A$230:$G$296,4,TRUE))) ->  | E68: =IF($B$15=1,0,(VLOOKUP($F$19,Tablas!$A$230:$G$296,5,TRUE))) ->  | F68: =IF($B$15=1,0,(VLOOKUP($F$19,Tablas!$A$230:$G$296,6,TRUE))) -> 
A69: Prima para hijo (s) | C69: =IF($B$17=0,0,(VLOOKUP($B$17,Tablas!$A$297:$G$299,3,TRUE))) -> 477.9044284 | D69: =IF($B$17=0,0,(VLOOKUP($B$17,Tablas!$A$297:$G$299,4,TRUE))) -> 433.7705335 | E69: =IF($B$17=0,0,(VLOOKUP($B$17,Tablas!$A$297:$G$299,5,TRUE))) -> 330.0923547 | F69: =IF($B$17=0,0,(VLOOKUP($B$17,Tablas!$A$297:$G$299,6,TRUE))) -> 241.2774504
A70: Total de Prima neta | C70: =SUM(C67:C69) ->  | D70: =SUM(D67:D69) -> 
A71: Ajuste por la variante con coaseguro fuera del país de residencia | C71: =IF('INGRESO DE DATOS'!$P$3,C70*-15%,0) -> 0 | D71: =IF('INGRESO DE DATOS'!$P$3,D70*-15%,0) -> 0 | E71: =IF('INGRESO DE DATOS'!$P$3,E70*-15%,0) -> 0 | F71: =IF('INGRESO DE DATOS'!$P$3,F70*-15%,0) -> 0
A72: Tarifa administrativa anual | C72: =Tablas!$Y$2 -> 86 | D72: =Tablas!$Y$2 -> 86 | E72: =Tablas!$Y$2 -> 86 | F72: =Tablas!$Y$2 -> 86
A73: VAT (5%) :
A74: ITBMS (7%)
A75: TOTAL de primera cuota | C75: =SUM(C70:C74) ->  | D75: =SUM(D70:D74) -> 
A76: Costo de Tarifa mensual de 2 a 12 | C76: =C75-C72 ->  | D76: =D75-D72 -> 
A77: TOTAL ANUAL | C77: =C75+(C76*11) ->  | D77: =D75+(D76*11) ->  | F77: =F75+(F76*11) -> 
A79: Este presupuesto solamente tiene carácter informativo y en ningún momento expresa compromiso legal para suministrarle cobertura de seguro. La emisión de una póliza de seguro Bupa está sujeta a todas las evaluaciones de riesgo por parte de Bupa y a la recepción de todos los pagos de prima requeridos.

Sheet Global Select
I1: RESUMEN DE BENEFICIOS | X1: RESUMEN DE BENEFICIOS | AM1: RESUMEN DE BENEFICIOS
A5: Cotización de Seguro Médico Internacional Global Select Health Plan Tarifas en US$ | Validas: 1 de enero de 2024
A13: Nombre del Asegurado Titular | B13: =+'INGRESO DE DATOS'!$C$37 -> John Doe
A15: Número de adultos en la póliza | B15: =+'INGRESO DE DATOS'!$C$39 -> 2
A17: Número de Dependientes en la póliza | B17: =+'INGRESO DE DATOS'!$C$41 -> 2 | C17: =IF('INGRESO DE DATOS'!$P$2=TRUE, "Cotización para dependiente de 24 años","") -> 
A19: Edad del Asegurado Titular | B19: =+'INGRESO DE DATOS'!$C$43 -> 32 | D19: Edad del/la conyuge | F19: =+'INGRESO DE DATOS'!$C$45 -> 
A21: Fecha de la cotización | B21: =NOW() -> 2024-01-09T15:08:58.210 | J21: FALSE
A23: =IF('INGRESO DE DATOS'!P3=TRUE,"Variante con coaseguro fuera del país de residencia: SI","Variante con coaseguro fuera del país de residencia: NO") -> Variante con coaseguro fuera del país de residencia: NO
A25: DEDUCIBLES | C25: PLAN 1 | D25: PLAN 2 | E25: PLAN 3 | F25: PLAN 4
A26: En el país de residencia | C26: 250 | D26: 2000 | E26: 5000 | F26: 10000
A27: Fuera del país de residencia | C27: 5000 | D27: 2000 | E27: 5000 | F27: 10000
A29: TARIFAS ANUALES
A30: Prima para Asegurado Titular | C30: =VLOOKUP($B$19,Tablas!$A$307:$G$373,3,TRUE) -> 5497.52273 | D30: =VLOOKUP($B$19,Tablas!$A$307:$G$373,4,TRUE) -> 5272.81503 | E30: =VLOOKUP($B$19,Tablas!$A$307:$G$373,5,TRUE) -> 3885.48923 | F30: =VLOOKUP($B$19,Tablas!$A$307:$G$373,6,TRUE) -> 2836.20197
A31: Prima para conyuge | C31: =IF($B$15=1,0,(VLOOKUP($F$19,Tablas!$A$307:$G$373,3,TRUE))) ->  | D31: =IF($B$15=1,0,(VLOOKUP($F$19,Tablas!$A$307:$G$373,4,TRUE))) ->  | E31: =IF($B$15=1,0,(VLOOKUP($F$19,Tablas!$A$307:$G$373,5,TRUE))) ->  | F31: =IF($B$15=1,0,(VLOOKUP($F$19,Tablas!$A$307:$G$373,6,TRUE))) -> 
A32: Prima para hijo (s) | C32: =IF($B$17=0,0,(VLOOKUP($B$17,Tablas!$A$374:$G$376,3,TRUE))) -> 3579.69136 | D32: =IF($B$17=0,0,(VLOOKUP($B$17,Tablas!$A$374:$G$376,4,TRUE))) -> 3435.09684 | E32: =IF($B$17=0,0,(VLOOKUP($B$17,Tablas!$A$374:$G$376,5,TRUE))) -> 2631.03407 | F32: =IF($B$17=0,0,(VLOOKUP($B$17,Tablas!$A$374:$G$376,6,TRUE))) -> 1921.73933
A33: Total de Prima neta | C33: =SUM(C30:C32) ->  | D33: =SUM(D30:D32) -> 
A34: Ajuste por la variante con coaseguro fuera del país de residencia | C34: =IF('INGRESO DE DATOS'!$P$3,C33*-15%,0) -> 0 | D34: =IF('INGRESO DE DATOS'!$P$3,D33*-15%,0) -> 0 | E34: =IF('INGRESO DE DATOS'!$P$3,E33*-15%,0) -> 0 | F34: =IF('INGRESO DE DATOS'!$P$3,F33*-15%,0) -> 0
A35: Tarifa administrativa anual | C35: =Tablas!$Y$2 -> 86 | D35: =Tablas!$Y$2 -> 86 | E35: =Tablas!$Y$2 -> 86 | F35: =Tablas!$Y$2 -> 86
A36: VAT (5%) :
A37: ITBMS (7%)
A38: TOTAL ANUAL | C38: =SUM(C33:C37) ->  | D38: =SUM(D33:D37) ->  | F38: =SUM(F33:F37) -> 
A40: TARIFAS SEMESTRALES
A41: Prima para Asegurado Titular | C41: =VLOOKUP($B$19,Tablas!$A$608:$G$674,3,TRUE) -> 2913.687047 | D41: =VLOOKUP($B$19,Tablas!$A$608:$G$674,4,TRUE) -> 2794.591966 | E41: =VLOOKUP($B$19,Tablas!$A$608:$G$674,5,TRUE) -> 2059.309292 | F41: =VLOOKUP($B$19,Tablas!$A$608:$G$674,6,TRUE) -> 1503.187044
A42: Prima para conyuge | C42: =IF($B$15=1,0,(VLOOKUP($F$19,Tablas!$A$608:$G$674,3,TRUE))) ->  | D42: =IF($B$15=1,0,(VLOOKUP($F$19,Tablas!$A$608:$G$674,4,TRUE))) ->  | E42: =IF($B$15=1,0,(VLOOKUP($F$19,Tablas!$A$608:$G$674,5,TRUE))) ->  | F42: =IF($B$15=1,0,(VLOOKUP($F$19,Tablas!$A$608:$G$674,6,TRUE))) -> 
A43: Prima para hijo (s) | C43: =IF($B$17=0,0,(VLOOKUP($B$17,Tablas!$A$675:$G$677,3,TRUE))) -> 1897.236421 | D43: =IF($B$17=0,0,(VLOOKUP($B$17,Tablas!$A$675:$G$677,4,TRUE))) -> 1820.601325 | E43: =IF($B$17=0,0,(VLOOKUP($B$17,Tablas!$A$675:$G$677,5,TRUE))) -> 1394.448057 | F43: =IF($B$17=0,0,(VLOOKUP($B$17,Tablas!$A$675:$G$677,6,TRUE))) -> 1018.521845
A44: Total de Prima neta | C44: =SUM(C41:C43) ->  | D44: =SUM(D41:D43) -> 
A45: Ajuste por la variante con coaseguro fuera del país de residencia | C45: =IF('INGRESO DE DATOS'!$P$3,C44*-15%,0) -> 0 | D45: =IF('INGRESO DE DATOS'!$P$3,D44*-15%,0) -> 0 | E45: =IF('INGRESO DE DATOS'!$P$3,E44*-15%,0) -> 0 | F45: =IF('INGRESO DE DATOS'!$P$3,F44*-15%,0) -> 0
A46: Tarifa administrativa anual | C46: =Tablas!$Y$2 -> 86 | D46: =Tablas!$Y$2 -> 86 | E46: =Tablas!$Y$2 -> 86 | F46: =Tablas!$Y$2 -> 86
A47: VAT (5%) :
A48: ITBMS (7%)
A49: TOTAL de primera cuota | C49: =SUM(C44:C48) ->  | D49: =SUM(D44:D48) -> 
A50: Costo de segunda cuota | C50: =C49-C46 ->  | D50: =D49-D46 -> 
A51: TOTAL ANUAL | C51: =C49+C50 ->  | D51: =D49+D50 ->  | F51: =F49+F50 -> 
A53: TARIFAS TRIMESTRALES
A54: Prima para Asegurado Titular | C54: =VLOOKUP($B$19,Tablas!$A$835:$G$901,3,TRUE) -> 1511.818751 | D54: =VLOOKUP($B$19,Tablas!$A$835:$G$901,4,TRUE) -> 1450.024133 | E54: =VLOOKUP($B$19,Tablas!$A$835:$G$901,5,TRUE) -> 1068.509538 | F54: =VLOOKUP($B$19,Tablas!$A$835:$G$901,6,TRUE) -> 779.9555417
A55: Prima para conyuge | C55: =IF($B$15=1,0,(VLOOKUP($F$19,Tablas!$A$835:$G$901,3,TRUE))) ->  | D55: =IF($B$15=1,0,(VLOOKUP($F$19,Tablas!$A$835:$G$901,4,TRUE))) ->  | E55: =IF($B$15=1,0,(VLOOKUP($F$19,Tablas!$A$835:$G$901,5,TRUE))) ->  | F55: =IF($B$15=1,0,(VLOOKUP($F$19,Tablas!$A$835:$G$901,6,TRUE))) -> 
A56: Prima para hijo (s) | C56: =IF($B$17=0,0,(VLOOKUP($B$17,Tablas!$A$902:$G$904,3,TRUE))) -> 984.415124 | D56: =IF($B$17=0,0,(VLOOKUP($B$17,Tablas!$A$902:$G$904,4,TRUE))) -> 944.651631 | E56: =IF($B$17=0,0,(VLOOKUP($B$17,Tablas!$A$902:$G$904,5,TRUE))) -> 723.5343692 | F56: =IF($B$17=0,0,(VLOOKUP($B$17,Tablas!$A$902:$G$904,6,TRUE))) -> 528.4783158
A57: Total de Prima neta | C57: =SUM(C54:C56) ->  | D57: =SUM(D54:D56) -> 
A58: Ajuste por la variante con coaseguro fuera del país de residencia | C58: =IF('INGRESO DE DATOS'!$P$3,C57*-15%,0) -> 0 | D58: =IF('INGRESO DE DATOS'!$P$3,D57*-15%,0) -> 0 | E58: =IF('INGRESO DE DATOS'!$P$3,E57*-15%,0) -> 0 | F58: =IF('INGRESO DE DATOS'!$P$3,F57*-15%,0) -> 0
A59: Tarifa administrativa anual | C59: =Tablas!$Y$2 -> 86 | D59: =Tablas!$Y$2 -> 86 | E59: =Tablas!$Y$2 -> 86 | F59: =Tablas!$Y$2 -> 86
A60: VAT (5%) :
A61: ITBMS (7%)
A62: TOTAL de primera cuota | C62: =SUM(C57:C61) ->  | D62: =SUM(D57:D61) -> 
A63: Costo de tarifa trimestral 2 a 4 | C63: =C62-C59 ->  | D63: =D62-D59 -> 
A64: TOTAL ANUAL | C64: =C62+(C63*3) ->  | D64: =D62+(D63*3) ->  | F64: =F62+(F63*3) -> 
A66: TARIFAS MENSUALES
A67: Prima para Asegurado Titular | C67: =VLOOKUP($B$19,Tablas!$A$381:$G$447,3,TRUE) -> 513.1021215 | D67: =VLOOKUP($B$19,Tablas!$A$381:$G$447,4,TRUE) -> 492.1294028 | E67: =VLOOKUP($B$19,Tablas!$A$381:$G$447,5,TRUE) -> 362.6456615 | F67: =VLOOKUP($B$19,Tablas!$A$381:$G$447,6,TRUE) -> 264.7121839
A68: Prima para conyuge | C68: =IF($B$15=1,0,(VLOOKUP($F$19,Tablas!$A$381:$G$447,3,TRUE))) ->  | D68: =IF($B$15=1,0,(VLOOKUP($F$19,Tablas!$A$381:$G$447,4,TRUE))) ->  | E68: =IF($B$15=1,0,(VLOOKUP($F$19,Tablas!$A$381:$G$447,5,TRUE))) ->  | F68: =IF($B$15=1,0,(VLOOKUP($F$19,Tablas!$A$381:$G$447,6,TRUE))) -> 
A69: Prima para hijo (s) | C69: =IF($B$17=0,0,(VLOOKUP($B$17,Tablas!$A$448:$G$450,3,TRUE))) -> 334.1045269 | D69: =IF($B$17=0,0,(VLOOKUP($B$17,Tablas!$A$448:$G$450,4,TRUE))) -> 320.6090384 | E69: =IF($B$17=0,0,(VLOOKUP($B$17,Tablas!$A$448:$G$450,5,TRUE))) -> 245.5631799 | F69: =IF($B$17=0,0,(VLOOKUP($B$17,Tablas!$A$448:$G$450,6,TRUE))) -> 179.3623375
A70: Total de Prima neta | C70: =SUM(C67:C69) ->  | D70: =SUM(D67:D69) -> 
A71: Ajuste por la variante con coaseguro fuera del país de residencia | C71: =IF('INGRESO DE DATOS'!$P$3,C70*-15%,0) -> 0 | D71: =IF('INGRESO DE DATOS'!$P$3,D70*-15%,0) -> 0 | E71: =IF('INGRESO DE DATOS'!$P$3,E70*-15%,0) -> 0 | F71: =IF('INGRESO DE DATOS'!$P$3,F70*-15%,0) -> 0
A72: Tarifa administrativa anual | C72: =Tablas!$Y$2 -> 86 | D72: =Tablas!$Y$2 -> 86 | E72: =Tablas!$Y$2 -> 86 | F72: =Tablas!$Y$2 -> 86
A73: VAT (5%) :
A74: ITBMS (7%)
A75: TOTAL de primera cuota | C75: =SUM(C70:C74) ->  | D75: =SUM(D70:D74) -> 
A76: Costo de Tarifa mensual de 2 a 12 | C76: =C75-C72 ->  | D76: =D75-D72 -> 
A77: TOTAL ANUAL | C77: =C75+(C76*11) ->  | D77: =D75+(D76*11) ->  | F77: =F75+(F76*11) -> 
A79: Este presupuesto solamente tiene carácter informativo y en ningún momento expresa compromiso legal para suministrarle cobertura de seguro. La emisión de una póliza de seguro Bupa está sujeta a todas las evaluaciones de riesgo por parte de Bupa y a la recepción de todos los pagos de prima requeridos.

Sheet Global Major Medical
G1: RESUMEN DE BENEFICIOS | V1: RESUMEN DE BENEFICIOS
A5: Cotización de Seguro Médico Internacional Global Major Medical Health Plan Tarifas en US$ | Validas: 1 de enero de 2024
A13: Nombre del Asegurado Titular | B13: =+'INGRESO DE DATOS'!$C$37 -> John Doe
A15: Número de adultos en la póliza | B15: =+'INGRESO DE DATOS'!$C$39 -> 2
A17: Número de Dependientes en la póliza | B17: =+'INGRESO DE DATOS'!$C$41 -> 2 | C17: =IF('INGRESO DE DATOS'!$P$2=TRUE, "Cotización para dependiente de 24 años","") -> 
A19: Edad del Asegurado Titular | B19: =+'INGRESO DE DATOS'!$C$43 -> 32 | C19: Edad del/la conyuge | D19: =+'INGRESO DE DATOS'!$C$45 -> 
A21: Fecha de la cotización | B21: =NOW() -> 2024-01-09T15:08:58.210 | H21: FALSE | W21: FALSE
A23: DEDUCIBLeS | C23: PLAN 1 | D23: PLAN 2
A24: En el país de residencia | C24: 10000 | D24: 20000
A25: Fuera del país de residencia | C25: 10000 | D25: 20000
A27: TARIFAS ANUALES
A28: Prima para Asegurado Titular | C28: =VLOOKUP($B$19,Tablas!$A$1138:$G$1204,3,TRUE) -> 3492.73925 | D28: =VLOOKUP($B$19,Tablas!$A$1138:$G$1204,4,TRUE) -> 2664.25173
A29: Prima para conyuge | C29: =IF($B$15=1,0,(VLOOKUP($D$19,Tablas!$A$1138:$G$1204,3,TRUE))) ->  | D29: =IF($B$15=1,0,(VLOOKUP($D$19,Tablas!$A$1138:$G$1204,4,TRUE))) -> 
A30: Prima para hijo (s) | C30: =IF($B$17=0,0,(VLOOKUP($B$17,Tablas!$A$1205:$G$1207,3,TRUE))) -> 2100.5285 | D30: =IF($B$17=0,0,(VLOOKUP($B$17,Tablas!$A$1205:$G$1207,4,TRUE))) -> 1651.1131
A31: Total de Prima neta | C31: =SUM(C28:C30) ->  | D31: =SUM(D28:D30) -> 
A32: Tarifa administrativa anual | C32: =Tablas!$Y$2 -> 86 | D32: =Tablas!$Y$2 -> 86
A33: VAT (5%) :
A34: ITBMS (7%)
A35: TOTAL ANUAL | C35: =SUM(C31:C34) ->  | D35: =SUM(D31:D34) -> 
A37: TARIFAS SEMESTRALES
A38: Prima para Asegurado Titular | C38: =VLOOKUP($B$19,Tablas!$A$1362:$G$1428,3,TRUE) -> 1851.151803 | D38: =VLOOKUP($B$19,Tablas!$A$1362:$G$1428,4,TRUE) -> 1412.053417
A39: Prima para conyuge | C39: =IF($B$15=1,0,(VLOOKUP($D$19,Tablas!$A$1362:$G$1428,3,TRUE))) ->  | D39: =IF($B$15=1,0,(VLOOKUP($D$19,Tablas!$A$1362:$G$1428,4,TRUE))) -> 
A40: Prima para hijo (s) | C40: =IF($B$17=0,0,(VLOOKUP($B$17,Tablas!$A$1429:$G$1431,3,TRUE))) -> 1113.280105 | D40: =IF($B$17=0,0,(VLOOKUP($B$17,Tablas!$A$1429:$G$1431,4,TRUE))) -> 875.089943
A41: Total de Prima neta | C41: =SUM(C38:C40) ->  | D41: =SUM(D38:D40) -> 
A42: Tarifa administrativa anual | C42: =Tablas!$Y$2 -> 86 | D42: =Tablas!$Y$2 -> 86
A43: VAT (5%) :
A44: ITBMS (7%)
A45: TOTAL de primera cuota | C45: =SUM(C41:C44) ->  | D45: =SUM(D41:D44) -> 
A46: Costo de segunda cuota | C46: =C45-C42 ->  | D46: =D45-D42 -> 
A47: TOTAL ANUAL | C47: =C45+C46 ->  | D47: =D45+D46 -> 
A49: TARIFAS TRIMESTRALES
A50: Prima para Asegurado Titular | C50: =VLOOKUP($B$19,Tablas!$A$1287:$G$1353,3,TRUE) -> 960.5032938 | D50: =VLOOKUP($B$19,Tablas!$A$1287:$G$1353,4,TRUE) -> 732.6692258
A51: Prima para conyuge | C51: =IF($B$15=1,0,(VLOOKUP($D$19,Tablas!$A$1287:$G$1353,3,TRUE))) ->  | D51: =IF($B$15=1,0,(VLOOKUP($D$19,Tablas!$A$1287:$G$1353,4,TRUE))) -> 
A52: Prima para hijo (s) | C52: =IF($B$17=0,0,(VLOOKUP($B$17,Tablas!$A$1354:$G$1356,3,TRUE))) -> 577.6453375 | D52: =IF($B$17=0,0,(VLOOKUP($B$17,Tablas!$A$1354:$G$1356,4,TRUE))) -> 454.0561025
A53: Total de Prima neta | C53: =SUM(C50:C52) ->  | D53: =SUM(D50:D52) -> 
A54: Tarifa administrativa anual | C54: =Tablas!$Y$2 -> 86 | D54: =Tablas!$Y$2 -> 86
A55: VAT (5%) :
A56: ITBMS (7%)
A57: TOTAL de primera cuota | C57: =SUM(C53:C56) ->  | D57: =SUM(D53:D56) -> 
A58: Costo de tarifa trimestral 2 a 4 | C58: =C57-C54 ->  | D58: =D57-D54 -> 
A59: TOTAL ANUAL | C59: =C57+(C58*3) ->  | D59: =D57+(D58*3) -> 
A61: TARIFAS MENSUALES
A62: Prima para Asegurado Titular | C62: =VLOOKUP($B$19,Tablas!$A$1212:$G$1278,3,TRUE) -> 325.9889967 | D62: =VLOOKUP($B$19,Tablas!$A$1212:$G$1278,4,TRUE) -> 248.6634948
A63: Prima para conyuge | C63: =IF($B$15=1,0,(VLOOKUP($D$19,Tablas!$A$1212:$G$1278,3,TRUE))) ->  | D63: =IF($B$15=1,0,(VLOOKUP($D$19,Tablas!$A$1212:$G$1278,4,TRUE))) -> 
A64: Prima para hijo (s) | C64: =IF($B$17=0,0,(VLOOKUP($B$17,Tablas!$A$1279:$G$1281,3,TRUE))) -> 196.0493267 | D64: =IF($B$17=0,0,(VLOOKUP($B$17,Tablas!$A$1279:$G$1281,4,TRUE))) -> 154.1038893
A65: Total de Prima neta | C65: =SUM(C62:C64) ->  | D65: =SUM(D62:D64) -> 
A66: Tarifa administrativa anual | C66: =Tablas!$Y$2 -> 86 | D66: =Tablas!$Y$2 -> 86
A67: VAT (5%) :
A68: ITBMS (7%)
A69: TOTAL de primera cuota | C69: =SUM(C65:C68) ->  | D69: =SUM(D65:D68) -> 
A70: Costo de Tarifa mensual de 2 a 12 | C70: =C69-C66 ->  | D70: =D69-D66 -> 
A71: TOTAL ANUAL | C71: =C69+(C70*11) ->  | D71: =D69+(D70*11) -> 
A73: Este presupuesto solamente tiene carácter informativo y en ningún momento expresa compromiso legal para suministrarle cobertura de seguro. La emisión de una póliza de seguro Bupa está sujeta a todas las evaluaciones de riesgo por parte de Bupa y a la recepción de todos los pagos de prima requeridos.

Sheet Resumen Tarifas
A5: Cotización de Seguro Médico Internacional Global Major Health Plans Resumen de Tarifas Tarifas en US$ | Validas: 1 de enero de 2024
A13: Nombre del Asegurado Titular | B13: =+'INGRESO DE DATOS'!$C$37 -> John Doe
A15: Número de adultos en la póliza | B15: =+'INGRESO DE DATOS'!$C$39 -> 2
A17: Número de Dependientes en la póliza | B17: =+'INGRESO DE DATOS'!$C$41 -> 2 | C17: =IF('INGRESO DE DATOS'!$P$2=TRUE, "Cotización para dependiente de 24 años","") -> 
A19: Edad del Asegurado Titular | B19: =+'INGRESO DE DATOS'!$C$43 -> 32 | E19: Edad del/la conyuge | F19: =+'INGRESO DE DATOS'!$C$45 -> 
A21: Fecha de la cotización | B21: =NOW() -> 2024-01-09T15:08:58.210
A23: GLOBAL ULTIMATE HEALTH PLAN
A24: DEDUCIBLES | B24: PLAN 1 | C24: PLAN 2
A25: En el país de residencia | B25: $0 | C25: 1000
A26: Fuera del país de residencia | B26: $0 | C26: 1000
B27: TARIFAS ANUALES
B28: ='Global Ultimate'!C38 ->  | C28: ='Global Ultimate'!D38 -> 
B29: TARIFAS SEMESTRALES
B30: ='Global Ultimate'!C50 ->  | C30: ='Global Ultimate'!D50 -> 
B31: TARIFAS TRIMESTRALES
B32: ='Global Ultimate'!C63 ->  | C32: ='Global Ultimate'!D63 -> 
B33: TARIFAS MENSUALES
B34: ='Global Ultimate'!C76 ->  | C34: ='Global Ultimate'!D76 -> 
A35: Ahorros en tarifas de prima para Dependientes* | B35: ='Global Ultimate'!C39 -> 12442.255 | C35: ='Global Ultimate'!D39 -> 8030.8578
A37: GLOBAL ELITE HEALTH PLAN
A38: DEDUCIBLES | B38: PLAN 1 | C38: PLAN 2 | D38: PLAN 3 | E38: PLAN 4 | F38: PLAN 5
A39: En el país de residencia | B39: 250 | C39: 2000 | D39: 3500 | E39: 5000 | F39: 10000
A40: Fuera del país de residencia | B40: 5000 | C40: 2000 | D40: 3500 | E40: 5000 | F40: 10000
B41: TARIFAS ANUALES
B42: =+'Global Elite'!C40 ->  | C42: =+'Global Elite'!D40 ->  | D42: =+'Global Elite'!E40 ->  | E42: =+'Global Elite'!F40 ->  | F42: =+'Global Elite'!G40 -> 
B43: TARIFAS SEMESTRALES
B44: =+'Global Elite'!C53 ->  | C44: =+'Global Elite'!D53 ->  | D44: =+'Global Elite'!E53 ->  | E44: =+'Global Elite'!F53 ->  | F44: =+'Global Elite'!G53 -> 
B45: TARIFAS TRIMESTRALES
B46: =+'Global Elite'!C67 ->  | C46: =+'Global Elite'!D67 ->  | D46: =+'Global Elite'!E67 ->  | E46: =+'Global Elite'!F67 ->  | F46: =+'Global Elite'!G67 -> 
B47: TARIFAS MENSUALES
B48: =+'Global Elite'!C81 ->  | C48: =+'Global Elite'!D81 ->  | D48: =+'Global Elite'!E81 ->  | E48: =+'Global Elite'!F81 ->  | F48: =+'Global Elite'!G81 -> 
A49: Ahorros en tarifas de prima para Dependientes* | B49: =+'Global Elite'!C41 -> 4584.03708 | C49: =+'Global Elite'!D41 -> 4018.35987 | D49: =+'Global Elite'!E41 -> 3359.86861 | E49: =+'Global Elite'!F41 -> 2914.36117 | F49: =+'Global Elite'!G41 -> 2220.69827
A51: GLOBAL PREMIER HEALTH PLAN
A52: DEDUCIBLES | B52: PLAN 1 | C52: PLAN 2 | D52: PLAN 3 | E52: PLAN 4
A53: En el país de residencia | B53: 250 | C53: 2000 | D53: 5000 | E53: 10000
A54: Fuera del país de residencia | B54: 5000 | C54: 2000 | D54: 5000 | E54: 10000
B55: TARIFAS ANUALES
B56: =+'Global Premier'!C38 ->  | C56: =+'Global Premier'!D38 ->  | D56: =+'Global Premier'!E38 ->  | E56: =+'Global Premier'!F38 -> 
B57: TARIFAS SEMESTRALES
B58: =+'Global Premier'!C50 ->  | C58: =+'Global Premier'!D50 ->  | D58: =+'Global Premier'!E50 ->  | E58: =+'Global Premier'!F50 -> 
B59: TARIFAS TRIMESTRALES
B60: =+'Global Premier'!C63 ->  | C60: =+'Global Premier'!D63 ->  | D60: =+'Global Premier'!E63 ->  | E60: =+'Global Premier'!F63 -> 
B61: TARIFAS MENSUALES
B62: =+'Global Premier'!C76 ->  | C62: =+'Global Premier'!D76 ->  | D62: =+'Global Premier'!E76 ->  | E62: =+'Global Premier'!F76 -> 
A64: GLOBAL SELECT HEALTH PLAN
A65: DEDUCIBLES | B65: PLAN 1 | C65: PLAN 2 | D65: PLAN 3 | E65: PLAN 4
A66: En el país de residencia | B66: 250 | C66: 2000 | D66: 5000 | E66: 10000
A67: Fuera del país de residencia | B67: 5000 | C67: 2000 | D67: 5000 | E67: 10000
B68: TARIFAS ANUALES
B69: =+'Global Select'!C38 ->  | C69: =+'Global Select'!D38 ->  | D69: =+'Global Select'!E38 ->  | E69: =+'Global Select'!F38 -> 
B70: TARIFAS SEMESTRALES
B71: =+'Global Select'!C50 ->  | C71: =+'Global Select'!D50 ->  | D71: =+'Global Select'!E50 ->  | E71: =+'Global Select'!F50 -> 
B72: TARIFAS TRIMESTRALES
B73: =+'Global Select'!C63 ->  | C73: =+'Global Select'!D63 ->  | D73: =+'Global Select'!E63 ->  | E73: =+'Global Select'!F63 -> 
B74: TARIFAS MENSUALES
B75: =+'Global Select'!C76 ->  | C75: =+'Global Select'!D76 ->  | D75: =+'Global Select'!E76 ->  | E75: =+'Global Select'!F76 -> 
A77: GLOBAL MAJOR MEDICAL HEALTH PLAN
A78: DEDUCIBLES | B78: PLAN 1 | C78: PLAN 2
A79: En el país de residencia | B79: 10000 | C79: 20000
A80: Fuera del país de residencia | B80: 10000 | C80: 20000
B81: TARIFAS ANUALES
B82: ='Global Major Medical'!C35 ->  | C82: ='Global Major Medical'!D35 -> 
B83: TARIFAS SEMESTRALES
B84: ='Global Major Medical'!C46 ->  | C84: ='Global Major Medical'!D46 -> 
B85: TARIFAS TRIMESTRALES
B86: ='Global Major Medical'!C58 ->  | C86: ='Global Major Medical'!D58 -> 
B87: TARIFAS MENSUALES
B88: ='Global Major Medical'!C70 ->  | C88: ='Global Major Medical'!D70 -> 
A90: Este presupuesto solamente tiene carácter informativo y en ningún momento expresa compromiso legal para suministrarle cobertura de seguro. La emisión de una póliza de seguro Bupa está sujeta a todas las evaluaciones de riesgo por parte de Bupa y a la recepción de todos los pagos de prima requeridos. Una tarifa administrativa de US$75 se cargará automáticamente al primer pago. *Basado en un modo de pago anual

Sheet Tablas (hidden)
A2: BUPA GLOBAL ELITE | I2: FACTOR MENSUAL: | K2: 0.09333333333 | M2: Descuento de 24 años | N2: ='INGRESO DE DATOS'!P30 -> 1 | O2: Ultimate | P2: Elite | Q2: Premier | R2: Select | S2: Major Medical | U2: Impuesto (14.94%) | X2: =14.94/100+1 -> 1.1494 | Y2: =ROUND(X2*75,0) -> 86
A3: TARIFAS ANUALES | I3: FACTOR TRIMESTRAL: | K3: 0.275 | M3: Descuento de producto (%) | O3: ='INGRESO DE DATOS'!O39 -> 0 | P3: ='INGRESO DE DATOS'!P39 -> 0.15 | Q3: ='INGRESO DE DATOS'!Q39 -> 0.15 | R3: ='INGRESO DE DATOS'!R39 -> 0.15 | S3: ='INGRESO DE DATOS'!S39 -> 0.15
I4: FACTOR SEMIANUAL: | K4: 0.53 | M4: Factor para el descuento combinado | O4: ='INGRESO DE DATOS'!O47 -> 1 | P4: ='INGRESO DE DATOS'!P47 -> 0.85 | Q4: ='INGRESO DE DATOS'!Q47 -> 0.85 | R4: ='INGRESO DE DATOS'!R47 -> 0.85 | S4: ='INGRESO DE DATOS'!S47 -> 0.85
A5: EDAD | C5: 1000 | D5: 2000 | E5: 3500 | F5: 5000 | G5: 10000 | I5: TARIFAS BASE | O5: TARIFAS BASE CON DESCUENTO
A6: 18 | C6: =O6*$X$2 -> 10842.63502 | D6: =P6*$X$2 -> 9502.20474 | E6: 7893.10221 | F6: 6847.72291 | G6: 5215.17262 | I6: 11098 | J6: 9726 | K6: 8079 | L6: 7009 | M6: 5338 | O6: =I6*$P$4 -> 9433.3 | P6: =J6*$P$4 -> 8267.1 | Q6: 6867.15 | R6: 5957.65 | S6: 4537.3
A7: 19 | C7: =O7*$X$2 -> 10842.63502 | D7: =P7*$X$2 -> 9502.20474 | E7: =Q7*$X$2 -> 7893.10221 | F7: =R7*$X$2 -> 6847.72291 | G7: =S7*$X$2 -> 5215.17262 | I7: 11098 | J7: 9726 | K7: 8079 | L7: 7009 | M7: 5338 | O7: =I7*$P$4 -> 9433.3 | P7: =J7*$P$4 -> 8267.1 | Q7: =K7*$P$4 -> 6867.15 | R7: =L7*$P$4 -> 5957.65 | S7: =M7*$P$4 -> 4537.3
A8: 20 | C8: 10842.63502 | D8: 9502.20474 | E8: 7893.10221 | F8: 6847.72291 | G8: 5215.17262 | I8: 11098 | J8: 9726 | K8: 8079 | L8: 7009 | M8: 5338 | O8: 9433.3 | P8: 8267.1 | Q8: 6867.15 | R8: 5957.65 | S8: 4537.3
A9: 21 | C9: 10842.63502 | D9: 9502.20474 | E9: 7893.10221 | F9: 6847.72291 | G9: 5215.17262 | I9: 11098 | J9: 9726 | K9: 8079 | L9: 7009 | M9: 5338 | O9: 9433.3 | P9: 8267.1 | Q9: 6867.15 | R9: 5957.65 | S9: 4537.3
A10: 22 | C10: 10842.63502 | D10: 9502.20474 | E10: 7893.10221 | F10: 6847.72291 | G10: 5215.17262 | I10: 11098 | J10: 9726 | K10: 8079 | L10: 7009 | M10: 5338 | O10: 9433.3 | P10: 8267.1 | Q10: 6867.15 | R10: 5957.65 | S10: 4537.3
A11: 23 | C11: 10842.63502 | D11: 9502.20474 | E11: 7893.10221 | F11: 6847.72291 | G11: 5215.17262 | I11: 11098 | J11: 9726 | K11: 8079 | L11: 7009 | M11: 5338 | O11: 9433.3 | P11: 8267.1 | Q11: 6867.15 | R11: 5957.65 | S11: 4537.3
A12: 24 | C12: 10842.63502 | D12: 9502.20474 | E12: 7893.10221 | F12: 6847.72291 | G12: 5215.17262 | I12: 11098 | J12: 9726 | K12: 8079 | L12: 7009 | M12: 5338 | O12: 9433.3 | P12: 8267.1 | Q12: 6867.15 | R12: 5957.65 | S12: 4537.3
A13: 25 | C13: 11584.17043 | D13: 10152.88008 | E13: 8382.5742 | F13: 7268.8056 | G13: 5539.5333 | I13: 11857 | J13: 10392 | K13: 8580 | L13: 7440 | M13: 5670 | O13: 10078.45 | P13: 8833.2 | Q13: 7293 | R13: 6324 | S13: 4819.5
A14: 26 | C14: 11584.17043 | D14: 10152.88008 | E14: 8382.5742 | F14: 7268.8056 | G14: 5539.5333 | I14: 11857 | J14: 10392 | K14: 8580 | L14: 7440 | M14: 5670 | O14: 10078.45 | P14: 8833.2 | Q14: 7293 | R14: 6324 | S14: 4819.5
A15: 27 | C15: 11584.17043 | D15: 10152.88008 | E15: 8382.5742 | F15: 7268.8056 | G15: 5539.5333 | I15: 11857 | J15: 10392 | K15: 8580 | L15: 7440 | M15: 5670 | O15: 10078.45 | P15: 8833.2 | Q15: 7293 | R15: 6324 | S15: 4819.5
A16: 28 | C16: 11584.17043 | D16: 10152.88008 | E16: 8382.5742 | F16: 7268.8056 | G16: 5539.5333 | I16: 11857 | J16: 10392 | K16: 8580 | L16: 7440 | M16: 5670 | O16: 10078.45 | P16: 8833.2 | Q16: 7293 | R16: 6324 | S16: 4819.5
A17: 29 | C17: 11584.17043 | D17: 10152.88008 | E17: 8382.5742 | F17: 7268.8056 | G17: 5539.5333 | I17: 11857 | J17: 10392 | K17: 8580 | L17: 7440 | M17: 5670 | O17: 10078.45 | P17: 8833.2 | Q17: 7293 | R17: 6324 | S17: 4819.5
A18: 30 | C18: 12881.61315 | D18: 11291.07343 | E18: 9253.07229 | F18: 8022.06489 | G18: 6111.07245 | I18: 13185 | J18: 11557 | K18: 9471 | L18: 8211 | M18: 6255 | O18: 11207.25 | P18: 9823.45 | Q18: 8050.35 | R18: 6979.35 | S18: 5316.75
A19: 31 | C19: 12881.61315 | D19: 11291.07343 | E19: 9253.07229 | F19: 8022.06489 | G19: 6111.07245 | I19: 13185 | J19: 11557 | K19: 9471 | L19: 8211 | M19: 6255 | O19: 11207.25 | P19: 9823.45 | Q19: 8050.35 | R19: 6979.35 | S19: 5316.75
A20: 32 | C20: 12881.61315 | D20: 11291.07343 | E20: 9253.07229 | F20: 8022.06489 | G20: 6111.07245 | I20: 13185 | J20: 11557 | K20: 9471 | L20: 8211 | M20: 6255 | O20: 11207.25 | P20: 9823.45 | Q20: 8050.35 | R20: 6979.35 | S20: 5316.75
A21: 33 | C21: 12881.61315 | D21: 11291.07343 | E21: 9253.07229 | F21: 8022.06489 | G21: 6111.07245 | I21: 13185 | J21: 11557 | K21: 9471 | L21: 8211 | M21: 6255 | O21: 11207.25 | P21: 9823.45 | Q21: 8050.35 | R21: 6979.35 | S21: 5316.75
A22: 34 | C22: 12881.61315 | D22: 11291.07343 | E22: 9253.07229 | F22: 8022.06489 | G22: 6111.07245 | I22: 13185 | J22: 11557 | K22: 9471 | L22: 8211 | M22: 6255 | O22: 11207.25 | P22: 9823.45 | Q22: 8050.35 | R22: 6979.35 | S22: 5316.75
A23: 35 | C23: 14379.33882 | D23: 12601.21702 | E23: 10267.18791 | F23: 8905.26385 | G23: 6782.26458 | I23: 14718 | J23: 12898 | K23: 10509 | L23: 9115 | M23: 6942 | O23: 12510.3 | P23: 10963.3 | Q23: 8932.65 | R23: 7747.75 | S23: 5900.7
A24: 36 | C24: 14379.33882 | D24: 12601.21702 | E24: 10267.18791 | F24: 8905.26385 | G24: 6782.26458 | I24: 14718 | J24: 12898 | K24: 10509 | L24: 9115 | M24: 6942 | O24: 12510.3 | P24: 10963.3 | Q24: 8932.65 | R24: 7747.75 | S24: 5900.7
A25: 37 | C25: 14379.33882 | D25: 12601.21702 | E25: 10267.18791 | F25: 8905.26385 | G25: 6782.26458 | I25: 14718 | J25: 12898 | K25: 10509 | L25: 9115 | M25: 6942 | O25: 12510.3 | P25: 10963.3 | Q25: 8932.65 | R25: 7747.75 | S25: 5900.7
A26: 38 | C26: 14379.33882 | D26: 12601.21702 | E26: 10267.18791 | F26: 8905.26385 | G26: 6782.26458 | I26: 14718 | J26: 12898 | K26: 10509 | L26: 9115 | M26: 6942 | O26: 12510.3 | P26: 10963.3 | Q26: 8932.65 | R26: 7747.75 | S26: 5900.7
A27: 39 | C27: 14379.33882 | D27: 12601.21702 | E27: 10267.18791 | F27: 8905.26385 | G27: 6782.26458 | I27: 14718 | J27: 12898 | K27: 10509 | L27: 9115 | M27: 6942 | O27: 12510.3 | P27: 10963.3 | Q27: 8932.65 | R27: 7747.75 | S27: 5900.7
A28: 40 | C28: 16642.04766 | D28: 14585.48371 | E28: 11830.37191 | F28: 10258.395 | G28: 7816.89699 | I28: 17034 | J28: 14929 | K28: 12109 | L28: 10500 | M28: 8001 | O28: 14478.9 | P28: 12689.65 | Q28: 10292.65 | R28: 8925 | S28: 6800.85
A29: 41 | C29: 16642.04766 | D29: 14585.48371 | E29: 11830.37191 | F29: 10258.395 | G29: 7816.89699 | I29: 17034 | J29: 14929 | K29: 12109 | L29: 10500 | M29: 8001 | O29: 14478.9 | P29: 12689.65 | Q29: 10292.65 | R29: 8925 | S29: 6800.85
A30: 42 | C30: 16642.04766 | D30: 14585.48371 | E30: 11830.37191 | F30: 10258.395 | G30: 7816.89699 | I30: 17034 | J30: 14929 | K30: 12109 | L30: 10500 | M30: 8001 | O30: 14478.9 | P30: 12689.65 | Q30: 10292.65 | R30: 8925 | S30: 6800.85
A31: 43 | C31: 16642.04766 | D31: 14585.48371 | E31: 11830.37191 | F31: 10258.395 | G31: 7816.89699 | I31: 17034 | J31: 14929 | K31: 12109 | L31: 10500 | M31: 8001 | O31: 14478.9 | P31: 12689.65 | Q31: 10292.65 | R31: 8925 | S31: 6800.85
A32: 44 | C32: 16642.04766 | D32: 14585.48371 | E32: 11830.37191 | F32: 10258.395 | G32: 7816.89699 | I32: 17034 | J32: 14929 | K32: 12109 | L32: 10500 | M32: 8001 | O32: 14478.9 | P32: 12689.65 | Q32: 10292.65 | R32: 8925 | S32: 6800.85
A33: 45 | C33: 18626.31435 | D33: 16324.52591 | E33: 13200.11189 | F33: 11445.43785 | G33: 8717.68177 | I33: 19065 | J33: 16709 | K33: 13511 | L33: 11715 | M33: 8923 | O33: 16205.25 | P33: 14202.65 | Q33: 11484.35 | R33: 9957.75 | S33: 7584.55
A34: 46 | C34: 18626.31435 | D34: 16324.52591 | E34: 13200.11189 | F34: 11445.43785 | G34: 8717.68177 | I34: 19065 | J34: 16709 | K34: 13511 | L34: 11715 | M34: 8923 | O34: 16205.25 | P34: 14202.65 | Q34: 11484.35 | R34: 9957.75 | S34: 7584.55
A35: 47 | C35: 18626.31435 | D35: 16324.52591 | E35: 13200.11189 | F35: 11445.43785 | G35: 8717.68177 | I35: 19065 | J35: 16709 | K35: 13511 | L35: 11715 | M35: 8923 | O35: 16205.25 | P35: 14202.65 | Q35: 11484.35 | R35: 9957.75 | S35: 7584.55
A36: 48 | C36: 18626.31435 | D36: 16324.52591 | E36: 13200.11189 | F36: 11445.43785 | G36: 8717.68177 | I36: 19065 | J36: 16709 | K36: 13511 | L36: 11715 | M36: 8923 | O36: 16205.25 | P36: 14202.65 | Q36: 11484.35 | R36: 9957.75 | S36: 7584.55
A37: 49 | C37: 18626.31435 | D37: 16324.52591 | E37: 13200.11189 | F37: 11445.43785 | G37: 8717.68177 | I37: 19065 | J37: 16709 | K37: 13511 | L37: 11715 | M37: 8923 | O37: 16205.25 | P37: 14202.65 | Q37: 11484.35 | R37: 9957.75 | S37: 7584.55
A38: 50 | C38: 21526.02067 | D38: 18868.60787 | E38: 15220.52721 | F38: 13200.11189 | G38: 10054.20409 | I38: 22033 | J38: 19313 | K38: 15579 | L38: 13511 | M38: 10291 | O38: 18728.05 | P38: 16416.05 | Q38: 13242.15 | R38: 11484.35 | S38: 8747.35
A39: 51 | C39: 21526.02067 | D39: 18868.60787 | E39: 15220.52721 | F39: 13200.11189 | G39: 10054.20409 | I39: 22033 | J39: 19313 | K39: 15579 | L39: 13511 | M39: 10291 | O39: 18728.05 | P39: 16416.05 | Q39: 13242.15 | R39: 11484.35 | S39: 8747.35
A40: 52 | C40: 21526.02067 | D40: 18868.60787 | E40: 15220.52721 | F40: 13200.11189 | G40: 10054.20409 | I40: 22033 | J40: 19313 | K40: 15579 | L40: 13511 | M40: 10291 | O40: 18728.05 | P40: 16416.05 | Q40: 13242.15 | R40: 11484.35 | S40: 8747.35
A41: 53 | C41: 21526.02067 | D41: 18868.60787 | E41: 15220.52721 | F41: 13200.11189 | G41: 10054.20409 | I41: 22033 | J41: 19313 | K41: 15579 | L41: 13511 | M41: 10291 | O41: 18728.05 | P41: 16416.05 | Q41: 13242.15 | R41: 11484.35 | S41: 8747.35
A42: 54 | C42: 21526.02067 | D42: 18868.60787 | E42: 15220.52721 | F42: 13200.11189 | G42: 10054.20409 | I42: 22033 | J42: 19313 | K42: 15579 | L42: 13511 | M42: 10291 | O42: 18728.05 | P42: 16416.05 | Q42: 13242.15 | R42: 11484.35 | S42: 8747.35
A43: 55 | C43: 24065.21768 | D43: 21094.19109 | E43: 16992.78707 | F43: 14736.91716 | G43: 11224.63811 | I43: 24632 | J43: 21591 | K43: 17393 | L43: 15084 | M43: 11489 | O43: 20937.2 | P43: 18352.35 | Q43: 14784.05 | R43: 12821.4 | S43: 9765.65
A44: 56 | C44: 24065.21768 | D44: 21094.19109 | E44: 16992.78707 | F44: 14736.91716 | G44: 11224.63811 | I44: 24632 | J44: 21591 | K44: 17393 | L44: 15084 | M44: 11489 | O44: 20937.2 | P44: 18352.35 | Q44: 14784.05 | R44: 12821.4 | S44: 9765.65
A45: 57 | C45: 24065.21768 | D45: 21094.19109 | E45: 16992.78707 | F45: 14736.91716 | G45: 11224.63811 | I45: 24632 | J45: 21591 | K45: 17393 | L45: 15084 | M45: 11489 | O45: 20937.2 | P45: 18352.35 | Q45: 14784.05 | R45: 12821.4 | S45: 9765.65
A46: 58 | C46: 24065.21768 | D46: 21094.19109 | E46: 16992.78707 | F46: 14736.91716 | G46: 11224.63811 | I46: 24632 | J46: 21591 | K46: 17393 | L46: 15084 | M46: 11489 | O46: 20937.2 | P46: 18352.35 | Q46: 14784.05 | R46: 12821.4 | S46: 9765.65
A47: 59 | C47: 24065.21768 | D47: 21094.19109 | E47: 16992.78707 | F47: 14736.91716 | G47: 11224.63811 | I47: 24632 | J47: 21591 | K47: 17393 | L47: 15084 | M47: 11489 | O47: 20937.2 | P47: 18352.35 | Q47: 14784.05 | R47: 12821.4 | S47: 9765.65
A48: 60 | C48: 25755.41038 | D48: 22577.26191 | E48: 18172.014 | F48: 15756.89472 | G48: 12001.34516 | I48: 26362 | J48: 23109 | K48: 18600 | L48: 16128 | M48: 12284 | O48: 22407.7 | P48: 19642.65 | Q48: 15810 | R48: 13708.8 | S48: 10441.4
A49: 61 | C49: 29148.49665 | D49: 25551.21947 | E49: 20556.84659 | F49: 17827.13653 | G49: 13578.20702 | I49: 29835 | J49: 26153 | K49: 21041 | L49: 18247 | M49: 13898 | O49: 25359.75 | P49: 22230.05 | Q49: 17884.85 | R49: 15509.95 | S49: 11813.3
A50: 62 | C50: 32384.28753 | D50: 28384.49047 | E50: 22832.2563 | F50: 19795.77138 | G50: 15076.90968 | I50: 33147 | J50: 29053 | K50: 23370 | L50: 20262 | M50: 15432 | O50: 28174.95 | P50: 24695.05 | Q50: 19864.5 | R50: 17222.7 | S50: 13117.2
A51: 63 | C51: 35857.48698 | D51: 31433.67626 | E51: 25283.52421 | F51: 21922.67861 | G51: 16698.71308 | I51: 36702 | J51: 32174 | K51: 25879 | L51: 22439 | M51: 17092 | O51: 31196.7 | P51: 27347.9 | Q51: 21997.15 | R51: 19073.15 | S51: 14528.2
A52: 64 | C52: 39581.77286 | D52: 34692.9149 | E52: 27910.65032 | F52: 24201.01929 | G52: 18432.87033 | I52: 40514 | J52: 35510 | K52: 28568 | L52: 24771 | M52: 18867 | O52: 34436.9 | P52: 30183.5 | Q52: 24282.8 | R52: 21055.35 | S52: 16036.95
A53: 65 | C53: 43546.39828 | D53: 38171.97629 | E53: 30716.5656 | F53: 26636.65536 | G53: 20290.12832 | I53: 44572 | J53: 39071 | K53: 31440 | L53: 27264 | M53: 20768 | O53: 37886.2 | P53: 33210.35 | Q53: 26724 | R53: 23174.4 | S53: 17652.8
A54: 66 | C54: 47757.22518 | D54: 41862.06752 | E54: 33701.27005 | F54: 29222.74789 | G54: 22261.69414 | I54: 48882 | J54: 42848 | K54: 34495 | L54: 29911 | M54: 22786 | O54: 41549.7 | P54: 36420.8 | Q54: 29320.75 | R54: 25424.35 | S54: 19368.1
A55: 67 | C55: 52211.32259 | D55: 45764.16558 | E55: 36865.74066 | F55: 31966.13581 | G55: 24348.54478 | I55: 53441 | J55: 46842 | K55: 37734 | L55: 32719 | M55: 24922 | O55: 45424.85 | P55: 39815.7 | Q55: 32073.9 | R55: 27811.15 | S55: 21183.7
A56: 68 | C56: 56907.71352 | D56: 49881.20144 | E56: 40205.09248 | F56: 34863.88815 | G56: 26556.54218 | I56: 58248 | J56: 51056 | K56: 41152 | L56: 35685 | M56: 27182 | O56: 49510.8 | P56: 43397.6 | Q56: 34979.2 | R56: 30332.25 | S56: 23104.7
A57: 69 | C57: 61852.25991 | D57: 54214.15209 | E57: 43725.18745 | F57: 37916.9819 | G57: 28879.8244 | I57: 63309 | J57: 55491 | K57: 44755 | L57: 38810 | M57: 29560 | O57: 53812.65 | P57: 47167.35 | Q57: 38041.75 | R57: 32988.5 | S57: 25126
A58: 70 | C58: 67037.14584 | D58: 58760.08656 | E58: 47419.18664 | F58: 41119.55512 | G58: 31320.34542 | I58: 68616 | J58: 60144 | K58: 48536 | L58: 42088 | M58: 32058 | O58: 58323.6 | P58: 51122.4 | Q58: 41255.6 | R58: 35774.8 | S58: 27249.3
A59: 71 | C59: 72467.25626 | D59: 63519.00485 | E59: 51295.88296 | F59: 44480.40072 | G59: 33879.08223 | I59: 74174 | J59: 65015 | K59: 52504 | L59: 45528 | M59: 34677 | O59: 63047.9 | P59: 55262.75 | Q59: 44628.4 | R59: 38698.8 | S59: 29475.45
A60: 72 | C60: 78141.61418 | D60: 68495.79191 | E60: 55346.4835 | F60: 47990.72579 | G60: 36554.08085 | I60: 79982 | J60: 70109 | K60: 56650 | L60: 49121 | M60: 37415 | O60: 67984.7 | P60: 59592.65 | Q60: 48152.5 | R60: 41752.85 | S60: 31802.75
A61: 73 | C61: 84061.19659 | D61: 73681.65483 | E61: 59579.78117 | F61: 51660.30023 | G61: 39348.27225 | I61: 86041 | J61: 75417 | K61: 60983 | L61: 52877 | M61: 40275 | O61: 73134.85 | P61: 64104.45 | Q61: 51835.55 | R61: 44945.45 | S61: 34233.75
A62: 74 | C62: 90225.0265 | D62: 79081.47856 | E62: 63985.02908 | F62: 55483.2621 | G62: 42260.67944 | I62: 92350 | J62: 80944 | K62: 65492 | L62: 56790 | M62: 43256 | O62: 78497.5 | P62: 68802.4 | Q62: 55668.2 | R62: 48271.5 | S62: 36767.6
A63: 75 | C63: 96631.14993 | D63: 84698.19407 | E63: 68569.06616 | F63: 59457.65742 | G63: 45287.39446 | I63: 98907 | J63: 86693 | K63: 70184 | L63: 60858 | M63: 46354 | O63: 84070.95 | P63: 73689.05 | Q63: 59656.4 | R63: 51729.3 | S63: 39400.9
A64: 76 | C64: 96631.14993 | D64: 84698.19407 | E64: 68569.06616 | F64: 59457.65742 | G64: 45287.39446 | I64: 98907 | J64: 86693 | K64: 70184 | L64: 60858 | M64: 46354 | O64: 84070.95 | P64: 73689.05 | Q64: 59656.4 | R64: 51729.3 | S64: 39400.9
A65: 77 | C65: 96631.14993 | D65: 84698.19407 | E65: 68569.06616 | F65: 59457.65742 | G65: 45287.39446 | I65: 98907 | J65: 86693 | K65: 70184 | L65: 60858 | M65: 46354 | O65: 84070.95 | P65: 73689.05 | Q65: 59656.4 | R65: 51729.3 | S65: 39400.9
A66: 78 | C66: 96631.14993 | D66: 84698.19407 | E66: 68569.06616 | F66: 59457.65742 | G66: 45287.39446 | I66: 98907 | J66: 86693 | K66: 70184 | L66: 60858 | M66: 46354 | O66: 84070.95 | P66: 73689.05 | Q66: 59656.4 | R66: 51729.3 | S66: 39400.9
A67: 79 | C67: 96631.14993 | D67: 84698.19407 | E67: 68569.06616 | F67: 59457.65742 | G67: 45287.39446 | I67: 98907 | J67: 86693 | K67: 70184 | L67: 60858 | M67: 46354 | O67: 84070.95 | P67: 73689.05 | Q67: 59656.4 | R67: 51729.3 | S67: 39400.9
A68: 80 | C68: 96631.14993 | D68: 84698.19407 | E68: 68569.06616 | F68: 59457.65742 | G68: 45287.39446 | I68: 98907 | J68: 86693 | K68: 70184 | L68: 60858 | M68: 46354 | O68: 84070.95 | P68: 73689.05 | Q68: 59656.4 | R68: 51729.3 | S68: 39400.9
A69: 81 | C69: 96631.14993 | D69: 84698.19407 | E69: 68569.06616 | F69: 59457.65742 | G69: 45287.39446 | I69: 98907 | J69: 86693 | K69: 70184 | L69: 60858 | M69: 46354 | O69: 84070.95 | P69: 73689.05 | Q69: 59656.4 | R69: 51729.3 | S69: 39400.9
A70: 82 | C70: 96631.14993 | D70: 84698.19407 | E70: 68569.06616 | F70: 59457.65742 | G70: 45287.39446 | I70: 98907 | J70: 86693 | K70: 70184 | L70: 60858 | M70: 46354 | O70: 84070.95 | P70: 73689.05 | Q70: 59656.4 | R70: 51729.3 | S70: 39400.9
A71: 83 | C71: =O71*$X$2 -> 96631.14993 | D71: =P71*$X$2 -> 84698.19407 | E71: =Q71*$X$2 -> 68569.06616 | F71: =R71*$X$2 -> 59457.65742 | G71: =S71*$X$2 -> 45287.39446 | I71: 98907 | J71: 86693 | K71: 70184 | L71: 60858 | M71: 46354 | O71: =I71*$P$4 -> 84070.95 | P71: =J71*$P$4 -> 73689.05 | Q71: =K71*$P$4 -> 59656.4 | R71: =L71*$P$4 -> 51729.3 | S71: =M71*$P$4 -> 39400.9
A72: 84 | B72: o más | C72: 96631.14993 | D72: 84698.19407 | E72: 68569.06616 | F72: 59457.65742 | G72: 45287.39446 | I72: 98907 | J72: 86693 | K72: 70184 | L72: 60858 | M72: 46354 | O72: 84070.95 | P72: 73689.05 | Q72: 59656.4 | R72: 51729.3 | S72: 39400.9
A73: 1 | B73: Hijo | C73: 4584.03708 | D73: 4018.35987 | E73: 3359.86861 | F73: 2914.36117 | G73: 2220.69827 | I73: 4692 | J73: 4113 | K73: 3439 | L73: 2983 | M73: 2273 | O73: 3988.2 | P73: 3496.05 | Q73: 2923.15 | R73: 2535.55 | S73: 1932.05
A74: 2 | B74: Hijos | C74: 7788.56428 | D74: 6828.18311 | E74: 5710.50655 | F74: 4953.3393 | G74: 3774.11237 | I74: 7972 | J74: 6989 | K74: 5845 | L74: 5070 | M74: 3863 | O74: 6776.2 | P74: 5940.65 | Q74: 4968.25 | R74: 4309.5 | S74: 3283.55
A75: 3 | B75: Hijos o más | C75: 10996.02245 | D75: 9638.00635 | E75: 8061.14449 | F75: 6990.36345 | G75: 5326.54948 | I75: 11255 | J75: 9865 | K75: 8251 | L75: 7155 | M75: 5452 | O75: 9566.75 | P75: 8385.25 | Q75: 7013.35 | R75: 6081.75 | S75: 4634.2
A77: BUPA GLOBAL ELITE - MENSUALES
A79: EDAD | C79: 1000 | D79: 2000 | E79: 3500
A80: 18 | C80: =C6*$K$2 -> 1011.979269 | D80: =D6*$K$2 -> 886.8724424 | E80: 736.6895396 | F80: 639.1208049 | G80: 486.7494445
A81: 19 | C81: =C7*$K$2 -> 1011.979269 | D81: 886.8724424 | E81: 736.6895396 | F81: 639.1208049 | G81: 486.7494445
A82: 20 | C82: =C8*$K$2 -> 1011.979269 | D82: 886.8724424 | E82: 736.6895396 | F82: 639.1208049 | G82: 486.7494445
A83: 21 | C83: =C9*$K$2 -> 1011.979269 | D83: 886.8724424 | E83: 736.6895396 | F83: 639.1208049 | G83: 486.7494445
A84: 22 | C84: =C10*$K$2 -> 1011.979269 | D84: 886.8724424 | E84: 736.6895396 | F84: 639.1208049 | G84: 486.7494445
A85: 23 | C85: =C11*$K$2 -> 1011.979269 | D85: 886.8724424 | E85: 736.6895396 | F85: 639.1208049 | G85: 486.7494445
A86: 24 | C86: =C12*$K$2 -> 1011.979269 | D86: 886.8724424 | E86: 736.6895396 | F86: 639.1208049 | G86: 486.7494445
A87: 25 | C87: =C13*$K$2 -> 1081.18924 | D87: 947.6021408 | E87: 782.373592 | F87: 678.421856 | G87: 517.023108
A88: 26 | C88: =C14*$K$2 -> 1081.18924 | D88: 947.6021408 | E88: 782.373592 | F88: 678.421856 | G88: 517.023108
A89: 27 | C89: =C15*$K$2 -> 1081.18924 | D89: 947.6021408 | E89: 782.373592 | F89: 678.421856 | G89: 517.023108
A90: 28 | C90: =C16*$K$2 -> 1081.18924 | D90: 947.6021408 | E90: 782.373592 | F90: 678.421856 | G90: 517.023108
A91: 29 | C91: =C17*$K$2 -> 1081.18924 | D91: 947.6021408 | E91: 782.373592 | F91: 678.421856 | G91: 517.023108
A92: 30 | C92: =C18*$K$2 -> 1202.283894 | D92: 1053.83352 | E92: 863.6200804 | F92: 748.7260564 | G92: 570.366762
A93: 31 | C93: =C19*$K$2 -> 1202.283894 | D93: 1053.83352 | E93: 863.6200804 | F93: 748.7260564 | G93: 570.366762
A94: 32 | C94: =C20*$K$2 -> 1202.283894 | D94: 1053.83352 | E94: 863.6200804 | F94: 748.7260564 | G94: 570.366762
A95: 33 | C95: =C21*$K$2 -> 1202.283894 | D95: 1053.83352 | E95: 863.6200804 | F95: 748.7260564 | G95: 570.366762
A96: 34 | C96: =C22*$K$2 -> 1202.283894 | D96: 1053.83352 | E96: 863.6200804 | F96: 748.7260564 | G96: 570.366762
A97: 35 | C97: =C23*$K$2 -> 1342.071623 | D97: 1176.113589 | E97: 958.2708716 | F97: 831.1579593 | G97: 633.0113608
A98: 36 | C98: =C24*$K$2 -> 1342.071623 | D98: 1176.113589 | E98: 958.2708716 | F98: 831.1579593 | G98: 633.0113608
A99: 37 | C99: =C25*$K$2 -> 1342.071623 | D99: 1176.113589 | E99: 958.2708716 | F99: 831.1579593 | G99: 633.0113608
A100: 38 | C100: =C26*$K$2 -> 1342.071623 | D100: 1176.113589 | E100: 958.2708716 | F100: 831.1579593 | G100: 633.0113608
A101: 39 | C101: =C27*$K$2 -> 1342.071623 | D101: 1176.113589 | E101: 958.2708716 | F101: 831.1579593 | G101: 633.0113608
A102: 40 | C102: =C28*$K$2 -> 1553.257782 | D102: 1361.311813 | E102: 1104.168045 | F102: 957.4502 | G102: 729.5770524
A103: 41 | C103: =C29*$K$2 -> 1553.257782 | D103: 1361.311813 | E103: 1104.168045 | F103: 957.4502 | G103: 729.5770524
A104: 42 | C104: =C30*$K$2 -> 1553.257782 | D104: 1361.311813 | E104: 1104.168045 | F104: 957.4502 | G104: 729.5770524
A105: 43 | C105: =C31*$K$2 -> 1553.257782 | D105: 1361.311813 | E105: 1104.168045 | F105: 957.4502 | G105: 729.5770524
A106: 44 | C106: =C32*$K$2 -> 1553.257782 | D106: 1361.311813 | E106: 1104.168045 | F106: 957.4502 | G106: 729.5770524
A107: 45 | C107: =C33*$K$2 -> 1738.456006 | D107: 1523.622418 | E107: 1232.010443 | F107: 1068.240866 | G107: 813.6502985
A108: 46 | C108: =C34*$K$2 -> 1738.456006 | D108: 1523.622418 | E108: 1232.010443 | F108: 1068.240866 | G108: 813.6502985
A109: 47 | C109: =C35*$K$2 -> 1738.456006 | D109: 1523.622418 | E109: 1232.010443 | F109: 1068.240866 | G109: 813.6502985
A110: 48 | C110: =C36*$K$2 -> 1738.456006 | D110: 1523.622418 | E110: 1232.010443 | F110: 1068.240866 | G110: 813.6502985
A111: 49 | C111: =C37*$K$2 -> 1738.456006 | D111: 1523.622418 | E111: 1232.010443 | F111: 1068.240866 | G111: 813.6502985
A112: 50 | C112: =C38*$K$2 -> 2009.095263 | D112: 1761.070068 | E112: 1420.58254 | F112: 1232.010443 | G112: 938.3923817
A113: 51 | C113: =C39*$K$2 -> 2009.095263 | D113: 1761.070068 | E113: 1420.58254 | F113: 1232.010443 | G113: 938.3923817
A114: 52 | C114: =C40*$K$2 -> 2009.095263 | D114: 1761.070068 | E114: 1420.58254 | F114: 1232.010443 | G114: 938.3923817
A115: 53 | C115: =C41*$K$2 -> 2009.095263 | D115: 1761.070068 | E115: 1420.58254 | F115: 1232.010443 | G115: 938.3923817
A116: 54 | C116: =C42*$K$2 -> 2009.095263 | D116: 1761.070068 | E116: 1420.58254 | F116: 1232.010443 | G116: 938.3923817
A117: 55 | C117: =C43*$K$2 -> 2246.086983 | D117: 1968.791168 | E117: 1585.99346 | F117: 1375.445602 | G117: 1047.63289
A118: 56 | C118: =C44*$K$2 -> 2246.086983 | D118: 1968.791168 | E118: 1585.99346 | F118: 1375.445602 | G118: 1047.63289
A119: 57 | C119: =C45*$K$2 -> 2246.086983 | D119: 1968.791168 | E119: 1585.99346 | F119: 1375.445602 | G119: 1047.63289
A120: 58 | C120: =C46*$K$2 -> 2246.086983 | D120: 1968.791168 | E120: 1585.99346 | F120: 1375.445602 | G120: 1047.63289
A121: 59 | C121: =C47*$K$2 -> 2246.086983 | D121: 1968.791168 | E121: 1585.99346 | F121: 1375.445602 | G121: 1047.63289
A122: 60 | C122: =C48*$K$2 -> 2403.838302 | D122: 2107.211112 | E122: 1696.05464 | F122: 1470.643507 | G122: 1120.125548
A123: 61 | C123: =C49*$K$2 -> 2720.526354 | D123: 2384.780484 | E123: 1918.639015 | F123: 1663.866076 | G123: 1267.299322
A124: 62 | C124: =C50*$K$2 -> 3022.533503 | D124: 2649.219111 | E124: 2131.010588 | F124: 1847.605329 | G124: 1407.178237
A125: 63 | C125: =C51*$K$2 -> 3346.698785 | D125: 2933.809784 | E125: 2359.795593 | F125: 2046.11667 | G125: 1558.546554
A126: 64 | C126: =C52*$K$2 -> 3694.2988 | D126: 3238.005391 | E126: 2604.99403 | F126: 2258.7618 | G126: 1720.401231
A127: 65 | C127: =C53*$K$2 -> 4064.330506 | D127: 3562.717787 | E127: 2866.879456 | F127: 2486.087834 | G127: 1893.74531
A128: 66 | C128: =C54*$K$2 -> 4457.341017 | D128: 3907.126302 | E128: 3145.451871 | F128: 2727.45647 | G128: 2077.75812
A129: 67 | C129: =C55*$K$2 -> 4873.056775 | D129: 4271.322121 | E129: 3440.802462 | F129: 2983.506009 | G129: 2272.530846
A130: 68 | C130: =C56*$K$2 -> 5311.386595 | D130: 4655.578801 | E130: 3752.475298 | F130: 3253.962894 | G130: 2478.610603
A131: 69 | C131: =C57*$K$2 -> 5772.877592 | D131: 5059.987528 | E131: 4081.017495 | F131: 3538.918311 | G131: 2695.450277
A132: 70 | C132: =C58*$K$2 -> 6256.800278 | D132: 5484.274746 | E132: 4425.790753 | F132: 3837.825145 | G132: 2923.232239
A133: 71 | C133: =C59*$K$2 -> 6763.610584 | D133: 5928.440453 | E133: 4787.615743 | F133: 4151.504067 | G133: 3162.047675
A134: 72 | C134: =C60*$K$2 -> 7293.217323 | D134: 6392.940578 | E134: 5165.671793 | F134: 4479.134407 | G134: 3411.714213
A135: 73 | C135: =C61*$K$2 -> 7845.711682 | D135: 6876.954451 | E135: 5560.779576 | F135: 4821.628021 | G135: 3672.50541
A136: 74 | C136: =C62*$K$2 -> 8421.002473 | D136: 7380.937999 | E136: 5971.936047 | F136: 5178.437796 | G136: 3944.330081
A137: 75 | C137: =C63*$K$2 -> 9018.907327 | D137: 7905.16478 | E137: 6399.779508 | F137: 5549.381359 | G137: 4226.823483
A138: 76 | C138: =C64*$K$2 -> 9018.907327 | D138: 7905.16478 | E138: 6399.779508 | F138: 5549.381359 | G138: 4226.823483
A139: 77 | C139: =C65*$K$2 -> 9018.907327 | D139: 7905.16478 | E139: 6399.779508 | F139: 5549.381359 | G139: 4226.823483
A140: 78 | C140: =C66*$K$2 -> 9018.907327 | D140: 7905.16478 | E140: 6399.779508 | F140: 5549.381359 | G140: 4226.823483
A141: 79 | C141: =C67*$K$2 -> 9018.907327 | D141: 7905.16478 | E141: 6399.779508 | F141: 5549.381359 | G141: 4226.823483
A142: 80 | C142: =C68*$K$2 -> 9018.907327 | D142: 7905.16478 | E142: 6399.779508 | F142: 5549.381359 | G142: 4226.823483
A143: 81 | C143: =C69*$K$2 -> 9018.907327 | D143: 7905.16478 | E143: 6399.779508 | F143: 5549.381359 | G143: 4226.823483
A144: 82 | C144: =C70*$K$2 -> 9018.907327 | D144: 7905.16478 | E144: 6399.779508 | F144: 5549.381359 | G144: 4226.823483
A145: 83 | C145: =C71*$K$2 -> 9018.907327 | D145: 7905.16478 | E145: 6399.779508 | F145: 5549.381359 | G145: 4226.823483
A146: 84 | B146: o más | C146: =C72*$K$2 -> 9018.907327 | D146: 7905.16478 | E146: 6399.779508 | F146: 5549.381359 | G146: 4226.823483
A147: 1 | B147: Hijo | C147: =C73*$K$2 -> 427.8434608 | D147: 375.0469212 | E147: 313.5877369 | F147: 272.0070425 | G147: 207.2651719
A148: 2 | B148: Hijos | C148: =C74*$K$2 -> 726.9326661 | D148: 637.2970903 | E148: 532.9806113 | F148: 462.311668 | G148: 352.2504879
A149: 3 | B149: Hijos o más | C149: =C75*$K$2 -> 1026.295429 | D149: 899.5472593 | E149: 752.3734857 | F149: 652.433922 | G149: 497.1446181
A152: BUPA GLOBAL PREMIER
A153: TARIFAS ANUALES
A155: EDAD | C155: 2000 | D155: 3500 | E155: 5000 | F155: 10000 | I155: TARIFAS BASE | N155: TARIFAS BASE COND ESCUENTO
A156: 18 | C156: =N156*$X$2 -> 7127.14205 | D156: =O156*$X$2 -> 6464.74283 | E156: 4863.45622 | F156: 3553.31263 | I156: 7295 | J156: 6617 | K156: 4978 | L156: 3637 | N156: =I156*$Q$4 -> 6200.75 | O156: =J156*$Q$4 -> 5624.45 | P156: 4231.3 | Q156: 3091.45
A157: 19 | C157: =N157*$X$2 -> 7127.14205 | D157: =O157*$X$2 -> 6464.74283 | E157: =P157*$X$2 -> 4863.45622 | F157: =Q157*$X$2 -> 3553.31263 | I157: 7295 | J157: 6617 | K157: 4978 | L157: 3637 | N157: =I157*$Q$4 -> 6200.75 | O157: =J157*$Q$4 -> 5624.45 | P157: =K157*$Q$4 -> 4231.3 | Q157: =L157*$Q$4 -> 3091.45
A158: 20 | C158: 7127.14205 | D158: 6464.74283 | E158: 4863.45622 | F158: 3553.31263 | I158: 7295 | J158: 6617 | K158: 4978 | L158: 3637 | N158: 6200.75 | O158: 5624.45 | P158: 4231.3 | Q158: 3091.45
A159: 21 | C159: 7127.14205 | D159: 6464.74283 | E159: 4863.45622 | F159: 3553.31263 | I159: 7295 | J159: 6617 | K159: 4978 | L159: 3637 | N159: 6200.75 | O159: 5624.45 | P159: 4231.3 | Q159: 3091.45
A160: 22 | C160: 7127.14205 | D160: 6464.74283 | E160: 4863.45622 | F160: 3553.31263 | I160: 7295 | J160: 6617 | K160: 4978 | L160: 3637 | N160: 6200.75 | O160: 5624.45 | P160: 4231.3 | Q160: 3091.45
A161: 23 | C161: 7127.14205 | D161: 6464.74283 | E161: 4863.45622 | F161: 3553.31263 | I161: 7295 | J161: 6617 | K161: 4978 | L161: 3637 | N161: 6200.75 | O161: 5624.45 | P161: 4231.3 | Q161: 3091.45
A162: 24 | C162: 7127.14205 | D162: 6464.74283 | E162: 4863.45622 | F162: 3553.31263 | I162: 7295 | J162: 6617 | K162: 4978 | L162: 3637 | N162: 6200.75 | O162: 5624.45 | P162: 4231.3 | Q162: 3091.45
A163: 25 | C163: 7617.59103 | D163: 6908.29629 | E163: 5141.89837 | F163: 3757.50354 | I163: 7797 | J163: 7071 | K163: 5263 | L163: 3846 | N163: 6627.45 | O163: 6010.35 | P163: 4473.55 | Q163: 3269.1
A164: 26 | C164: 7617.59103 | D164: 6908.29629 | E164: 5141.89837 | F164: 3757.50354 | I164: 7797 | J164: 7071 | K164: 5263 | L164: 3846 | N164: 6627.45 | O164: 6010.35 | P164: 4473.55 | Q164: 3269.1
A165: 27 | C165: 7617.59103 | D165: 6908.29629 | E165: 5141.89837 | F165: 3757.50354 | I165: 7797 | J165: 7071 | K165: 5263 | L165: 3846 | N165: 6627.45 | O165: 6010.35 | P165: 4473.55 | Q165: 3269.1
A166: 28 | C166: 7617.59103 | D166: 6908.29629 | E166: 5141.89837 | F166: 3757.50354 | I166: 7797 | J166: 7071 | K166: 5263 | L166: 3846 | N166: 6627.45 | O166: 6010.35 | P166: 4473.55 | Q166: 3269.1
A167: 29 | C167: 7617.59103 | D167: 6908.29629 | E167: 5141.89837 | F167: 3757.50354 | I167: 7797 | J167: 7071 | K167: 5263 | L167: 3846 | N167: 6627.45 | O167: 6010.35 | P167: 4473.55 | Q167: 3269.1
A168: 30 | C168: 8469.52631 | D168: 7685.98033 | E168: 5645.04822 | F168: 4123.87479 | I168: 8669 | J168: 7867 | K168: 5778 | L168: 4221 | N168: 7368.65 | O168: 6686.95 | P168: 4911.3 | Q168: 3587.85
A169: 31 | C169: 8469.52631 | D169: 7685.98033 | E169: 5645.04822 | F169: 4123.87479 | I169: 8669 | J169: 7867 | K169: 5778 | L169: 4221 | N169: 7368.65 | O169: 6686.95 | P169: 4911.3 | Q169: 3587.85
A170: 32 | C170: 8469.52631 | D170: 7685.98033 | E170: 5645.04822 | F170: 4123.87479 | I170: 8669 | J170: 7867 | K170: 5778 | L170: 4221 | N170: 7368.65 | O170: 6686.95 | P170: 4911.3 | Q170: 3587.85
A171: 33 | C171: 8469.52631 | D171: 7685.98033 | E171: 5645.04822 | F171: 4123.87479 | I171: 8669 | J171: 7867 | K171: 5778 | L171: 4221 | N171: 7368.65 | O171: 6686.95 | P171: 4911.3 | Q171: 3587.85
A172: 34 | C172: 8469.52631 | D172: 7685.98033 | E172: 5645.04822 | F172: 4123.87479 | I172: 8669 | J172: 7867 | K172: 5778 | L172: 4221 | N172: 7368.65 | O172: 6686.95 | P172: 4911.3 | Q172: 3587.85
A173: 35 | C173: 9450.42427 | D173: 8577.9722 | E173: 6240.03513 | F173: 4558.63534 | I173: 9673 | J173: 8780 | K173: 6387 | L173: 4666 | N173: 8222.05 | O173: 7463 | P173: 5428.95 | Q173: 3966.1
A174: 36 | C174: 9450.42427 | D174: 8577.9722 | E174: 6240.03513 | F174: 4558.63534 | I174: 9673 | J174: 8780 | K174: 6387 | L174: 4666 | N174: 8222.05 | O174: 7463 | P174: 5428.95 | Q174: 3966.1
A175: 37 | C175: 9450.42427 | D175: 8577.9722 | E175: 6240.03513 | F175: 4558.63534 | I175: 9673 | J175: 8780 | K175: 6387 | L175: 4666 | N175: 8222.05 | O175: 7463 | P175: 5428.95 | Q175: 3966.1
A176: 38 | C176: 9450.42427 | D176: 8577.9722 | E176: 6240.03513 | F176: 4558.63534 | I176: 9673 | J176: 8780 | K176: 6387 | L176: 4666 | N176: 8222.05 | O176: 7463 | P176: 5428.95 | Q176: 3966.1
A177: 39 | C177: 9450.42427 | D177: 8577.9722 | E177: 6240.03513 | F177: 4558.63534 | I177: 9673 | J177: 8780 | K177: 6387 | L177: 4666 | N177: 8222.05 | O177: 7463 | P177: 5428.95 | Q177: 3966.1
A178: 40 | C178: 10938.38004 | D178: 9927.19539 | E178: 7165.24466 | F178: 5236.6664 | I178: 11196 | J178: 10161 | K178: 7334 | L178: 5360 | N178: 9516.6 | O178: 8636.85 | P178: 6233.9 | Q178: 4556
A179: 41 | C179: 10938.38004 | D179: 9927.19539 | E179: 7165.24466 | F179: 5236.6664 | I179: 11196 | J179: 10161 | K179: 7334 | L179: 5360 | N179: 9516.6 | O179: 8636.85 | P179: 6233.9 | Q179: 4556
A180: 42 | C180: 10938.38004 | D180: 9927.19539 | E180: 7165.24466 | F180: 5236.6664 | I180: 11196 | J180: 10161 | K180: 7334 | L180: 5360 | N180: 9516.6 | O180: 8636.85 | P180: 6233.9 | Q180: 4556
A181: 43 | C181: 10938.38004 | D181: 9927.19539 | E181: 7165.24466 | F181: 5236.6664 | I181: 11196 | J181: 10161 | K181: 7334 | L181: 5360 | N181: 9516.6 | O181: 8636.85 | P181: 6233.9 | Q181: 4556
A182: 44 | C182: 10938.38004 | D182: 9927.19539 | E182: 7165.24466 | F182: 5236.6664 | I182: 11196 | J182: 10161 | K182: 7334 | L182: 5360 | N182: 9516.6 | O182: 8636.85 | P182: 6233.9 | Q182: 4556
A183: 45 | C183: 12240.70771 | D183: 11109.35329 | E183: 7974.19238 | F183: 5824.81438 | I183: 12529 | J183: 11371 | K183: 8162 | L183: 5962 | N183: 10649.65 | O183: 9665.35 | P183: 6937.7 | Q183: 5067.7
A184: 46 | C184: 12240.70771 | D184: 11109.35329 | E184: 7974.19238 | F184: 5824.81438 | I184: 12529 | J184: 11371 | K184: 8162 | L184: 5962 | N184: 10649.65 | O184: 9665.35 | P184: 6937.7 | Q184: 5067.7
A185: 47 | C185: 12240.70771 | D185: 11109.35329 | E185: 7974.19238 | F185: 5824.81438 | I185: 12529 | J185: 11371 | K185: 8162 | L185: 5962 | N185: 10649.65 | O185: 9665.35 | P185: 6937.7 | Q185: 5067.7
A186: 48 | C186: 12240.70771 | D186: 11109.35329 | E186: 7974.19238 | F186: 5824.81438 | I186: 12529 | J186: 11371 | K186: 8162 | L186: 5962 | N186: 10649.65 | O186: 9665.35 | P186: 6937.7 | Q186: 5067.7
A187: 49 | C187: 12240.70771 | D187: 11109.35329 | E187: 7974.19238 | F187: 5824.81438 | I187: 12529 | J187: 11371 | K187: 8162 | L187: 5962 | N187: 10649.65 | O187: 9665.35 | P187: 6937.7 | Q187: 5067.7
A188: 50 | C188: 14151.70015 | D188: 12841.55656 | E188: 9182.72901 | F188: 6710.94431 | I188: 14485 | J188: 13144 | K188: 9399 | L188: 6869 | N188: 12312.25 | O188: 11172.4 | P188: 7989.15 | Q188: 5838.65
A189: 51 | C189: 14151.70015 | D189: 12841.55656 | E189: 9182.72901 | F189: 6710.94431 | I189: 14485 | J189: 13144 | K189: 9399 | L189: 6869 | N189: 12312.25 | O189: 11172.4 | P189: 7989.15 | Q189: 5838.65
A190: 52 | C190: 14151.70015 | D190: 12841.55656 | E190: 9182.72901 | F190: 6710.94431 | I190: 14485 | J190: 13144 | K190: 9399 | L190: 6869 | N190: 12312.25 | O190: 11172.4 | P190: 7989.15 | Q190: 5838.65
A191: 53 | C191: 14151.70015 | D191: 12841.55656 | E191: 9182.72901 | F191: 6710.94431 | I191: 14485 | J191: 13144 | K191: 9399 | L191: 6869 | N191: 12312.25 | O191: 11172.4 | P191: 7989.15 | Q191: 5838.65
A192: 54 | C192: 14151.70015 | D192: 12841.55656 | E192: 9182.72901 | F192: 6710.94431 | I192: 14485 | J192: 13144 | K192: 9399 | L192: 6869 | N192: 12312.25 | O192: 11172.4 | P192: 7989.15 | Q192: 5838.65
A193: 55 | C193: 15817.4681 | D193: 14356.86805 | E193: 10237.87821 | F193: 7481.78942 | I193: 16190 | J193: 14695 | K193: 10479 | L193: 7658 | N193: 13761.5 | O193: 12490.75 | P193: 8907.15 | Q193: 6509.3
A194: 56 | C194: 15817.4681 | D194: 14356.86805 | E194: 10237.87821 | F194: 7481.78942 | I194: 16190 | J194: 14695 | K194: 10479 | L194: 7658 | N194: 13761.5 | O194: 12490.75 | P194: 8907.15 | Q194: 6509.3
A195: 57 | C195: 15817.4681 | D195: 14356.86805 | E195: 10237.87821 | F195: 7481.78942 | I195: 16190 | J195: 14695 | K195: 10479 | L195: 7658 | N195: 13761.5 | O195: 12490.75 | P195: 8907.15 | Q195: 6509.3
A196: 58 | C196: 15817.4681 | D196: 14356.86805 | E196: 10237.87821 | F196: 7481.78942 | I196: 16190 | J196: 14695 | K196: 10479 | L196: 7658 | N196: 13761.5 | O196: 12490.75 | P196: 8907.15 | Q196: 6509.3
A197: 59 | C197: 15817.4681 | D197: 14356.86805 | E197: 10237.87821 | F197: 7481.78942 | I197: 16190 | J197: 14695 | K197: 10479 | L197: 7658 | N197: 13761.5 | O197: 12490.75 | P197: 8907.15 | Q197: 6509.3
A198: 60 | C198: 16930.25971 | D198: 15361.21377 | E198: 10944.24198 | F198: 7994.70917 | I198: 17329 | J198: 15723 | K198: 11202 | L198: 8183 | N198: 14729.65 | O198: 13364.55 | P198: 9521.7 | Q198: 6955.55
A199: 61 | C199: 19157.79691 | D199: 17384.56006 | E199: 12369.67039 | F199: 9039.11148 | I199: 19609 | J199: 17794 | K199: 12661 | L199: 9252 | N199: 16667.65 | O199: 15124.9 | P199: 10761.85 | Q199: 7864.2
A200: 62 | C200: 21281.77317 | D200: 19316.06929 | E200: 13739.41037 | F200: 10038.57225 | I200: 21783 | J200: 19771 | K200: 14063 | L200: 10275 | N200: 18515.55 | O200: 16805.35 | P200: 11953.55 | Q200: 8733.75
A201: 63 | C201: 23568.90676 | D201: 21388.26508 | E201: 15212.71129 | F201: 11114.23824 | I201: 24124 | J201: 21892 | K201: 15571 | L201: 11376 | N201: 20505.4 | O201: 18608.2 | P201: 13235.35 | Q201: 9669.6
A202: 64 | C202: 26014.31273 | D202: 23609.94034 | E202: 16798.36606 | F202: 12271.97139 | I202: 26627 | J202: 24166 | K202: 17194 | L202: 12561 | N202: 22632.95 | O202: 20541.1 | P202: 14614.9 | Q202: 10676.85
A203: 65 | C203: 28620.92205 | D203: 25975.23313 | E203: 18492.46672 | F203: 13510.79471 | I203: 29295 | J203: 26587 | K203: 18928 | L203: 13829 | N203: 24900.75 | O203: 22598.95 | P203: 16088.8 | Q203: 11754.65
A204: 66 | C204: 31388.73472 | D204: 28482.18947 | E204: 20295.99026 | F204: 14827.77723 | I204: 32128 | J204: 29153 | K204: 20774 | L204: 15177 | N204: 27308.8 | O204: 24780.05 | P204: 17657.9 | Q204: 12900.45
A205: 67 | C205: 34315.79676 | D205: 31141.55625 | E205: 22209.91367 | F205: 16228.78089 | I205: 35124 | J205: 31875 | K205: 22733 | L205: 16611 | N205: 29855.4 | O205: 27093.75 | P205: 19323.05 | Q205: 14119.35
A206: 68 | C206: 37401.13118 | D206: 33942.58658 | E206: 24233.25996 | F206: 17704.03579 | I206: 38282 | J206: 34742 | K206: 24804 | L206: 18121 | N206: 32539.7 | O206: 29530.7 | P206: 21083.4 | Q206: 15402.85
... 1257 more rows
